BODY,BODY NAME,DATE,TRANSACTION NUMBER,THEIR REF,CATEGORY,AMOUNT,SUPPLIER NAME,SUPPLIER CODE,EXPENSE AREA,EXPENSE TYPE,EXPENSE CODE
http://statistics.data.gov.uk/id/local-authority/12UE,Huntingdonshire District Council,30/03/2017,205654,617508,5,"2,268.00",Environmental Scientifics Group Ltd,CR416941,Air Quality,Equipment,500
http://statistics.data.gov.uk/id/local-authority/12UE,Huntingdonshire District Council,09/03/2017,204615,95539336,5,1.19,Air Liquide Uk Ltd,CR412121,Air Quality,Equipment,500
http://statistics.data.gov.uk/id/local-authority/12UE,Huntingdonshire District Council,09/03/2017,204615,95539336,5,645.44,Air Liquide Uk Ltd,CR412121,Air Quality,Equipment,500
http://statistics.data.gov.uk/id/local-authority/12UE,Huntingdonshire District Council,09/03/2017,204615,95539336,5,66.72,Air Liquide Uk Ltd,CR412121,Air Quality,Postage,231
http://statistics.data.gov.uk/id/local-authority/12UE,Huntingdonshire District Council,30/03/2017,206555,20721917,5,396,Pengelly And Mizen,CR411042,Animal Welfare,Vets,760
http://statistics.data.gov.uk/id/local-authority/12UE,Huntingdonshire District Council,16/03/2017,204613,H0010009,5,"1,700.00",Wood Green Animal Shelters,CR019139,Animal Welfare,Contribution (Paid Out),810
http://statistics.data.gov.uk/id/local-authority/12UE,Huntingdonshire District Council,16/03/2017,204611,H0010010,5,"1,500.00",Wood Green Animal Shelters,CR019139,Animal Welfare,Contribution (Paid Out),810
http://statistics.data.gov.uk/id/local-authority/12UE,Huntingdonshire District Council,09/03/2017,204593,55570,5,184.68,Landmark Trading Ltd,CR411433,Arboricultural Team,Equipment,500
http://statistics.data.gov.uk/id/local-authority/12UE,Huntingdonshire District Council,09/03/2017,204593,55570,5,178.8,Landmark Trading Ltd,CR411433,Arboricultural Team,Protective Clothing & Uniforms,163
http://statistics.data.gov.uk/id/local-authority/12UE,Huntingdonshire District Council,03/03/2017,204272,101409,5,196.59,Arthur Ibbett Ltd,CR000430,Arboricultural Team,Vehicle Parts & Fittings,625
http://statistics.data.gov.uk/id/local-authority/12UE,Huntingdonshire District Council,30/03/2017,206361,2017/017,5,695.04,Primesight  Ltd,CR132710,Bus Shelters,Building Cleaning,440
http://statistics.data.gov.uk/id/local-authority/12UE,Huntingdonshire District Council,09/03/2017,204558,GFL1796HDC,5,678,G Ferrara Ltd,CR478949,Bus Shelters,Building Cleaning,440
http://statistics.data.gov.uk/id/local-authority/12UE,Huntingdonshire District Council,16/03/2017,609228,1432,1,359.98,St Ives Town Council,CR000701,Bus Stations,Building Mtce,303
http://statistics.data.gov.uk/id/local-authority/12UE,Huntingdonshire District Council,16/03/2017,609227,1433,1,814.14,St Ives Town Council,CR000701,Bus Stations,Building Mtce,303
http://statistics.data.gov.uk/id/local-authority/12UE,Huntingdonshire District Council,09/03/2017,204403,58253,5,"1,174.99",Beebys Limited,CR415822,Bus Stations,Building Cleaning,440
http://statistics.data.gov.uk/id/local-authority/12UE,Huntingdonshire District Council,03/03/2017,204103,JC/5106/28815,5,"5,070.60",J Breheny Civil Engineering Ltd,CR000314,Bus Stations,Sitework,359
http://statistics.data.gov.uk/id/local-authority/12UE,Huntingdonshire District Council,03/03/2017,204103,JC/5106/28815,5,"2,802.00",J Breheny Civil Engineering Ltd,CR000314,Bus Stations,Sitework,359
http://statistics.data.gov.uk/id/local-authority/12UE,Huntingdonshire District Council,09/03/2017,205735,1047,,450,Blue Prawn Design Ltd,CR422809,Business & Enterprise Support,Subcontractors,777
http://statistics.data.gov.uk/id/local-authority/12UE,Huntingdonshire District Council,09/03/2017,205690,22084,5,500,Young Enterprise,CR478013,Business & Enterprise Support,Grants (Paid Out),800
http://statistics.data.gov.uk/id/local-authority/12UE,Huntingdonshire District Council,30/03/2017,205689,7014405,5,"5,862.00",Idox,CR481134,Business & Enterprise Support,Licences,730
http://statistics.data.gov.uk/id/local-authority/12UE,Huntingdonshire District Council,30/03/2017,207069,1254073808,5,60,Orange Airtime,CR455799,Cctv Shared Service,Telephone &Mobile Phonecharges,240
http://statistics.data.gov.uk/id/local-authority/12UE,Huntingdonshire District Council,03/03/2017,204928,923469-076A,5,631.3,Virgin Media Business/Cpsn,CR455148,Cctv Shared Service,I T Line Rental,248
http://statistics.data.gov.uk/id/local-authority/12UE,Huntingdonshire District Council,30/03/2017,207051,923469-077A,5,631.3,Virgin Media Business,CR033120,Cctv Shared Service,I T Line Rental,248
http://statistics.data.gov.uk/id/local-authority/12UE,Huntingdonshire District Council,23/03/2017,205392,INV1747261,5,279.07,Interaction Recruitment Plc,CR007892,Cctv Shared Service,Hired Staff,100
http://statistics.data.gov.uk/id/local-authority/12UE,Huntingdonshire District Council,30/03/2017,205954,INV1749071,5,294.58,Interaction Recruitment Plc,CR007892,Cctv Shared Service,Hired Staff,100
http://statistics.data.gov.uk/id/local-authority/12UE,Huntingdonshire District Council,30/03/2017,205612,SIN083127,5,"3,600.60",Quadrant Security Group,CR027775,Cctv Shared Service,Equipment Maintenance,511
http://statistics.data.gov.uk/id/local-authority/12UE,Huntingdonshire District Council,30/03/2017,205612,SIN083127,5,"2,840.83",Quadrant Security Group,CR027775,Cctv Shared Service,Equipment Maintenance,511
http://statistics.data.gov.uk/id/local-authority/12UE,Huntingdonshire District Council,09/03/2017,205731,40145086,5,"1,876.88",Local Government Association,CR411957,Central Services M Us,Legal Fees,729
http://statistics.data.gov.uk/id/local-authority/12UE,Huntingdonshire District Council,09/03/2017,205731,40145086,5,50.51,Local Government Association,CR411957,Central Services M Us,Legal Fees,729
http://statistics.data.gov.uk/id/local-authority/12UE,Huntingdonshire District Council,09/03/2017,205731,40145086,5,157.8,Local Government Association,CR411957,Central Services M Us,Legal Fees,729
http://statistics.data.gov.uk/id/local-authority/12UE,Huntingdonshire District Council,09/03/2017,205731,40145086,5,14.62,Local Government Association,CR411957,Central Services M Us,Legal Fees,729
http://statistics.data.gov.uk/id/local-authority/12UE,Huntingdonshire District Council,09/03/2017,205730,40148526,5,642.7,Local Government Association,CR411957,Central Services M Us,Legal Fees,729
http://statistics.data.gov.uk/id/local-authority/12UE,Huntingdonshire District Council,09/03/2017,205730,40148526,5,70.21,Local Government Association,CR411957,Central Services M Us,Legal Fees,729
http://statistics.data.gov.uk/id/local-authority/12UE,Huntingdonshire District Council,09/03/2017,205730,40148526,5,37.64,Local Government Association,CR411957,Central Services M Us,Legal Fees,729
http://statistics.data.gov.uk/id/local-authority/12UE,Huntingdonshire District Council,09/03/2017,205732,40150793,5,465.74,Local Government Association,CR411957,Central Services M Us,Legal Fees,729
http://statistics.data.gov.uk/id/local-authority/12UE,Huntingdonshire District Council,09/03/2017,205732,40150793,5,0.98,Local Government Association,CR411957,Central Services M Us,Legal Fees,729
http://statistics.data.gov.uk/id/local-authority/12UE,Huntingdonshire District Council,09/03/2017,205732,40150793,5,111.6,Local Government Association,CR411957,Central Services M Us,Legal Fees,729
http://statistics.data.gov.uk/id/local-authority/12UE,Huntingdonshire District Council,30/03/2017,207069,1254073808,5,9.6,Orange Airtime,CR455799,Central Services M Us,Telephone &Mobile Phonecharges,240
http://statistics.data.gov.uk/id/local-authority/12UE,Huntingdonshire District Council,30/03/2017,205386,17019,6,576,The Assoc Of Democratic Service Officers,CR455382,Chief Executive & Comt,Advertising/Promoting Services,255
http://statistics.data.gov.uk/id/local-authority/12UE,Huntingdonshire District Council,03/03/2017,204871,30806,5,"8,581.80",Gatenby Sanderson,CR424638,Chief Executive & Comt,Recruitment Costs,120
http://statistics.data.gov.uk/id/local-authority/12UE,Huntingdonshire District Council,03/03/2017,204866,30807,5,"7,314.00",Gatenby Sanderson,CR424638,Chief Executive & Comt,Recruitment Costs,120
http://statistics.data.gov.uk/id/local-authority/12UE,Huntingdonshire District Council,23/03/2017,206550,1684747,5,"1,890.00",Weightmans,CR455744,Chief Executive & Comt,Legal Fees,729
http://statistics.data.gov.uk/id/local-authority/12UE,Huntingdonshire District Council,30/03/2017,205967,1007257487,5,"4,620.00",Hays,CR423917,Chief Executive & Comt,Consultants,711
http://statistics.data.gov.uk/id/local-authority/12UE,Huntingdonshire District Council,09/03/2017,204439,1007280859,5,"4,620.00",Hays,CR423917,Chief Executive & Comt,Consultants,711
http://statistics.data.gov.uk/id/local-authority/12UE,Huntingdonshire District Council,16/03/2017,204868,1007300523,5,"4,620.00",Hays,CR423917,Chief Executive & Comt,Consultants,711
http://statistics.data.gov.uk/id/local-authority/12UE,Huntingdonshire District Council,23/03/2017,205132,1007315723,5,"4,620.00",Hays,CR423917,Chief Executive & Comt,Consultants,711
http://statistics.data.gov.uk/id/local-authority/12UE,Huntingdonshire District Council,30/03/2017,206056,1007334525,5,"4,620.00",Hays,CR423917,Chief Executive & Comt,Consultants,711
http://statistics.data.gov.uk/id/local-authority/12UE,Huntingdonshire District Council,30/03/2017,206564,1007337294,5,"3,861.00",Hays,CR423917,Chief Executive & Comt,Hired Staff,100
http://statistics.data.gov.uk/id/local-authority/12UE,Huntingdonshire District Council,03/03/2017,205336,AA/CHA432-1,5,"24,702.20",Leeds Day,CR406568,Chief Executive & Comt,Ins (Service Related),260
http://statistics.data.gov.uk/id/local-authority/12UE,Huntingdonshire District Council,09/03/2017,205606,FS000844,5,834,Cipfa Annual Conference,CR422412,Chief Executive & Comt,Conferences,137
http://statistics.data.gov.uk/id/local-authority/12UE,Huntingdonshire District Council,03/03/2017,204784,HDC001,5,"1,680.00",Adrenalin,CR424630,Chief Executive & Comt,Consultants,711
http://statistics.data.gov.uk/id/local-authority/12UE,Huntingdonshire District Council,09/03/2017,204648,OP/I792430,5,289.15,Phoenix Software Ltd,CR031918,Chief Executive & Comt,Software,206
http://statistics.data.gov.uk/id/local-authority/12UE,Huntingdonshire District Council,30/03/2017,207061,WEBBOOK-3200,5,552,Quantified Tree Risk Assessment Ltd,CR482655,Chief Executive & Comt,Training,130
http://statistics.data.gov.uk/id/local-authority/12UE,Huntingdonshire District Council,30/03/2017,206990,C-0002487512,5,"7,089.00",Computershare Vouchers Ltd,CR412205,Child Care Vouchers - Payroll,Deductions Paid To Third Party,26
http://statistics.data.gov.uk/id/local-authority/12UE,Huntingdonshire District Council,09/03/2017,205686,892,5,"2,007.75",Hact,CR455657,Concessionary Fares,Contribution (Paid Out),810
http://statistics.data.gov.uk/id/local-authority/12UE,Huntingdonshire District Council,23/03/2017,205581,4258,5,"4,041.51",Newlyn Plc,CR409114,Council Tax,Bailiffs,703
http://statistics.data.gov.uk/id/local-authority/12UE,Huntingdonshire District Council,30/03/2017,205960,31351,5,"2,096.64",Community Information Services Ltd,CR478148,Council Tax,Printing (External),220
http://statistics.data.gov.uk/id/local-authority/12UE,Huntingdonshire District Council,03/03/2017,204116,692666,5,352.8,Callcredit Ltd,CR455548,Council Tax,Enquiries,723
http://statistics.data.gov.uk/id/local-authority/12UE,Huntingdonshire District Council,30/03/2017,205613,696794,5,439.2,Callcredit Ltd,CR455548,Council Tax,Enquiries,723
http://statistics.data.gov.uk/id/local-authority/12UE,Huntingdonshire District Council,16/03/2017,205227,9053904544,5,"1,795.66",Royal Mail,CR027083,Council Tax,Postage,231
http://statistics.data.gov.uk/id/local-authority/12UE,Huntingdonshire District Council,30/03/2017,205951,9053991655,5,338.9,Royal Mail,CR027083,Council Tax,Postage,231
http://statistics.data.gov.uk/id/local-authority/12UE,Huntingdonshire District Council,30/03/2017,205583,B270217,5,"2,862.08",Jacobs,CR422350,Council Tax,Bailiffs,703
http://statistics.data.gov.uk/id/local-authority/12UE,Huntingdonshire District Council,03/03/2017,204109,B300117,5,"2,443.16",Jacobs,CR422350,Council Tax,Bailiffs,703
http://statistics.data.gov.uk/id/local-authority/12UE,Huntingdonshire District Council,03/03/2017,204255,IN16PS17000419,5,773.6,Whistl Uk Ltd,CR424061,Council Tax,Postage,231
http://statistics.data.gov.uk/id/local-authority/12UE,Huntingdonshire District Council,03/03/2017,204256,IN16PS17000624,5,377.02,Whistl Uk Ltd,CR424061,Council Tax,Postage,231
http://statistics.data.gov.uk/id/local-authority/12UE,Huntingdonshire District Council,09/03/2017,204812,IN16PS17000747,5,312.55,Whistl Uk Ltd,CR424061,Council Tax,Postage,231
http://statistics.data.gov.uk/id/local-authority/12UE,Huntingdonshire District Council,16/03/2017,204811,IN16PS17000876,5,295.21,Whistl Uk Ltd,CR424061,Council Tax,Postage,231
http://statistics.data.gov.uk/id/local-authority/12UE,Huntingdonshire District Council,30/03/2017,205668,IN16PS17001150,5,653.58,Whistl Uk Ltd,CR424061,Council Tax,Postage,231
http://statistics.data.gov.uk/id/local-authority/12UE,Huntingdonshire District Council,23/03/2017,206090,4,5,"4,440.00",Peacock Engineering,CR410043,Countryside,Materials,550
http://statistics.data.gov.uk/id/local-authority/12UE,Huntingdonshire District Council,23/03/2017,608499,5,5,"1,000.00",Rps Plumbing Services,CR482532,Countryside,Building Mtce,303
http://statistics.data.gov.uk/id/local-authority/12UE,Huntingdonshire District Council,30/03/2017,608508,31,5,325,Sue Kirk,CR415354,Countryside,Subcontractors,777
http://statistics.data.gov.uk/id/local-authority/12UE,Huntingdonshire District Council,03/03/2017,204335,15220,5,33.48,Jade Security Services Ltd,CR422256,Countryside,Cash Collection,702
http://statistics.data.gov.uk/id/local-authority/12UE,Huntingdonshire District Council,30/03/2017,205923,15329,5,33.48,Jade Security Services Ltd,CR422256,Countryside,Cash Collection,702
http://statistics.data.gov.uk/id/local-authority/12UE,Huntingdonshire District Council,30/03/2017,206821,20505,5,"1,760.24",Fenland Leisure Products Ltd,CR478560,Countryside,Equipment Maintenance,511
http://statistics.data.gov.uk/id/local-authority/12UE,Huntingdonshire District Council,03/03/2017,204200,164952,5,867.63,Huntingdon Timber Supplies,CR482513,Countryside,Materials,550
http://statistics.data.gov.uk/id/local-authority/12UE,Huntingdonshire District Council,16/03/2017,205133,165753,5,"1,292.18",Huntingdon Timber Supplies,CR482513,Countryside,Materials,550
http://statistics.data.gov.uk/id/local-authority/12UE,Huntingdonshire District Council,03/03/2017,205129,172200,5,339.06,Direct Plastics Ltd,CR423171,Countryside,Materials,550
http://statistics.data.gov.uk/id/local-authority/12UE,Huntingdonshire District Council,03/03/2017,204860,557807,5,482.99,Ecocleen Services Limited,CR406985,Countryside,Building Cleaning,440
http://statistics.data.gov.uk/id/local-authority/12UE,Huntingdonshire District Council,30/03/2017,206806,558737,5,482.99,Ecocleen Services Limited,CR406985,Countryside,Building Cleaning,440
http://statistics.data.gov.uk/id/local-authority/12UE,Huntingdonshire District Council,16/03/2017,205678,724847,5,402.76,Glasdon Uk Ltd,CR002827,Countryside,Equipment,500
http://statistics.data.gov.uk/id/local-authority/12UE,Huntingdonshire District Council,03/03/2017,204861,4334566,1,298.56,Espo,CR006566,Countryside,Materials,550
http://statistics.data.gov.uk/id/local-authority/12UE,Huntingdonshire District Council,09/03/2017,205134,4338200,1,441.6,Espo,CR006566,Countryside,Materials,550
http://statistics.data.gov.uk/id/local-authority/12UE,Huntingdonshire District Council,16/03/2017,206066,8789776,5,359.45,Banner,CR416014,Countryside,Stationery,225
http://statistics.data.gov.uk/id/local-authority/12UE,Huntingdonshire District Council,09/03/2017,205309,24390301,3,"2,335.24",Aggregate Industries,CR478570,Countryside,Materials,550
http://statistics.data.gov.uk/id/local-authority/12UE,Huntingdonshire District Council,23/03/2017,206001,41226290,5,"2,524.08",Swalec,CR407130,Countryside,Electricity,420
http://statistics.data.gov.uk/id/local-authority/12UE,Huntingdonshire District Council,23/03/2017,205999,311226373,5,592.75,Swalec,CR407130,Countryside,Electricity,420
http://statistics.data.gov.uk/id/local-authority/12UE,Huntingdonshire District Council,03/03/2017,205135,2103028280,5,220.3,Booker Cash And Carry,CR027611,Countryside,Catering Materials,559
http://statistics.data.gov.uk/id/local-authority/12UE,Huntingdonshire District Council,03/03/2017,205135,2103028280,5,103.1,Booker Cash And Carry,CR027611,Countryside,Materials,550
http://statistics.data.gov.uk/id/local-authority/12UE,Huntingdonshire District Council,09/03/2017,205320,2103070148,5,273.42,Booker Cash And Carry,CR027611,Countryside,Catering Materials,559
http://statistics.data.gov.uk/id/local-authority/12UE,Huntingdonshire District Council,09/03/2017,205320,2103070148,5,28.04,Booker Cash And Carry,CR027611,Countryside,Cleaning Materials,443
http://statistics.data.gov.uk/id/local-authority/12UE,Huntingdonshire District Council,09/03/2017,205320,2103070148,5,17.99,Booker Cash And Carry,CR027611,Countryside,Materials,550
http://statistics.data.gov.uk/id/local-authority/12UE,Huntingdonshire District Council,09/03/2017,205415,IO1170242806,3,264,S Jones Containers Ltd,CR422712,Countryside,Materials,550
http://statistics.data.gov.uk/id/local-authority/12UE,Huntingdonshire District Council,30/03/2017,205725,4291,5,"2,656.91",White Commercial Surveyors Ltd,CR412242,Customer Service Centres,Rent,410
http://statistics.data.gov.uk/id/local-authority/12UE,Huntingdonshire District Council,30/03/2017,205687,129254,3,"1,200.00",Cornerstone Barristers,CR455436,Dc Application Processing,Consultants,711
http://statistics.data.gov.uk/id/local-authority/12UE,Huntingdonshire District Council,30/03/2017,206153,9976920,5,942.47,Snr Denton,CR453969,Dc Application Processing,Consultants,711
http://statistics.data.gov.uk/id/local-authority/12UE,Huntingdonshire District Council,16/03/2017,206157,82683234,5,"1,504.18",Archant Community Media Ltd,CR452143,Dc Application Processing,Advertising - Statutory Notice,257
http://statistics.data.gov.uk/id/local-authority/12UE,Huntingdonshire District Council,09/03/2017,204814,371596,5,570,Surrey Envelopes,CR482428,Document Centre,Envelopes,224
http://statistics.data.gov.uk/id/local-authority/12UE,Huntingdonshire District Council,03/03/2017,204090,6554309,5,294,Antalis Ltd,CR479468,Document Centre,Paper,562
http://statistics.data.gov.uk/id/local-authority/12UE,Huntingdonshire District Council,09/03/2017,204669,6582079,5,588,Antalis Ltd,CR479468,Document Centre,Paper,562
http://statistics.data.gov.uk/id/local-authority/12UE,Huntingdonshire District Council,09/03/2017,204669,6582079,5,115.42,Antalis Ltd,CR479468,Document Centre,Paper,562
http://statistics.data.gov.uk/id/local-authority/12UE,Huntingdonshire District Council,09/03/2017,204670,6589827,5,158.26,Antalis Ltd,CR479468,Document Centre,Paper,562
http://statistics.data.gov.uk/id/local-authority/12UE,Huntingdonshire District Council,09/03/2017,204670,6589827,5,346.5,Antalis Ltd,CR479468,Document Centre,Paper,562
http://statistics.data.gov.uk/id/local-authority/12UE,Huntingdonshire District Council,16/03/2017,205393,6597196,5,101.98,Antalis Ltd,CR479468,Document Centre,Paper,562
http://statistics.data.gov.uk/id/local-authority/12UE,Huntingdonshire District Council,16/03/2017,205393,6597196,5,131.16,Antalis Ltd,CR479468,Document Centre,Paper,562
http://statistics.data.gov.uk/id/local-authority/12UE,Huntingdonshire District Council,16/03/2017,205393,6597196,5,138.24,Antalis Ltd,CR479468,Document Centre,Paper,562
http://statistics.data.gov.uk/id/local-authority/12UE,Huntingdonshire District Council,16/03/2017,205393,6597196,5,37.02,Antalis Ltd,CR479468,Document Centre,Paper,562
http://statistics.data.gov.uk/id/local-authority/12UE,Huntingdonshire District Council,16/03/2017,205391,6597197,5,34.66,Antalis Ltd,CR479468,Document Centre,Paper,562
http://statistics.data.gov.uk/id/local-authority/12UE,Huntingdonshire District Council,16/03/2017,205391,6597197,5,588,Antalis Ltd,CR479468,Document Centre,Paper,562
http://statistics.data.gov.uk/id/local-authority/12UE,Huntingdonshire District Council,23/03/2017,205394,6615946,5,103.96,Antalis Ltd,CR479468,Document Centre,Paper,562
http://statistics.data.gov.uk/id/local-authority/12UE,Huntingdonshire District Council,23/03/2017,205394,6615946,5,160.24,Antalis Ltd,CR479468,Document Centre,Paper,562
http://statistics.data.gov.uk/id/local-authority/12UE,Huntingdonshire District Council,23/03/2017,205394,6615946,5,127.5,Antalis Ltd,CR479468,Document Centre,Paper,562
http://statistics.data.gov.uk/id/local-authority/12UE,Huntingdonshire District Council,23/03/2017,205390,6627577,5,262.8,Antalis Ltd,CR479468,Document Centre,Paper,562
http://statistics.data.gov.uk/id/local-authority/12UE,Huntingdonshire District Council,30/03/2017,205966,9169933,5,"2,787.16",Canon Uk Ltd,CR409013,Document Centre,Equipment Maintenance,511
http://statistics.data.gov.uk/id/local-authority/12UE,Huntingdonshire District Council,30/03/2017,205965,9171217,5,"5,107.79",Canon Uk Ltd,CR409013,Document Centre,Equipment Maintenance,511
http://statistics.data.gov.uk/id/local-authority/12UE,Huntingdonshire District Council,23/03/2017,205225,92297149,5,"1,093.26",Neopost,CR400652,Document Centre,Equipment Maintenance,511
http://statistics.data.gov.uk/id/local-authority/12UE,Huntingdonshire District Council,23/03/2017,205224,1129473944,5,"2,935.92",Konica Minolta,CR478866,Document Centre,Equipment Maintenance,511
http://statistics.data.gov.uk/id/local-authority/12UE,Huntingdonshire District Council,03/03/2017,204618,9053814692,5,418.99,Royal Mail,CR027083,Document Centre,Postage,231
http://statistics.data.gov.uk/id/local-authority/12UE,Huntingdonshire District Council,09/03/2017,204815,9053863529,5,"1,456.67",Royal Mail,CR027083,Document Centre,Postage,231
http://statistics.data.gov.uk/id/local-authority/12UE,Huntingdonshire District Council,16/03/2017,205227,9053904544,5,841.44,Royal Mail,CR027083,Document Centre,Postage,231
http://statistics.data.gov.uk/id/local-authority/12UE,Huntingdonshire District Council,30/03/2017,205951,9053991655,5,"3,584.08",Royal Mail,CR027083,Document Centre,Postage,231
http://statistics.data.gov.uk/id/local-authority/12UE,Huntingdonshire District Council,03/03/2017,204255,IN16PS17000419,5,816.29,Whistl Uk Ltd,CR424061,Document Centre,Postage,231
http://statistics.data.gov.uk/id/local-authority/12UE,Huntingdonshire District Council,03/03/2017,204256,IN16PS17000624,5,"1,139.96",Whistl Uk Ltd,CR424061,Document Centre,Postage,231
http://statistics.data.gov.uk/id/local-authority/12UE,Huntingdonshire District Council,09/03/2017,204812,IN16PS17000747,5,"1,023.47",Whistl Uk Ltd,CR424061,Document Centre,Postage,231
http://statistics.data.gov.uk/id/local-authority/12UE,Huntingdonshire District Council,16/03/2017,204811,IN16PS17000876,5,"1,006.58",Whistl Uk Ltd,CR424061,Document Centre,Postage,231
http://statistics.data.gov.uk/id/local-authority/12UE,Huntingdonshire District Council,23/03/2017,205222,IN16PS17001028,5,"1,027.49",Whistl Uk Ltd,CR424061,Document Centre,Postage,231
http://statistics.data.gov.uk/id/local-authority/12UE,Huntingdonshire District Council,30/03/2017,205668,IN16PS17001150,5,764.7,Whistl Uk Ltd,CR424061,Document Centre,Postage,231
http://statistics.data.gov.uk/id/local-authority/12UE,Huntingdonshire District Council,16/03/2017,205615,SI-17-178,5,308,Mailcrafters Uk Ltd,CR424650,Document Centre,Equipment Maintenance,511
http://statistics.data.gov.uk/id/local-authority/12UE,Huntingdonshire District Council,10/03/2017,205929,,5,"2,500.00",Neopost,CR028326,Document Centre,Postage,231
http://statistics.data.gov.uk/id/local-authority/12UE,Huntingdonshire District Council,03/03/2017,204274,2152,5,569.09,Change Agents Uk Trading Ltd,CR477664,Domestic Refuse,Hired Staff,100
http://statistics.data.gov.uk/id/local-authority/12UE,Huntingdonshire District Council,03/03/2017,204262,2155,5,"1,813.98",Change Agents Uk Trading Ltd,CR477664,Domestic Refuse,Hired Staff,100
http://statistics.data.gov.uk/id/local-authority/12UE,Huntingdonshire District Council,16/03/2017,205122,6618,5,473.28,D & H Sign & Display Services,CR030353,Domestic Refuse,Vehicle Parts & Fittings,625
http://statistics.data.gov.uk/id/local-authority/12UE,Huntingdonshire District Council,23/03/2017,205671,6621,5,432,D & H Sign & Display Services,CR030353,Domestic Refuse,Vehicle Parts & Fittings,625
http://statistics.data.gov.uk/id/local-authority/12UE,Huntingdonshire District Council,23/03/2017,206474,18260,5,"2,524.80",Swan Print Ltd,CR413699,Domestic Refuse,Advertising/Promoting Services,255
http://statistics.data.gov.uk/id/local-authority/12UE,Huntingdonshire District Council,23/03/2017,206507,18261,5,"3,852.00",Swan Print Ltd,CR413699,Domestic Refuse,Advertising/Promoting Services,255
http://statistics.data.gov.uk/id/local-authority/12UE,Huntingdonshire District Council,23/03/2017,206491,40444,5,"2,160.00",Clanpress King'S Lynn Ltd,CR413516,Domestic Refuse,Advertising/Promoting Services,255
http://statistics.data.gov.uk/id/local-authority/12UE,Huntingdonshire District Council,09/03/2017,204762,40517,5,468,Clanpress King'S Lynn Ltd,CR413516,Domestic Refuse,Advertising/Promoting Services,255
http://statistics.data.gov.uk/id/local-authority/12UE,Huntingdonshire District Council,23/03/2017,205404,86343,5,385.2,Frank Ratcliffe & Son,CR007546,Domestic Refuse,Vehicle Maintenance External,619
http://statistics.data.gov.uk/id/local-authority/12UE,Huntingdonshire District Council,03/03/2017,205341,98646,5,"1,911.54",Bandvulc Truck Tyres,CR406810,Domestic Refuse,Tyres,630
http://statistics.data.gov.uk/id/local-authority/12UE,Huntingdonshire District Council,03/03/2017,205168,101575,5,276,Huntingdon Plant Hire,CR000425,Domestic Refuse,Vehicle Cleaning,620
http://statistics.data.gov.uk/id/local-authority/12UE,Huntingdonshire District Council,23/03/2017,205167,101759,5,276,Huntingdon Plant Hire,CR000425,Domestic Refuse,Vehicle Cleaning,620
http://statistics.data.gov.uk/id/local-authority/12UE,Huntingdonshire District Council,03/03/2017,204469,108191,5,588,Barton Petroleum,CR409205,Domestic Refuse,Vehicle Oil & Lubricants,626
http://statistics.data.gov.uk/id/local-authority/12UE,Huntingdonshire District Council,23/03/2017,206439,200249,5,"1,446.00",Cambridge Consultancy In Counselling,CR455108,Domestic Refuse,Medical Fees,734
http://statistics.data.gov.uk/id/local-authority/12UE,Huntingdonshire District Council,30/03/2017,203124,385515,5,460.08,Smi Group,CR423139,Domestic Refuse,Protective Clothing & Uniforms,163
http://statistics.data.gov.uk/id/local-authority/12UE,Huntingdonshire District Council,03/03/2017,203775,388704,5,672.72,Smi Group,CR423139,Domestic Refuse,Protective Clothing & Uniforms,163
http://statistics.data.gov.uk/id/local-authority/12UE,Huntingdonshire District Council,03/03/2017,203774,388876,5,"1,885.26",Smi Group,CR423139,Domestic Refuse,Protective Clothing & Uniforms,163
http://statistics.data.gov.uk/id/local-authority/12UE,Huntingdonshire District Council,03/03/2017,205143,1093980,5,903.6,Dts Solutions (Uk) Ltd,CR001981,Domestic Refuse,Vehicle Parts & Fittings,625
http://statistics.data.gov.uk/id/local-authority/12UE,Huntingdonshire District Council,23/03/2017,205161,1094135,5,"1,117.20",Dts Solutions (Uk) Ltd,CR001981,Domestic Refuse,Vehicle Parts & Fittings,625
http://statistics.data.gov.uk/id/local-authority/12UE,Huntingdonshire District Council,23/03/2017,205162,1094136,5,598.08,Dts Solutions (Uk) Ltd,CR001981,Domestic Refuse,Vehicle Parts & Fittings,625
http://statistics.data.gov.uk/id/local-authority/12UE,Huntingdonshire District Council,30/03/2017,205703,10786134,5,"1,638.82",Shb Hire Ltd,CR416566,Domestic Refuse,Vehicle Hire,607
http://statistics.data.gov.uk/id/local-authority/12UE,Huntingdonshire District Council,16/03/2017,205413,20134647,5,333.42,Intercounty Truck & Van Ltd,CR141141,Domestic Refuse,Vehicle Parts & Fittings,625
http://statistics.data.gov.uk/id/local-authority/12UE,Huntingdonshire District Council,23/03/2017,206519,55844095,5,371.7,Archant Herts & Cambs,CR415764,Domestic Refuse,Advertising/Promoting Services,255
http://statistics.data.gov.uk/id/local-authority/12UE,Huntingdonshire District Council,30/03/2017,205720,96338580,5,711.62,Terberg Matec Uk Ltd,CR402183,Domestic Refuse,Vehicle Parts & Fittings,625
http://statistics.data.gov.uk/id/local-authority/12UE,Huntingdonshire District Council,03/03/2017,204440,4000004423,5,333.54,1st Choice Recruitment,CR416849,Domestic Refuse,Hired Staff,100
http://statistics.data.gov.uk/id/local-authority/12UE,Huntingdonshire District Council,09/03/2017,205164,4000004443,5,477.42,1st Choice Recruitment,CR416849,Domestic Refuse,Hired Staff,100
http://statistics.data.gov.uk/id/local-authority/12UE,Huntingdonshire District Council,16/03/2017,205144,4000004460,5,477.42,1st Choice Recruitment,CR416849,Domestic Refuse,Hired Staff,100
http://statistics.data.gov.uk/id/local-authority/12UE,Huntingdonshire District Council,23/03/2017,205682,4000004481,5,333.54,1st Choice Recruitment,CR416849,Domestic Refuse,Hired Staff,100
http://statistics.data.gov.uk/id/local-authority/12UE,Huntingdonshire District Council,30/03/2017,206087,4000004506,5,346.62,1st Choice Recruitment,CR416849,Domestic Refuse,Hired Staff,100
http://statistics.data.gov.uk/id/local-authority/12UE,Huntingdonshire District Council,16/03/2017,205227,9053904544,5,"25,545.08",Royal Mail,CR027083,Domestic Refuse,Postage,231
http://statistics.data.gov.uk/id/local-authority/12UE,Huntingdonshire District Council,23/03/2017,205128,01/17/HDC021,5,360,Hester Management Services Ltd,CR422903,Domestic Refuse,Consultants,711
http://statistics.data.gov.uk/id/local-authority/12UE,Huntingdonshire District Council,03/03/2017,204592,1702/25634,5,408,Gullivers Truck Hire Ltd,CR477663,Domestic Refuse,Vehicle Hire,607
http://statistics.data.gov.uk/id/local-authority/12UE,Huntingdonshire District Council,03/03/2017,204594,1702/25635,5,876,Gullivers Truck Hire Ltd,CR477663,Domestic Refuse,Vehicle Hire,607
http://statistics.data.gov.uk/id/local-authority/12UE,Huntingdonshire District Council,09/03/2017,204864,1702/27673,5,876,Gullivers Truck Hire Ltd,CR477663,Domestic Refuse,Vehicle Hire,607
http://statistics.data.gov.uk/id/local-authority/12UE,Huntingdonshire District Council,09/03/2017,204863,1702/27682,5,408,Gullivers Truck Hire Ltd,CR477663,Domestic Refuse,Vehicle Hire,607
http://statistics.data.gov.uk/id/local-authority/12UE,Huntingdonshire District Council,16/03/2017,206038,1702/30514,5,408,Gullivers Truck Hire Ltd,CR477663,Domestic Refuse,Vehicle Hire,607
http://statistics.data.gov.uk/id/local-authority/12UE,Huntingdonshire District Council,16/03/2017,206039,1702/30515,5,876,Gullivers Truck Hire Ltd,CR477663,Domestic Refuse,Vehicle Hire,607
http://statistics.data.gov.uk/id/local-authority/12UE,Huntingdonshire District Council,23/03/2017,206041,1702/32449,5,408,Gullivers Truck Hire Ltd,CR477663,Domestic Refuse,Vehicle Hire,607
http://statistics.data.gov.uk/id/local-authority/12UE,Huntingdonshire District Council,23/03/2017,206040,1702/32450,5,876,Gullivers Truck Hire Ltd,CR477663,Domestic Refuse,Vehicle Hire,607
http://statistics.data.gov.uk/id/local-authority/12UE,Huntingdonshire District Council,30/03/2017,206046,1703/36586,5,408,Gullivers Truck Hire Ltd,CR477663,Domestic Refuse,Vehicle Hire,607
http://statistics.data.gov.uk/id/local-authority/12UE,Huntingdonshire District Council,30/03/2017,206043,1703/36587,5,876,Gullivers Truck Hire Ltd,CR477663,Domestic Refuse,Vehicle Hire,607
http://statistics.data.gov.uk/id/local-authority/12UE,Huntingdonshire District Council,30/03/2017,206042,1703/36588,5,"2,160.00",Gullivers Truck Hire Ltd,CR477663,Domestic Refuse,Vehicle Hire,607
http://statistics.data.gov.uk/id/local-authority/12UE,Huntingdonshire District Council,16/03/2017,205126,272069I,5,169.96,A C Commercials,CR000141,Domestic Refuse,Vehicle Parts & Fittings,625
http://statistics.data.gov.uk/id/local-authority/12UE,Huntingdonshire District Council,03/03/2017,204210,DE11014195,5,330.64,Dennis Eagle Ltd,CR000200,Domestic Refuse,Vehicle Parts & Fittings,625
http://statistics.data.gov.uk/id/local-authority/12UE,Huntingdonshire District Council,03/03/2017,204211,DE11014196,5,424.99,Dennis Eagle Ltd,CR000200,Domestic Refuse,Vehicle Parts & Fittings,625
http://statistics.data.gov.uk/id/local-authority/12UE,Huntingdonshire District Council,03/03/2017,204464,DE11014911,5,626.1,Dennis Eagle Ltd,CR000200,Domestic Refuse,Vehicle Parts & Fittings,625
http://statistics.data.gov.uk/id/local-authority/12UE,Huntingdonshire District Council,03/03/2017,204447,DE11015550,5,"2,027.03",Dennis Eagle Ltd,CR000200,Domestic Refuse,Vehicle Parts & Fittings,625
http://statistics.data.gov.uk/id/local-authority/12UE,Huntingdonshire District Council,09/03/2017,205120,DE11017314,5,813.75,Dennis Eagle Ltd,CR000200,Domestic Refuse,Vehicle Parts & Fittings,625
http://statistics.data.gov.uk/id/local-authority/12UE,Huntingdonshire District Council,23/03/2017,205113,DE11019381,5,172.04,Dennis Eagle Ltd,CR000200,Domestic Refuse,Vehicle Parts & Fittings,625
http://statistics.data.gov.uk/id/local-authority/12UE,Huntingdonshire District Council,23/03/2017,205113,DE11019381,5,276.52,Dennis Eagle Ltd,CR000200,Domestic Refuse,Vehicle Parts & Fittings,625
http://statistics.data.gov.uk/id/local-authority/12UE,Huntingdonshire District Council,23/03/2017,205172,DE11020119,5,533.6,Dennis Eagle Ltd,CR000200,Domestic Refuse,Vehicle Parts & Fittings,625
http://statistics.data.gov.uk/id/local-authority/12UE,Huntingdonshire District Council,23/03/2017,205675,DE11020772,5,"1,372.00",Dennis Eagle Ltd,CR000200,Domestic Refuse,Vehicle Parts & Fittings,625
http://statistics.data.gov.uk/id/local-authority/12UE,Huntingdonshire District Council,30/03/2017,206074,DE11022119,5,446.8,Dennis Eagle Ltd,CR000200,Domestic Refuse,Vehicle Parts & Fittings,625
http://statistics.data.gov.uk/id/local-authority/12UE,Huntingdonshire District Council,30/03/2017,206073,DE11022453,5,"3,246.50",Dennis Eagle Ltd,CR000200,Domestic Refuse,Vehicle Parts & Fittings,625
http://statistics.data.gov.uk/id/local-authority/12UE,Huntingdonshire District Council,03/03/2017,204514,IN0576715,5,"3,449.67",Staffline Group,CR416827,Domestic Refuse,Hired Staff,100
http://statistics.data.gov.uk/id/local-authority/12UE,Huntingdonshire District Council,03/03/2017,204512,IN0576716,5,"3,966.09",Staffline Group,CR416827,Domestic Refuse,Hired Staff,100
http://statistics.data.gov.uk/id/local-authority/12UE,Huntingdonshire District Council,03/03/2017,204886,IN0578184,5,"2,109.62",Staffline Group,CR416827,Domestic Refuse,Hired Staff,100
http://statistics.data.gov.uk/id/local-authority/12UE,Huntingdonshire District Council,03/03/2017,204884,IN0578185,5,"3,569.42",Staffline Group,CR416827,Domestic Refuse,Hired Staff,100
http://statistics.data.gov.uk/id/local-authority/12UE,Huntingdonshire District Council,16/03/2017,205272,IN0579948,5,"2,914.34",Staffline Group,CR416827,Domestic Refuse,Hired Staff,100
http://statistics.data.gov.uk/id/local-authority/12UE,Huntingdonshire District Council,16/03/2017,205267,IN0579949,5,"5,898.96",Staffline Group,CR416827,Domestic Refuse,Hired Staff,100
http://statistics.data.gov.uk/id/local-authority/12UE,Huntingdonshire District Council,16/03/2017,205273,IN0581628,5,"2,209.52",Staffline Group,CR416827,Domestic Refuse,Hired Staff,100
http://statistics.data.gov.uk/id/local-authority/12UE,Huntingdonshire District Council,16/03/2017,205268,IN0581629,5,"4,398.26",Staffline Group,CR416827,Domestic Refuse,Hired Staff,100
http://statistics.data.gov.uk/id/local-authority/12UE,Huntingdonshire District Council,23/03/2017,206133,IN0583225,5,"2,670.95",Staffline Group,CR416827,Domestic Refuse,Hired Staff,100
http://statistics.data.gov.uk/id/local-authority/12UE,Huntingdonshire District Council,23/03/2017,206128,IN0583226,5,"3,256.97",Staffline Group,CR416827,Domestic Refuse,Hired Staff,100
http://statistics.data.gov.uk/id/local-authority/12UE,Huntingdonshire District Council,30/03/2017,206134,IN0584346,5,647.45,Staffline Group,CR416827,Domestic Refuse,Hired Staff,100
http://statistics.data.gov.uk/id/local-authority/12UE,Huntingdonshire District Council,30/03/2017,206129,IN0584347,5,"1,727.68",Staffline Group,CR416827,Domestic Refuse,Hired Staff,100
http://statistics.data.gov.uk/id/local-authority/12UE,Huntingdonshire District Council,09/03/2017,204588,SINV105247,5,"2,397.66",Gelpack Excelsior Limited,CR002966,Domestic Refuse,Refuse Sacks,552
http://statistics.data.gov.uk/id/local-authority/12UE,Huntingdonshire District Council,09/03/2017,205398,234,5,168,Dms Home Improvements & Electrical,CR479202,E F H And Depots,Building Mtce,303
http://statistics.data.gov.uk/id/local-authority/12UE,Huntingdonshire District Council,16/03/2017,206148,31662,5,"1,349.38",Hi-Spec Facilities Services Plc,CR423413,E F H And Depots,Building Cleaning,440
http://statistics.data.gov.uk/id/local-authority/12UE,Huntingdonshire District Council,30/03/2017,206146,31876,5,"1,349.38",Hi-Spec Facilities Services Plc,CR423413,E F H And Depots,Building Cleaning,440
http://statistics.data.gov.uk/id/local-authority/12UE,Huntingdonshire District Council,23/03/2017,205940,65924,5,"6,070.83",Haven Power Ltd,CR455940,E F H And Depots,Electricity,420
http://statistics.data.gov.uk/id/local-authority/12UE,Huntingdonshire District Council,23/03/2017,205950,65924,5,"5,049.51",Swalec,CR407130,E F H And Depots,Electricity,420
http://statistics.data.gov.uk/id/local-authority/12UE,Huntingdonshire District Council,23/03/2017,206349,12489089940,5,550.26,E-On Energy,CR416430,E F H And Depots,Gas,421
http://statistics.data.gov.uk/id/local-authority/12UE,Huntingdonshire District Council,16/03/2017,204898,CD970051401,5,309.6,Omega Red Group,CR411029,E F H And Depots,Building Mtce,303
http://statistics.data.gov.uk/id/local-authority/12UE,Huntingdonshire District Council,30/03/2017,205740,SAC014464,5,715.68,Aitchison Rafferty,CR422382,E F H And Depots,Consultants,711
http://statistics.data.gov.uk/id/local-authority/12UE,Huntingdonshire District Council,09/03/2017,204815,9053863529,5,76.97,Royal Mail,CR027083,Electoral Registration,Postage,231
http://statistics.data.gov.uk/id/local-authority/12UE,Huntingdonshire District Council,16/03/2017,205227,9053904544,5,459.04,Royal Mail,CR027083,Electoral Registration,Postage,231
http://statistics.data.gov.uk/id/local-authority/12UE,Huntingdonshire District Council,30/03/2017,205951,9053991655,5,102.13,Royal Mail,CR027083,Electoral Registration,Postage,231
http://statistics.data.gov.uk/id/local-authority/12UE,Huntingdonshire District Council,03/03/2017,204255,IN16PS17000419,5,700.71,Whistl Uk Ltd,CR424061,Electoral Registration,Postage,231
http://statistics.data.gov.uk/id/local-authority/12UE,Huntingdonshire District Council,03/03/2017,204256,IN16PS17000624,5,122.7,Whistl Uk Ltd,CR424061,Electoral Registration,Postage,231
http://statistics.data.gov.uk/id/local-authority/12UE,Huntingdonshire District Council,09/03/2017,204812,IN16PS17000747,5,118.26,Whistl Uk Ltd,CR424061,Electoral Registration,Postage,231
http://statistics.data.gov.uk/id/local-authority/12UE,Huntingdonshire District Council,16/03/2017,204811,IN16PS17000876,5,95.59,Whistl Uk Ltd,CR424061,Electoral Registration,Postage,231
http://statistics.data.gov.uk/id/local-authority/12UE,Huntingdonshire District Council,23/03/2017,205222,IN16PS17001028,5,220.96,Whistl Uk Ltd,CR424061,Electoral Registration,Postage,231
http://statistics.data.gov.uk/id/local-authority/12UE,Huntingdonshire District Council,30/03/2017,205668,IN16PS17001150,5,116.49,Whistl Uk Ltd,CR424061,Electoral Registration,Postage,231
http://statistics.data.gov.uk/id/local-authority/12UE,Huntingdonshire District Council,16/03/2017,204489,37793,5,578.46,Trinity Engineering & Component Supplies Ltd,CR455479,Environmental Health M Us,Materials,550
http://statistics.data.gov.uk/id/local-authority/12UE,Huntingdonshire District Council,03/03/2017,203643,604522987,5,"1,443.08",Anglian Water,CR000071,Environmental Imps Mgt,Water & Sewerage,432
http://statistics.data.gov.uk/id/local-authority/12UE,Huntingdonshire District Council,30/03/2017,206820,5169,5,888,Autec Training  Ltd,CR487235,Environmental Management,Training,130
http://statistics.data.gov.uk/id/local-authority/12UE,Huntingdonshire District Council,30/03/2017,207069,1254073808,5,117.31,Orange Airtime,CR455799,Environmental Management,Telephone &Mobile Phonecharges,240
http://statistics.data.gov.uk/id/local-authority/12UE,Huntingdonshire District Council,09/03/2017,205605,U001280,,"50,541.60",Technology One Ltd,CR424111,Financial Mgt System Replacmnt,Software,206
http://statistics.data.gov.uk/id/local-authority/12UE,Huntingdonshire District Council,30/03/2017,206554,U001359,,"19,260.00",Technology One Ltd,CR424111,Financial Mgt System Replacmnt,Software,206
http://statistics.data.gov.uk/id/local-authority/12UE,Huntingdonshire District Council,03/03/2017,204475,34544,5,464.44,Meyer Scott Recruitment Limited,CR422369,Financial Services Mus,Hired Staff,100
http://statistics.data.gov.uk/id/local-authority/12UE,Huntingdonshire District Council,16/03/2017,206030,34578,5,366.66,Meyer Scott Recruitment Limited,CR422369,Financial Services Mus,Hired Staff,100
http://statistics.data.gov.uk/id/local-authority/12UE,Huntingdonshire District Council,30/03/2017,206938,34610,5,488.88,Meyer Scott Recruitment Limited,CR422369,Financial Services Mus,Hired Staff,100
http://statistics.data.gov.uk/id/local-authority/12UE,Huntingdonshire District Council,23/03/2017,206031,34640,5,480.73,Meyer Scott Recruitment Limited,CR422369,Financial Services Mus,Hired Staff,100
http://statistics.data.gov.uk/id/local-authority/12UE,Huntingdonshire District Council,30/03/2017,206029,34671,5,366.66,Meyer Scott Recruitment Limited,CR422369,Financial Services Mus,Hired Staff,100
http://statistics.data.gov.uk/id/local-authority/12UE,Huntingdonshire District Council,23/03/2017,206754,104152,5,756,Lavat Consulting Ltd T/A Pstax,CR480410,Financial Services Mus,Consultants,711
http://statistics.data.gov.uk/id/local-authority/12UE,Huntingdonshire District Council,03/03/2017,204195,267721,5,562.06,First Recruitment Group Ltd,CR424012,Financial Services Mus,Hired Staff,100
http://statistics.data.gov.uk/id/local-authority/12UE,Huntingdonshire District Council,09/03/2017,204539,268268,5,449.64,First Recruitment Group Ltd,CR424012,Financial Services Mus,Hired Staff,100
http://statistics.data.gov.uk/id/local-authority/12UE,Huntingdonshire District Council,16/03/2017,204825,268769,5,457.14,First Recruitment Group Ltd,CR424012,Financial Services Mus,Hired Staff,100
http://statistics.data.gov.uk/id/local-authority/12UE,Huntingdonshire District Council,23/03/2017,205234,269248,5,554.56,First Recruitment Group Ltd,CR424012,Financial Services Mus,Hired Staff,100
http://statistics.data.gov.uk/id/local-authority/12UE,Huntingdonshire District Council,30/03/2017,205607,269737,5,322.25,First Recruitment Group Ltd,CR424012,Financial Services Mus,Hired Staff,100
http://statistics.data.gov.uk/id/local-authority/12UE,Huntingdonshire District Council,03/03/2017,204116,692666,5,94.8,Callcredit Ltd,CR455548,Financial Services Mus,Enquiries,723
http://statistics.data.gov.uk/id/local-authority/12UE,Huntingdonshire District Council,30/03/2017,205613,696794,5,346.8,Callcredit Ltd,CR455548,Financial Services Mus,Enquiries,723
http://statistics.data.gov.uk/id/local-authority/12UE,Huntingdonshire District Council,23/03/2017,205328,3124933,5,"3,540.00",Cipfa Business Limited,CR480088,Financial Services Mus,Corporate Subscriptions,754
http://statistics.data.gov.uk/id/local-authority/12UE,Huntingdonshire District Council,23/03/2017,205232,3125445,5,"4,212.00",Cipfa Business Limited,CR480088,Financial Services Mus,Corporate Subscriptions,754
http://statistics.data.gov.uk/id/local-authority/12UE,Huntingdonshire District Council,23/03/2017,206371,ACT054,5,300,Arlingclose,CR478136,Financial Services Mus,Training,130
http://statistics.data.gov.uk/id/local-authority/12UE,Huntingdonshire District Council,03/03/2017,204192,BC00242,5,"8,910.00",Barry Cornelius Associates,CR422523,Financial Services Mus,Hired Staff,100
http://statistics.data.gov.uk/id/local-authority/12UE,Huntingdonshire District Council,16/03/2017,204490,37794,5,"1,053.94",Trinity Engineering & Component Supplies Ltd,CR455479,Fleet Management,Materials,550
http://statistics.data.gov.uk/id/local-authority/12UE,Huntingdonshire District Council,30/03/2017,206119,37867,5,370.97,Trinity Engineering & Component Supplies Ltd,CR455479,Fleet Management,Materials,550
http://statistics.data.gov.uk/id/local-authority/12UE,Huntingdonshire District Council,30/03/2017,206121,37868,5,615.82,Trinity Engineering & Component Supplies Ltd,CR455479,Fleet Management,Materials,550
http://statistics.data.gov.uk/id/local-authority/12UE,Huntingdonshire District Council,30/03/2017,206123,37869,5,307.55,Trinity Engineering & Component Supplies Ltd,CR455479,Fleet Management,Materials,550
http://statistics.data.gov.uk/id/local-authority/12UE,Huntingdonshire District Council,03/03/2017,204491,154709,5,"1,578.56",Tecalemit Garage Equipment Co Ltd,CR477683,Fleet Management,Equipment,500
http://statistics.data.gov.uk/id/local-authority/12UE,Huntingdonshire District Council,03/03/2017,203751,EI575528,5,846.37,United Eco Services Ltd,CR477773,Fleet Management,Materials,550
http://statistics.data.gov.uk/id/local-authority/12UE,Huntingdonshire District Council,30/03/2017,205712,SN2602252,5,381.6,Berendsen,CR478298,Fleet Management,Materials,550
http://statistics.data.gov.uk/id/local-authority/12UE,Huntingdonshire District Council,23/03/2017,204974,20136188,5,423.6,Campden Technology Ltd,CR032220,Food Safety,Corporate Subscriptions,754
http://statistics.data.gov.uk/id/local-authority/12UE,Huntingdonshire District Council,16/03/2017,206086,161,5,383.16,Arb Utility Training,CR422366,Grounds Maintenance,Equipment Maintenance,511
http://statistics.data.gov.uk/id/local-authority/12UE,Huntingdonshire District Council,03/03/2017,205121,6613,5,103.2,D & H Sign & Display Services,CR030353,Grounds Maintenance,Vehicle Parts & Fittings,625
http://statistics.data.gov.uk/id/local-authority/12UE,Huntingdonshire District Council,09/03/2017,204593,55570,5,66.9,Landmark Trading Ltd,CR411433,Grounds Maintenance,Protective Clothing & Uniforms,163
http://statistics.data.gov.uk/id/local-authority/12UE,Huntingdonshire District Council,03/03/2017,204272,101409,5,159.12,Arthur Ibbett Ltd,CR000430,Grounds Maintenance,Vehicle Parts & Fittings,625
http://statistics.data.gov.uk/id/local-authority/12UE,Huntingdonshire District Council,23/03/2017,205166,102728,5,309.29,Arthur Ibbett Ltd,CR000430,Grounds Maintenance,Vehicle Parts & Fittings,625
http://statistics.data.gov.uk/id/local-authority/12UE,Huntingdonshire District Council,16/03/2017,205124,183788,5,276.84,Ate,CR401360,Grounds Maintenance,Vehicle Parts & Fittings,625
http://statistics.data.gov.uk/id/local-authority/12UE,Huntingdonshire District Council,23/03/2017,205282,392882,5,"1,091.96",Smi Group,CR423139,Grounds Maintenance,Protective Clothing & Uniforms,163
http://statistics.data.gov.uk/id/local-authority/12UE,Huntingdonshire District Council,30/03/2017,205710,1078136,5,720,Shb Hire Ltd,CR416566,Grounds Maintenance,Vehicle Hire,607
http://statistics.data.gov.uk/id/local-authority/12UE,Huntingdonshire District Council,03/03/2017,205143,1093980,5,903.6,Dts Solutions (Uk) Ltd,CR001981,Grounds Maintenance,Vehicle Parts & Fittings,625
http://statistics.data.gov.uk/id/local-authority/12UE,Huntingdonshire District Council,03/03/2017,204858,1634546,5,756,Days Contract Hire,CR417030,Grounds Maintenance,Vehicle Hire,607
http://statistics.data.gov.uk/id/local-authority/12UE,Huntingdonshire District Council,30/03/2017,206421,10719154,5,269.4,Cambridgeshire County Council,CR006678,Grounds Maintenance,Waste Disposal,763
http://statistics.data.gov.uk/id/local-authority/12UE,Huntingdonshire District Council,30/03/2017,206420,10719155,5,378.6,Cambridgeshire County Council,CR006678,Grounds Maintenance,Waste Disposal,763
http://statistics.data.gov.uk/id/local-authority/12UE,Huntingdonshire District Council,03/03/2017,203809,10777500,5,"1,776.30",Shb Hire Ltd,CR416566,Grounds Maintenance,Vehicle Hire,607
http://statistics.data.gov.uk/id/local-authority/12UE,Huntingdonshire District Council,03/03/2017,203810,10777501,5,864.9,Shb Hire Ltd,CR416566,Grounds Maintenance,Vehicle Hire,607
http://statistics.data.gov.uk/id/local-authority/12UE,Huntingdonshire District Council,03/03/2017,203811,10777502,5,797.11,Shb Hire Ltd,CR416566,Grounds Maintenance,Vehicle Hire,607
http://statistics.data.gov.uk/id/local-authority/12UE,Huntingdonshire District Council,03/03/2017,203812,10777503,5,883.5,Shb Hire Ltd,CR416566,Grounds Maintenance,Vehicle Hire,607
http://statistics.data.gov.uk/id/local-authority/12UE,Huntingdonshire District Council,30/03/2017,205708,10786135,5,781.2,Shb Hire Ltd,CR416566,Grounds Maintenance,Vehicle Hire,607
http://statistics.data.gov.uk/id/local-authority/12UE,Huntingdonshire District Council,30/03/2017,205713,10786137,5,798,Shb Hire Ltd,CR416566,Grounds Maintenance,Vehicle Hire,607
http://statistics.data.gov.uk/id/local-authority/12UE,Huntingdonshire District Council,16/03/2017,205142,27035373,5,"1,124.16",Archant Herts And Cambs,CR403271,Grounds Maintenance,Recruitment Costs,120
http://statistics.data.gov.uk/id/local-authority/12UE,Huntingdonshire District Council,23/03/2017,205676,272240I,5,324.96,A C Commercials,CR000141,Grounds Maintenance,Vehicle Parts & Fittings,625
http://statistics.data.gov.uk/id/local-authority/12UE,Huntingdonshire District Council,30/03/2017,206139,RSIN0209649,5,733.2,Rigby Taylor Ltd,CR001345,Grounds Maintenance,Materials,550
http://statistics.data.gov.uk/id/local-authority/12UE,Huntingdonshire District Council,03/03/2017,608497,9094,5,352.8,Steves Taxis & Private Hire,CR155956,Homelessness Management,Travel Expenses,636
http://statistics.data.gov.uk/id/local-authority/12UE,Huntingdonshire District Council,16/03/2017,206173,19082,5,"1,389.30",King Street Housing Society,CR409301,Homelessness Management,Management Charge,733
http://statistics.data.gov.uk/id/local-authority/12UE,Huntingdonshire District Council,30/03/2017,199954,19438,5,"1,564.68",King Street Housing Society,CR409301,Homelessness Management,Management Charge,733
http://statistics.data.gov.uk/id/local-authority/12UE,Huntingdonshire District Council,30/03/2017,199949,19439,5,"1,537.57",King Street Housing Society,CR409301,Homelessness Management,Management Charge,733
http://statistics.data.gov.uk/id/local-authority/12UE,Huntingdonshire District Council,16/03/2017,199958,19449,5,760.17,King Street Housing Society,CR409301,Homelessness Management,Management Charge,733
http://statistics.data.gov.uk/id/local-authority/12UE,Huntingdonshire District Council,30/03/2017,201198,19469,5,"1,544.73",King Street Housing Society,CR409301,Homelessness Management,Management Charge,733
http://statistics.data.gov.uk/id/local-authority/12UE,Huntingdonshire District Council,30/03/2017,203188,19519,5,"1,980.52",King Street Housing Society,CR409301,Homelessness Management,Management Charge,733
http://statistics.data.gov.uk/id/local-authority/12UE,Huntingdonshire District Council,30/03/2017,206979,19547,5,"1,507.31",King Street Housing Society,CR409301,Homelessness Management,Management Charge,733
http://statistics.data.gov.uk/id/local-authority/12UE,Huntingdonshire District Council,30/03/2017,206981,19580,5,881.66,King Street Housing Society,CR409301,Homelessness Management,Management Charge,733
http://statistics.data.gov.uk/id/local-authority/12UE,Huntingdonshire District Council,30/03/2017,206978,19594,5,"1,497.24",King Street Housing Society,CR409301,Homelessness Management,Management Charge,733
http://statistics.data.gov.uk/id/local-authority/12UE,Huntingdonshire District Council,30/03/2017,206980,19597,5,"1,279.76",King Street Housing Society,CR409301,Homelessness Management,Management Charge,733
http://statistics.data.gov.uk/id/local-authority/12UE,Huntingdonshire District Council,30/03/2017,206975,19598,5,"1,257.75",King Street Housing Society,CR409301,Homelessness Management,Management Charge,733
http://statistics.data.gov.uk/id/local-authority/12UE,Huntingdonshire District Council,30/03/2017,206974,19599,5,"2,059.17",King Street Housing Society,CR409301,Homelessness Management,Bed & Breakfast Payment,818
http://statistics.data.gov.uk/id/local-authority/12UE,Huntingdonshire District Council,30/03/2017,206977,19606,5,"6,930.62",King Street Housing Society,CR409301,Homelessness Management,Management Charge,733
http://statistics.data.gov.uk/id/local-authority/12UE,Huntingdonshire District Council,30/03/2017,206976,19609,5,"4,783.74",King Street Housing Society,CR409301,Homelessness Management,Bed & Breakfast Payment,818
http://statistics.data.gov.uk/id/local-authority/12UE,Huntingdonshire District Council,03/03/2017,205246,384/686,,315,Jaz Yorks Ltd,CR160753,Homelessness Management,Bed & Breakfast Payment,818
http://statistics.data.gov.uk/id/local-authority/12UE,Huntingdonshire District Council,03/03/2017,205245,384/688,,385,Jaz Yorks Ltd,CR160753,Homelessness Management,Bed & Breakfast Payment,818
http://statistics.data.gov.uk/id/local-authority/12UE,Huntingdonshire District Council,03/03/2017,205244,384/689,,385,Jaz Yorks Ltd,CR160753,Homelessness Management,Bed & Breakfast Payment,818
http://statistics.data.gov.uk/id/local-authority/12UE,Huntingdonshire District Council,03/03/2017,205242,384/691,,385,Jaz Yorks Ltd,CR160753,Homelessness Management,Bed & Breakfast Payment,818
http://statistics.data.gov.uk/id/local-authority/12UE,Huntingdonshire District Council,03/03/2017,205241,384/692,,455,Jaz Yorks Ltd,CR160753,Homelessness Management,Bed & Breakfast Payment,818
http://statistics.data.gov.uk/id/local-authority/12UE,Huntingdonshire District Council,03/03/2017,205240,384/693,,315,Jaz Yorks Ltd,CR160753,Homelessness Management,Bed & Breakfast Payment,818
http://statistics.data.gov.uk/id/local-authority/12UE,Huntingdonshire District Council,03/03/2017,205239,384/695,,450,Jaz Yorks Ltd,CR160753,Homelessness Management,Bed & Breakfast Payment,818
http://statistics.data.gov.uk/id/local-authority/12UE,Huntingdonshire District Council,03/03/2017,205251,384/697,,455,Jaz Yorks Ltd,CR160753,Homelessness Management,Bed & Breakfast Payment,818
http://statistics.data.gov.uk/id/local-authority/12UE,Huntingdonshire District Council,03/03/2017,205249,384/698,,315,Jaz Yorks Ltd,CR160753,Homelessness Management,Bed & Breakfast Payment,818
http://statistics.data.gov.uk/id/local-authority/12UE,Huntingdonshire District Council,03/03/2017,205252,384/699,,385,Jaz Yorks Ltd,CR160753,Homelessness Management,Bed & Breakfast Payment,818
http://statistics.data.gov.uk/id/local-authority/12UE,Huntingdonshire District Council,09/03/2017,205697,384/700,,455,Jaz Yorks Ltd,CR160753,Homelessness Management,Bed & Breakfast Payment,818
http://statistics.data.gov.uk/id/local-authority/12UE,Huntingdonshire District Council,09/03/2017,205696,384/701,,315,Jaz Yorks Ltd,CR160753,Homelessness Management,Bed & Breakfast Payment,818
http://statistics.data.gov.uk/id/local-authority/12UE,Huntingdonshire District Council,09/03/2017,205695,384/702,,275,Jaz Yorks Ltd,CR160753,Homelessness Management,Bed & Breakfast Payment,818
http://statistics.data.gov.uk/id/local-authority/12UE,Huntingdonshire District Council,09/03/2017,205694,384/703,,375,Jaz Yorks Ltd,CR160753,Homelessness Management,Bed & Breakfast Payment,818
http://statistics.data.gov.uk/id/local-authority/12UE,Huntingdonshire District Council,09/03/2017,205693,384/704,,525,Jaz Yorks Ltd,CR160753,Homelessness Management,Bed & Breakfast Payment,818
http://statistics.data.gov.uk/id/local-authority/12UE,Huntingdonshire District Council,23/03/2017,206429,384/705,,315,Jaz Yorks Ltd,CR160753,Homelessness Management,Bed & Breakfast Payment,818
http://statistics.data.gov.uk/id/local-authority/12UE,Huntingdonshire District Council,23/03/2017,206431,384/706,,315,Jaz Yorks Ltd,CR160753,Homelessness Management,Bed & Breakfast Payment,818
http://statistics.data.gov.uk/id/local-authority/12UE,Huntingdonshire District Council,23/03/2017,206432,384/707,,455,Jaz Yorks Ltd,CR160753,Homelessness Management,Bed & Breakfast Payment,818
http://statistics.data.gov.uk/id/local-authority/12UE,Huntingdonshire District Council,23/03/2017,206433,384/708,,315,Jaz Yorks Ltd,CR160753,Homelessness Management,Bed & Breakfast Payment,818
http://statistics.data.gov.uk/id/local-authority/12UE,Huntingdonshire District Council,23/03/2017,206427,384/709,,525,Jaz Yorks Ltd,CR160753,Homelessness Management,Bed & Breakfast Payment,818
http://statistics.data.gov.uk/id/local-authority/12UE,Huntingdonshire District Council,23/03/2017,206428,384/709,,385,Jaz Yorks Ltd,CR160753,Homelessness Management,Bed & Breakfast Payment,818
http://statistics.data.gov.uk/id/local-authority/12UE,Huntingdonshire District Council,30/03/2017,206962,384/711,,315,Jaz Yorks Ltd,CR160753,Homelessness Management,Bed & Breakfast Payment,818
http://statistics.data.gov.uk/id/local-authority/12UE,Huntingdonshire District Council,30/03/2017,206963,384/712,,455,Jaz Yorks Ltd,CR160753,Homelessness Management,Bed & Breakfast Payment,818
http://statistics.data.gov.uk/id/local-authority/12UE,Huntingdonshire District Council,30/03/2017,206964,384/713,,315,Jaz Yorks Ltd,CR160753,Homelessness Management,Bed & Breakfast Payment,818
http://statistics.data.gov.uk/id/local-authority/12UE,Huntingdonshire District Council,30/03/2017,206965,384/714,,385,Jaz Yorks Ltd,CR160753,Homelessness Management,Bed & Breakfast Payment,818
http://statistics.data.gov.uk/id/local-authority/12UE,Huntingdonshire District Council,30/03/2017,206966,384/715,,525,Jaz Yorks Ltd,CR160753,Homelessness Management,Bed & Breakfast Payment,818
http://statistics.data.gov.uk/id/local-authority/12UE,Huntingdonshire District Council,30/03/2017,206968,384/716,,315,Jaz Yorks Ltd,CR160753,Homelessness Management,Bed & Breakfast Payment,818
http://statistics.data.gov.uk/id/local-authority/12UE,Huntingdonshire District Council,30/03/2017,206969,384/717,,455,Jaz Yorks Ltd,CR160753,Homelessness Management,Bed & Breakfast Payment,818
http://statistics.data.gov.uk/id/local-authority/12UE,Huntingdonshire District Council,30/03/2017,206970,384/718,,315,Jaz Yorks Ltd,CR160753,Homelessness Management,Bed & Breakfast Payment,818
http://statistics.data.gov.uk/id/local-authority/12UE,Huntingdonshire District Council,30/03/2017,207037,384/720,,525,Jaz Yorks Ltd,CR160753,Homelessness Management,Bed & Breakfast Payment,818
http://statistics.data.gov.uk/id/local-authority/12UE,Huntingdonshire District Council,30/03/2017,207038,384/721,,455,Jaz Yorks Ltd,CR160753,Homelessness Management,Bed & Breakfast Payment,818
http://statistics.data.gov.uk/id/local-authority/12UE,Huntingdonshire District Council,30/03/2017,207039,384/722,,315,Jaz Yorks Ltd,CR160753,Homelessness Management,Bed & Breakfast Payment,818
http://statistics.data.gov.uk/id/local-authority/12UE,Huntingdonshire District Council,16/03/2017,201192,D1IN/00025710,5,"35,000.00",Stonham Home Group,CR455893,Homelessness Management,Management Charge,733
http://statistics.data.gov.uk/id/local-authority/12UE,Huntingdonshire District Council,03/03/2017,205237,EC062,5,480,Ukos Projects Ltd,CR423164,Homelessness Management,Bed & Breakfast Payment,818
http://statistics.data.gov.uk/id/local-authority/12UE,Huntingdonshire District Council,09/03/2017,205667,RC-HD005,5,"3,594.00",Rent Connect Housing Ltd,CR424138,Homelessness Management,Bed & Breakfast Payment,818
http://statistics.data.gov.uk/id/local-authority/12UE,Huntingdonshire District Council,23/03/2017,206434,RC-HDC006,5,"5,280.00",Rent Connect Housing Ltd,CR424138,Homelessness Management,Bed & Breakfast Payment,818
http://statistics.data.gov.uk/id/local-authority/12UE,Huntingdonshire District Council,16/03/2017,609211,3970,5,"6,000.00",Intec For Business Ltd,CR408959,Housing  Benefits Admin,Software,206
http://statistics.data.gov.uk/id/local-authority/12UE,Huntingdonshire District Council,03/03/2017,204116,692666,5,24,Callcredit Ltd,CR455548,Housing  Benefits Admin,Enquiries,723
http://statistics.data.gov.uk/id/local-authority/12UE,Huntingdonshire District Council,30/03/2017,205613,696794,5,22.8,Callcredit Ltd,CR455548,Housing  Benefits Admin,Enquiries,723
http://statistics.data.gov.uk/id/local-authority/12UE,Huntingdonshire District Council,03/03/2017,205110,961510,5,"1,021.20",Morgan Hunt Public Uk Ltd,CR415693,Housing  Benefits Admin,Hired Staff,100
http://statistics.data.gov.uk/id/local-authority/12UE,Huntingdonshire District Council,03/03/2017,205111,961511,5,963.28,Morgan Hunt Public Uk Ltd,CR415693,Housing  Benefits Admin,Hired Staff,100
http://statistics.data.gov.uk/id/local-authority/12UE,Huntingdonshire District Council,09/03/2017,205322,963133,5,"1,021.20",Morgan Hunt Public Uk Ltd,CR415693,Housing  Benefits Admin,Hired Staff,100
http://statistics.data.gov.uk/id/local-authority/12UE,Huntingdonshire District Council,09/03/2017,205321,963134,5,970.48,Morgan Hunt Public Uk Ltd,CR415693,Housing  Benefits Admin,Hired Staff,100
http://statistics.data.gov.uk/id/local-authority/12UE,Huntingdonshire District Council,16/03/2017,205743,964669,5,"1,014.30",Morgan Hunt Public Uk Ltd,CR415693,Housing  Benefits Admin,Hired Staff,100
http://statistics.data.gov.uk/id/local-authority/12UE,Huntingdonshire District Council,16/03/2017,205742,964670,5,944.98,Morgan Hunt Public Uk Ltd,CR415693,Housing  Benefits Admin,Hired Staff,100
http://statistics.data.gov.uk/id/local-authority/12UE,Huntingdonshire District Council,23/03/2017,206141,966173,5,"1,021.20",Morgan Hunt Public Uk Ltd,CR415693,Housing  Benefits Admin,Hired Staff,100
http://statistics.data.gov.uk/id/local-authority/12UE,Huntingdonshire District Council,23/03/2017,206140,966174,5,951.62,Morgan Hunt Public Uk Ltd,CR415693,Housing  Benefits Admin,Hired Staff,100
http://statistics.data.gov.uk/id/local-authority/12UE,Huntingdonshire District Council,30/03/2017,206762,967707,5,"1,021.20",Morgan Hunt Public Uk Ltd,CR415693,Housing  Benefits Admin,Hired Staff,100
http://statistics.data.gov.uk/id/local-authority/12UE,Huntingdonshire District Council,30/03/2017,206763,967708,5,944.7,Morgan Hunt Public Uk Ltd,CR415693,Housing  Benefits Admin,Hired Staff,100
http://statistics.data.gov.uk/id/local-authority/12UE,Huntingdonshire District Council,03/03/2017,205175,91384252,5,"1,080.00",Northgatepublic Services Uk Ltd,CR028925,Housing  Benefits Admin,Software,206
http://statistics.data.gov.uk/id/local-authority/12UE,Huntingdonshire District Council,23/03/2017,205599,91385805,5,"2,700.00",Northgatepublic Services Uk Ltd,CR028925,Housing  Benefits Admin,Software,206
http://statistics.data.gov.uk/id/local-authority/12UE,Huntingdonshire District Council,03/03/2017,204255,IN16PS17000419,5,270.31,Whistl Uk Ltd,CR424061,Housing  Benefits Admin,Postage,231
http://statistics.data.gov.uk/id/local-authority/12UE,Huntingdonshire District Council,16/03/2017,204811,IN16PS17000876,5,266.76,Whistl Uk Ltd,CR424061,Housing  Benefits Admin,Postage,231
http://statistics.data.gov.uk/id/local-authority/12UE,Huntingdonshire District Council,30/03/2017,205668,IN16PS17001150,5,568.64,Whistl Uk Ltd,CR424061,Housing  Benefits Admin,Postage,231
http://statistics.data.gov.uk/id/local-authority/12UE,Huntingdonshire District Council,03/03/2017,608496,58148,5,336,Lisson Grove Benefits Program,CR413360,Housing Management Units,Books & Publications,250
http://statistics.data.gov.uk/id/local-authority/12UE,Huntingdonshire District Council,03/03/2017,204116,692666,5,33.6,Callcredit Ltd,CR455548,Housing Management Units,Enquiries,723
http://statistics.data.gov.uk/id/local-authority/12UE,Huntingdonshire District Council,30/03/2017,205613,696794,5,31.2,Callcredit Ltd,CR455548,Housing Management Units,Enquiries,723
http://statistics.data.gov.uk/id/local-authority/12UE,Huntingdonshire District Council,03/03/2017,205361,DINV / 220584,5,"10,960.92",South Cambridgeshire District Council,CR405127,Housing Register,Management Charge,733
http://statistics.data.gov.uk/id/local-authority/12UE,Huntingdonshire District Council,30/03/2017,206865,23728,5,554.26,B. S. Graves Electrical Ltd,CR000363,Housing Services Other,Building Mtce,303
http://statistics.data.gov.uk/id/local-authority/12UE,Huntingdonshire District Council,23/03/2017,205997,48186634,5,"3,162.08",Swalec,CR407130,Housing Services Other,Electricity,420
http://statistics.data.gov.uk/id/local-authority/12UE,Huntingdonshire District Council,03/03/2017,205254,DIHH/00003007,5,"7,013.20",Luminus Homes,CR401276,Housing Services Other,Management Charge,733
http://statistics.data.gov.uk/id/local-authority/12UE,Huntingdonshire District Council,16/03/2017,206194,DIHH/00003008,5,301.01,Luminus Homes,CR401276,Housing Services Other,Building Mtce,303
http://statistics.data.gov.uk/id/local-authority/12UE,Huntingdonshire District Council,03/03/2017,205382,DIHH/00003009,5,"1,239.00",Luminus Homes,CR401276,Housing Services Other,Building Mtce,303
http://statistics.data.gov.uk/id/local-authority/12UE,Huntingdonshire District Council,23/03/2017,205604,1,5,"1,000.00",Dr Joyce M Bray,CR424622,Human Resources,Training,130
http://statistics.data.gov.uk/id/local-authority/12UE,Huntingdonshire District Council,30/03/2017,205614,2314,5,"2,268.00",Gilden Training,CR481057,Human Resources,Training,130
http://statistics.data.gov.uk/id/local-authority/12UE,Huntingdonshire District Council,23/03/2017,608840,4890,5,"3,630.00",Tree Life Ac  Ltd,CR477419,Human Resources,Training,130
http://statistics.data.gov.uk/id/local-authority/12UE,Huntingdonshire District Council,30/03/2017,608501,20809,5,307.2,Aea Bookings,CR416382,Human Resources,Training,130
http://statistics.data.gov.uk/id/local-authority/12UE,Huntingdonshire District Council,16/03/2017,204511,49763,5,"1,448.28",West Anglia Training Assoc.Ltd,CR025035,Human Resources,Training,130
http://statistics.data.gov.uk/id/local-authority/12UE,Huntingdonshire District Council,09/03/2017,205744,49946,5,654,West Anglia Training Assoc.Ltd,CR025035,Human Resources,Training,130
http://statistics.data.gov.uk/id/local-authority/12UE,Huntingdonshire District Council,03/03/2017,204314,193905,5,500.4,Cambridge City Council,CR017896,Human Resources,Training,130
http://statistics.data.gov.uk/id/local-authority/12UE,Huntingdonshire District Council,30/03/2017,205302,506826,5,270,Alere Toxicology Plc,CR423561,Human Resources,Consultants,711
http://statistics.data.gov.uk/id/local-authority/12UE,Huntingdonshire District Council,23/03/2017,608841,1184038,6,690,Nottingham City Council,CR422563,Human Resources,Training,130
http://statistics.data.gov.uk/id/local-authority/12UE,Huntingdonshire District Council,03/03/2017,204094,2017028,3,297,Xpress Software Solutions Ltd,CR480995,Human Resources,Training,130
http://statistics.data.gov.uk/id/local-authority/12UE,Huntingdonshire District Council,09/03/2017,204826,3124050,5,295,Cipfa Business Limited,CR480088,Human Resources,Training,130
http://statistics.data.gov.uk/id/local-authority/12UE,Huntingdonshire District Council,16/03/2017,205176,3124628,5,"4,338.00",Cipfa Business Limited,CR480088,Human Resources,Training,130
http://statistics.data.gov.uk/id/local-authority/12UE,Huntingdonshire District Council,30/03/2017,206370,10721723,5,"147,480.00",Cambridgeshire County Council,CR006678,Human Resources,Client Contracts,779
http://statistics.data.gov.uk/id/local-authority/12UE,Huntingdonshire District Council,30/03/2017,206990,C-0002487512,5,297.74,Computershare Vouchers Ltd,CR412205,Human Resources,Childcare Admin Vouchers,144
http://statistics.data.gov.uk/id/local-authority/12UE,Huntingdonshire District Council,16/03/2017,206025,INV-5058,5,780,Later Life Training Ltd,CR452146,Human Resources,Training,130
http://statistics.data.gov.uk/id/local-authority/12UE,Huntingdonshire District Council,16/03/2017,206027,INV-5063,5,780,Later Life Training Ltd,CR452146,Human Resources,Training,130
http://statistics.data.gov.uk/id/local-authority/12UE,Huntingdonshire District Council,14/03/2017,205962,LTHR37,,"2,625.00",Willow Hr Limited,CR422016,Human Resources,Consultants,711
http://statistics.data.gov.uk/id/local-authority/12UE,Huntingdonshire District Council,03/03/2017,204420,S/14036,5,478.8,Hbinfo Ltd,CR479354,Human Resources,Training,130
http://statistics.data.gov.uk/id/local-authority/12UE,Huntingdonshire District Council,30/03/2017,205749,1544909,5,"349,324.80",European Electronique Ltd,CR424036,Ict Capital Projects (Interim),Other I T Hardware,203
http://statistics.data.gov.uk/id/local-authority/12UE,Huntingdonshire District Council,30/03/2017,206209,3927,5,"6,593.40",Intecpublicsector,CR478150,Imd Shared Service,Software,206
http://statistics.data.gov.uk/id/local-authority/12UE,Huntingdonshire District Council,03/03/2017,205297,13266,5,542.52,Playfords Ltd,CR479055,Imd Shared Service,Other I T Hardware,203
http://statistics.data.gov.uk/id/local-authority/12UE,Huntingdonshire District Council,09/03/2017,205780,13345,5,914.52,Playfords Ltd,CR479055,Imd Shared Service,Other I T Hardware,203
http://statistics.data.gov.uk/id/local-authority/12UE,Huntingdonshire District Council,09/03/2017,205776,13347,5,524.32,Playfords Ltd,CR479055,Imd Shared Service,Other I T Hardware,203
http://statistics.data.gov.uk/id/local-authority/12UE,Huntingdonshire District Council,09/03/2017,205777,13348,5,568.72,Playfords Ltd,CR479055,Imd Shared Service,Other I T Hardware,203
http://statistics.data.gov.uk/id/local-authority/12UE,Huntingdonshire District Council,16/03/2017,205778,13397,5,500.23,Playfords Ltd,CR479055,Imd Shared Service,Other I T Hardware,203
http://statistics.data.gov.uk/id/local-authority/12UE,Huntingdonshire District Council,16/03/2017,205748,13399,5,698.03,Playfords Ltd,CR479055,Imd Shared Service,Other I T Hardware,203
http://statistics.data.gov.uk/id/local-authority/12UE,Huntingdonshire District Council,16/03/2017,205779,13402,5,333.22,Playfords Ltd,CR479055,Imd Shared Service,Other I T Hardware,203
http://statistics.data.gov.uk/id/local-authority/12UE,Huntingdonshire District Council,16/03/2017,205747,13403,5,269.34,Playfords Ltd,CR479055,Imd Shared Service,Other I T Hardware,203
http://statistics.data.gov.uk/id/local-authority/12UE,Huntingdonshire District Council,30/03/2017,206613,13480,5,538.68,Playfords Ltd,CR479055,Imd Shared Service,Other I T Hardware,203
http://statistics.data.gov.uk/id/local-authority/12UE,Huntingdonshire District Council,09/03/2017,205763,17528,5,"2,640.00",Vivid Resourcing Limited,CR423536,Imd Shared Service,Hired Staff,100
http://statistics.data.gov.uk/id/local-authority/12UE,Huntingdonshire District Council,03/03/2017,203839,18010,5,"3,720.00",Vivid Resourcing Limited,CR423536,Imd Shared Service,Hired Staff,100
http://statistics.data.gov.uk/id/local-authority/12UE,Huntingdonshire District Council,09/03/2017,204933,18180,5,"2,232.00",Vivid Resourcing Limited,CR423536,Imd Shared Service,Hired Staff,100
http://statistics.data.gov.uk/id/local-authority/12UE,Huntingdonshire District Council,30/03/2017,206205,102491,5,"5,076.00",It Asset Management Solutions Ltd,CR454032,Imd Shared Service,Software,206
http://statistics.data.gov.uk/id/local-authority/12UE,Huntingdonshire District Council,23/03/2017,205764,107318,5,"5,518.80",Idox,CR481134,Imd Shared Service,Software,206
http://statistics.data.gov.uk/id/local-authority/12UE,Huntingdonshire District Council,23/03/2017,205765,107330,5,"77,748.82",Idox,CR481134,Imd Shared Service,Software,206
http://statistics.data.gov.uk/id/local-authority/12UE,Huntingdonshire District Council,09/03/2017,204935,122801,5,844.06,Twofold Consulting,CR453929,Imd Shared Service,Equipment Maintenance,511
http://statistics.data.gov.uk/id/local-authority/12UE,Huntingdonshire District Council,09/03/2017,204934,122802,5,844.06,Twofold Consulting,CR453929,Imd Shared Service,Equipment Maintenance,511
http://statistics.data.gov.uk/id/local-authority/12UE,Huntingdonshire District Council,03/03/2017,204247,123985,5,"3,600.00",It Talent Solutions Ltd,CR482676,Imd Shared Service,Hired Staff,100
http://statistics.data.gov.uk/id/local-authority/12UE,Huntingdonshire District Council,03/03/2017,204245,123989,5,"2,640.00",It Talent Solutions Ltd,CR482676,Imd Shared Service,Hired Staff,100
http://statistics.data.gov.uk/id/local-authority/12UE,Huntingdonshire District Council,03/03/2017,204243,123990,5,"3,150.00",It Talent Solutions Ltd,CR482676,Imd Shared Service,Hired Staff,100
http://statistics.data.gov.uk/id/local-authority/12UE,Huntingdonshire District Council,03/03/2017,204246,123997,5,976.8,It Talent Solutions Ltd,CR482676,Imd Shared Service,Hired Staff,100
http://statistics.data.gov.uk/id/local-authority/12UE,Huntingdonshire District Council,03/03/2017,204248,124011,5,"1,350.00",It Talent Solutions Ltd,CR482676,Imd Shared Service,Hired Staff,100
http://statistics.data.gov.uk/id/local-authority/12UE,Huntingdonshire District Council,03/03/2017,204241,124047,5,"2,640.00",It Talent Solutions Ltd,CR482676,Imd Shared Service,Hired Staff,100
http://statistics.data.gov.uk/id/local-authority/12UE,Huntingdonshire District Council,09/03/2017,205766,124183,5,"1,350.00",It Talent Solutions Ltd,CR482676,Imd Shared Service,Hired Staff,100
http://statistics.data.gov.uk/id/local-authority/12UE,Huntingdonshire District Council,09/03/2017,205768,124198,5,976.8,It Talent Solutions Ltd,CR482676,Imd Shared Service,Hired Staff,100
http://statistics.data.gov.uk/id/local-authority/12UE,Huntingdonshire District Council,09/03/2017,205767,124214,5,"3,150.00",It Talent Solutions Ltd,CR482676,Imd Shared Service,Hired Staff,100
http://statistics.data.gov.uk/id/local-authority/12UE,Huntingdonshire District Council,09/03/2017,205770,124222,5,"2,640.00",It Talent Solutions Ltd,CR482676,Imd Shared Service,Hired Staff,100
http://statistics.data.gov.uk/id/local-authority/12UE,Huntingdonshire District Council,09/03/2017,205769,124228,5,"3,600.00",It Talent Solutions Ltd,CR482676,Imd Shared Service,Hired Staff,100
http://statistics.data.gov.uk/id/local-authority/12UE,Huntingdonshire District Council,09/03/2017,205784,124254,5,"2,520.00",It Talent Solutions Ltd,CR482676,Imd Shared Service,Hired Staff,100
http://statistics.data.gov.uk/id/local-authority/12UE,Huntingdonshire District Council,09/03/2017,205781,124270,5,976.8,It Talent Solutions Ltd,CR482676,Imd Shared Service,Hired Staff,100
http://statistics.data.gov.uk/id/local-authority/12UE,Huntingdonshire District Council,09/03/2017,205782,124278,5,"2,160.00",It Talent Solutions Ltd,CR482676,Imd Shared Service,Hired Staff,100
http://statistics.data.gov.uk/id/local-authority/12UE,Huntingdonshire District Council,09/03/2017,205783,124287,5,"1,350.00",It Talent Solutions Ltd,CR482676,Imd Shared Service,Hired Staff,100
http://statistics.data.gov.uk/id/local-authority/12UE,Huntingdonshire District Council,16/03/2017,205787,124308,5,"2,640.00",It Talent Solutions Ltd,CR482676,Imd Shared Service,Hired Staff,100
http://statistics.data.gov.uk/id/local-authority/12UE,Huntingdonshire District Council,16/03/2017,205788,124309,5,"2,640.00",It Talent Solutions Ltd,CR482676,Imd Shared Service,Hired Staff,100
http://statistics.data.gov.uk/id/local-authority/12UE,Huntingdonshire District Council,16/03/2017,205789,124324,5,"1,350.00",It Talent Solutions Ltd,CR482676,Imd Shared Service,Hired Staff,100
http://statistics.data.gov.uk/id/local-authority/12UE,Huntingdonshire District Council,16/03/2017,205785,124339,5,976.8,It Talent Solutions Ltd,CR482676,Imd Shared Service,Hired Staff,100
http://statistics.data.gov.uk/id/local-authority/12UE,Huntingdonshire District Council,16/03/2017,205786,124358,5,"3,150.00",It Talent Solutions Ltd,CR482676,Imd Shared Service,Hired Staff,100
http://statistics.data.gov.uk/id/local-authority/12UE,Huntingdonshire District Council,16/03/2017,205790,124367,5,"3,600.00",It Talent Solutions Ltd,CR482676,Imd Shared Service,Hired Staff,100
http://statistics.data.gov.uk/id/local-authority/12UE,Huntingdonshire District Council,23/03/2017,206231,124382,5,"1,350.00",It Talent Solutions Ltd,CR482676,Imd Shared Service,Hired Staff,100
http://statistics.data.gov.uk/id/local-authority/12UE,Huntingdonshire District Council,23/03/2017,206227,124389,5,"2,640.00",It Talent Solutions Ltd,CR482676,Imd Shared Service,Hired Staff,100
http://statistics.data.gov.uk/id/local-authority/12UE,Huntingdonshire District Council,23/03/2017,206228,124425,5,"3,600.00",It Talent Solutions Ltd,CR482676,Imd Shared Service,Hired Staff,100
http://statistics.data.gov.uk/id/local-authority/12UE,Huntingdonshire District Council,23/03/2017,206229,124427,5,"3,780.00",It Talent Solutions Ltd,CR482676,Imd Shared Service,Hired Staff,100
http://statistics.data.gov.uk/id/local-authority/12UE,Huntingdonshire District Council,23/03/2017,206230,124428,5,976.8,It Talent Solutions Ltd,CR482676,Imd Shared Service,Hired Staff,100
http://statistics.data.gov.uk/id/local-authority/12UE,Huntingdonshire District Council,30/03/2017,207062,124446,5,976.8,It Talent Solutions Ltd,CR482676,Imd Shared Service,Hired Staff,100
http://statistics.data.gov.uk/id/local-authority/12UE,Huntingdonshire District Council,30/03/2017,207064,124451,5,"1,350.00",It Talent Solutions Ltd,CR482676,Imd Shared Service,Hired Staff,100
http://statistics.data.gov.uk/id/local-authority/12UE,Huntingdonshire District Council,30/03/2017,207060,124473,5,"3,150.00",It Talent Solutions Ltd,CR482676,Imd Shared Service,Hired Staff,100
http://statistics.data.gov.uk/id/local-authority/12UE,Huntingdonshire District Council,30/03/2017,207063,124490,5,"2,640.00",It Talent Solutions Ltd,CR482676,Imd Shared Service,Hired Staff,100
http://statistics.data.gov.uk/id/local-authority/12UE,Huntingdonshire District Council,30/03/2017,206604,124506,5,"3,177.90",It Talent Solutions Ltd,CR482676,Imd Shared Service,Hired Staff,100
http://statistics.data.gov.uk/id/local-authority/12UE,Huntingdonshire District Council,03/03/2017,205179,193343,5,"48,024.44",Cambridge City Council,CR017896,Imd Shared Service,Equipment Maintenance,511
http://statistics.data.gov.uk/id/local-authority/12UE,Huntingdonshire District Council,03/03/2017,205179,193343,5,"55,575.62",Cambridge City Council,CR017896,Imd Shared Service,I T Line Rental,248
http://statistics.data.gov.uk/id/local-authority/12UE,Huntingdonshire District Council,03/03/2017,205179,193343,5,"38,046.73",Cambridge City Council,CR017896,Imd Shared Service,Software,206
http://statistics.data.gov.uk/id/local-authority/12UE,Huntingdonshire District Council,03/03/2017,205178,193344,5,"90,283.22",Cambridge City Council,CR017896,Imd Shared Service,Equipment Maintenance,511
http://statistics.data.gov.uk/id/local-authority/12UE,Huntingdonshire District Council,03/03/2017,205178,193344,5,"12,107.76",Cambridge City Council,CR017896,Imd Shared Service,I T Line Rental,248
http://statistics.data.gov.uk/id/local-authority/12UE,Huntingdonshire District Council,03/03/2017,205178,193344,5,"24,569.63",Cambridge City Council,CR017896,Imd Shared Service,Software,206
http://statistics.data.gov.uk/id/local-authority/12UE,Huntingdonshire District Council,03/03/2017,205178,193344,5,894.68,Cambridge City Council,CR017896,Imd Shared Service,Stationery,225
http://statistics.data.gov.uk/id/local-authority/12UE,Huntingdonshire District Council,03/03/2017,205178,193344,5,476.11,Cambridge City Council,CR017896,Imd Shared Service,Telephone &Mobile Phonecharges,240
http://statistics.data.gov.uk/id/local-authority/12UE,Huntingdonshire District Council,03/03/2017,205178,193344,5,372,Cambridge City Council,CR017896,Imd Shared Service,Training,130
http://statistics.data.gov.uk/id/local-authority/12UE,Huntingdonshire District Council,23/03/2017,206590,218827,5,"86,291.34",South Cambridgeshire District Council,CR405127,Imd Shared Service,Equipment Maintenance,511
http://statistics.data.gov.uk/id/local-authority/12UE,Huntingdonshire District Council,23/03/2017,206590,218827,5,"63,417.90",South Cambridgeshire District Council,CR405127,Imd Shared Service,Hired Staff,100
http://statistics.data.gov.uk/id/local-authority/12UE,Huntingdonshire District Council,23/03/2017,206590,218827,5,"11,847.13",South Cambridgeshire District Council,CR405127,Imd Shared Service,I T Line Rental,248
http://statistics.data.gov.uk/id/local-authority/12UE,Huntingdonshire District Council,23/03/2017,206590,218827,5,377.29,South Cambridgeshire District Council,CR405127,Imd Shared Service,Other I T Hardware,203
http://statistics.data.gov.uk/id/local-authority/12UE,Huntingdonshire District Council,23/03/2017,206590,218827,5,"2,100.00",South Cambridgeshire District Council,CR405127,Imd Shared Service,Registration Fee,748
http://statistics.data.gov.uk/id/local-authority/12UE,Huntingdonshire District Council,23/03/2017,206590,218827,5,"456,808.38",South Cambridgeshire District Council,CR405127,Imd Shared Service,Software,206
http://statistics.data.gov.uk/id/local-authority/12UE,Huntingdonshire District Council,23/03/2017,206590,218827,5,"4,104.00",South Cambridgeshire District Council,CR405127,Imd Shared Service,Training,130
http://statistics.data.gov.uk/id/local-authority/12UE,Huntingdonshire District Council,23/03/2017,205298,450014,,928.14,Storm Technologies,CR480909,Imd Shared Service,Other I T Hardware,203
http://statistics.data.gov.uk/id/local-authority/12UE,Huntingdonshire District Council,16/03/2017,206201,1029676,5,"3,436.80",Q-Matic Uk Ltd,CR417152,Imd Shared Service,Other I T Hardware,203
http://statistics.data.gov.uk/id/local-authority/12UE,Huntingdonshire District Council,30/03/2017,207057,2017116,3,"12,295.14",Xpress Software Solutions Ltd,CR480995,Imd Shared Service,Software,206
http://statistics.data.gov.uk/id/local-authority/12UE,Huntingdonshire District Council,16/03/2017,204306,3232650,5,"1,848.00",Insight Direct Uk Ltd,CR000242,Imd Shared Service,Telephone &Mobile Phonecharges,240
http://statistics.data.gov.uk/id/local-authority/12UE,Huntingdonshire District Council,03/03/2017,204311,3236099,5,929.05,Insight Direct Uk Ltd,CR000242,Imd Shared Service,Other I T Hardware,203
http://statistics.data.gov.uk/id/local-authority/12UE,Huntingdonshire District Council,03/03/2017,204651,3243194,5,408,Insight Direct Uk Ltd,CR000242,Imd Shared Service,Other I T Hardware,203
http://statistics.data.gov.uk/id/local-authority/12UE,Huntingdonshire District Council,09/03/2017,205773,3251987,5,929.05,Insight Direct Uk Ltd,CR000242,Imd Shared Service,Other I T Hardware,203
http://statistics.data.gov.uk/id/local-authority/12UE,Huntingdonshire District Council,16/03/2017,206210,7013885,5,"1,140.00",Idox,CR481134,Imd Shared Service,Consultants,711
http://statistics.data.gov.uk/id/local-authority/12UE,Huntingdonshire District Council,16/03/2017,206197,60029523,5,"2,093.00",Virgin Media Business/Cpsn,CR455148,Imd Shared Service,I T Line Rental,248
http://statistics.data.gov.uk/id/local-authority/12UE,Huntingdonshire District Council,30/03/2017,207054,91386500,5,"2,564.87",Northgatepublic Services Uk Ltd,CR028925,Imd Shared Service,Software,206
http://statistics.data.gov.uk/id/local-authority/12UE,Huntingdonshire District Council,30/03/2017,205755,91386501,5,"70,132.22",Northgatepublic Services Uk Ltd,CR028925,Imd Shared Service,Software,206
http://statistics.data.gov.uk/id/local-authority/12UE,Huntingdonshire District Council,30/03/2017,207069,1254073808,5,"1,988.81",Orange Airtime,CR455799,Imd Shared Service,Telephone &Mobile Phonecharges,240
http://statistics.data.gov.uk/id/local-authority/12UE,Huntingdonshire District Council,03/03/2017,204927,7.42878E+14,5,919.91,Virgin Media Business,CR033120,Imd Shared Service,I T Line Rental,248
http://statistics.data.gov.uk/id/local-authority/12UE,Huntingdonshire District Council,03/03/2017,204927,7.42878E+14,5,"1,475.04",Virgin Media Business,CR033120,Imd Shared Service,Telephone &Mobile Phonecharges,240
http://statistics.data.gov.uk/id/local-authority/12UE,Huntingdonshire District Council,30/03/2017,207049,7.42878E+14,5,-117.94,Virgin Media Business,CR033120,Imd Shared Service,I T Line Rental,248
http://statistics.data.gov.uk/id/local-authority/12UE,Huntingdonshire District Council,30/03/2017,207049,7.42878E+14,5,"1,649.90",Virgin Media Business,CR033120,Imd Shared Service,Telephone &Mobile Phonecharges,240
http://statistics.data.gov.uk/id/local-authority/12UE,Huntingdonshire District Council,23/03/2017,204303,100662/103450,5,"2,941.92",Galtec Solutions Ltd,CR423396,Imd Shared Service,Other I T Hardware,203
http://statistics.data.gov.uk/id/local-authority/12UE,Huntingdonshire District Council,16/03/2017,205289,103060/106931,5,373.76,Galtec Solutions Ltd,CR423396,Imd Shared Service,Other I T Hardware,203
http://statistics.data.gov.uk/id/local-authority/12UE,Huntingdonshire District Council,03/03/2017,204928,923469-076A,5,"5,809.96",Virgin Media Business/Cpsn,CR455148,Imd Shared Service,I T Line Rental,248
http://statistics.data.gov.uk/id/local-authority/12UE,Huntingdonshire District Council,30/03/2017,207051,923469-077A,5,"5,809.96",Virgin Media Business,CR033120,Imd Shared Service,I T Line Rental,248
http://statistics.data.gov.uk/id/local-authority/12UE,Huntingdonshire District Council,23/03/2017,206208,ARCMIN/99061461,5,"15,573.44",Advanced Business Solutions,CR032921,Imd Shared Service,Software,206
http://statistics.data.gov.uk/id/local-authority/12UE,Huntingdonshire District Council,23/03/2017,206204,ARCMIN/99061572,5,"1,059.64",Advanced Business Solutions,CR032921,Imd Shared Service,Software,206
http://statistics.data.gov.uk/id/local-authority/12UE,Huntingdonshire District Council,03/03/2017,205286,C/RB149558,5,"5,580.00",Civica Uk Ltd,CR415826,Imd Shared Service,Software,206
http://statistics.data.gov.uk/id/local-authority/12UE,Huntingdonshire District Council,23/03/2017,206211,HSMLI1700041,5,"26,933.76",Hornbill Service Management Limited,CR423491,Imd Shared Service,Software,206
http://statistics.data.gov.uk/id/local-authority/12UE,Huntingdonshire District Council,23/03/2017,206196,IN234612,5,"3,750.00",Pitney Bowes Software Europe Ltd,CR424001,Imd Shared Service,Training,130
http://statistics.data.gov.uk/id/local-authority/12UE,Huntingdonshire District Council,09/03/2017,205756,INV01555332,5,"2,902.80",Softcat,CR422246,Imd Shared Service,Software,206
http://statistics.data.gov.uk/id/local-authority/12UE,Huntingdonshire District Council,30/03/2017,206207,INV13046,5,"3,600.00",Hornbill Service Management Limited,CR423491,Imd Shared Service,Software,206
http://statistics.data.gov.uk/id/local-authority/12UE,Huntingdonshire District Council,30/03/2017,205754,INV13050,5,"5,634.00",Hornbill Service Management Limited,CR423491,Imd Shared Service,Consultants,711
http://statistics.data.gov.uk/id/local-authority/12UE,Huntingdonshire District Council,03/03/2017,204251,JDAINVHDC030217,5,"3,000.00",Jda-Net Ltd,CR423987,Imd Shared Service,Hired Staff,100
http://statistics.data.gov.uk/id/local-authority/12UE,Huntingdonshire District Council,30/03/2017,205792,JDAINVHDC030317,5,"3,000.00",Jda-Net Ltd,CR423987,Imd Shared Service,Hired Staff,100
http://statistics.data.gov.uk/id/local-authority/12UE,Huntingdonshire District Council,16/03/2017,206203,JDAINVHDC100317,5,"3,000.00",Jda-Net Ltd,CR423987,Imd Shared Service,Hired Staff,100
http://statistics.data.gov.uk/id/local-authority/12UE,Huntingdonshire District Council,23/03/2017,205771,JDAINVHDC240217,5,"3,000.00",Jda-Net Ltd,CR423987,Imd Shared Service,Hired Staff,100
http://statistics.data.gov.uk/id/local-authority/12UE,Huntingdonshire District Council,16/03/2017,205294,M/CM041881,5,"26,717.96",Civica Uk Ltd,CR415826,Imd Shared Service,Software,206
http://statistics.data.gov.uk/id/local-authority/12UE,Huntingdonshire District Council,23/03/2017,206606,OP/I790267,5,"18,676.15",Phoenix Software Ltd,CR031918,Imd Shared Service,Software,206
http://statistics.data.gov.uk/id/local-authority/12UE,Huntingdonshire District Council,23/03/2017,206605,OP/I790365,5,"1,759.39",Phoenix Software Ltd,CR031918,Imd Shared Service,Software,206
http://statistics.data.gov.uk/id/local-authority/12UE,Huntingdonshire District Council,30/03/2017,207013,OP/I791580,5,312,Phoenix Software Ltd,CR031918,Imd Shared Service,Software,206
http://statistics.data.gov.uk/id/local-authority/12UE,Huntingdonshire District Council,30/03/2017,207012,OP/I793803,5,710.89,Phoenix Software Ltd,CR031918,Imd Shared Service,Software,206
http://statistics.data.gov.uk/id/local-authority/12UE,Huntingdonshire District Council,30/03/2017,207012,OP/I793803,5,364.85,Phoenix Software Ltd,CR031918,Imd Shared Service,Software,206
http://statistics.data.gov.uk/id/local-authority/12UE,Huntingdonshire District Council,03/03/2017,204249,R019212,5,"2,850.00",Premier It Recruitment Ltd,CR454029,Imd Shared Service,Hired Staff,100
http://statistics.data.gov.uk/id/local-authority/12UE,Huntingdonshire District Council,03/03/2017,204250,R019214,5,888,Premier It Recruitment Ltd,CR454029,Imd Shared Service,Hired Staff,100
http://statistics.data.gov.uk/id/local-authority/12UE,Huntingdonshire District Council,23/03/2017,205762,R019609,5,888,Premier It Recruitment Ltd,CR454029,Imd Shared Service,Hired Staff,100
http://statistics.data.gov.uk/id/local-authority/12UE,Huntingdonshire District Council,23/03/2017,205761,R019618,5,"2,850.00",Premier It Recruitment Ltd,CR454029,Imd Shared Service,Hired Staff,100
http://statistics.data.gov.uk/id/local-authority/12UE,Huntingdonshire District Council,30/03/2017,205760,R019728,5,708,Premier It Recruitment Ltd,CR454029,Imd Shared Service,Hired Staff,100
http://statistics.data.gov.uk/id/local-authority/12UE,Huntingdonshire District Council,30/03/2017,205759,R019773,5,"2,850.00",Premier It Recruitment Ltd,CR454029,Imd Shared Service,Hired Staff,100
http://statistics.data.gov.uk/id/local-authority/12UE,Huntingdonshire District Council,16/03/2017,206215,R019918,5,"3,150.00",Premier It Recruitment Ltd,CR454029,Imd Shared Service,Hired Staff,100
http://statistics.data.gov.uk/id/local-authority/12UE,Huntingdonshire District Council,16/03/2017,206216,R019921,5,"2,850.00",Premier It Recruitment Ltd,CR454029,Imd Shared Service,Hired Staff,100
http://statistics.data.gov.uk/id/local-authority/12UE,Huntingdonshire District Council,16/03/2017,206217,R019943,5,888,Premier It Recruitment Ltd,CR454029,Imd Shared Service,Hired Staff,100
http://statistics.data.gov.uk/id/local-authority/12UE,Huntingdonshire District Council,23/03/2017,206225,R020067,5,"3,150.00",Premier It Recruitment Ltd,CR454029,Imd Shared Service,Hired Staff,100
http://statistics.data.gov.uk/id/local-authority/12UE,Huntingdonshire District Council,23/03/2017,205292,SIN102989,5,"2,462.40",Eacs Ltd,CR404499,Imd Shared Service,Software,206
http://statistics.data.gov.uk/id/local-authority/12UE,Huntingdonshire District Council,23/03/2017,205292,SIN102989,5,"14,112.00",Eacs Ltd,CR404499,Imd Shared Service,Software,206
http://statistics.data.gov.uk/id/local-authority/12UE,Huntingdonshire District Council,23/03/2017,205292,SIN102989,5,"2,462.40",Eacs Ltd,CR404499,Imd Shared Service,Software,206
http://statistics.data.gov.uk/id/local-authority/12UE,Huntingdonshire District Council,23/03/2017,205292,SIN102989,5,"80,088.00",Eacs Ltd,CR404499,Imd Shared Service,Software,206
http://statistics.data.gov.uk/id/local-authority/12UE,Huntingdonshire District Council,23/03/2017,205292,SIN102989,5,"4,199.52",Eacs Ltd,CR404499,Imd Shared Service,Software,206
http://statistics.data.gov.uk/id/local-authority/12UE,Huntingdonshire District Council,16/03/2017,205296,SINV00104039,5,"1,002.00",Bist,CR422733,Imd Shared Service,Other I T Hardware,203
http://statistics.data.gov.uk/id/local-authority/12UE,Huntingdonshire District Council,16/03/2017,205296,SINV00104039,5,19.85,Bist,CR422733,Imd Shared Service,Other I T Hardware,203
http://statistics.data.gov.uk/id/local-authority/12UE,Huntingdonshire District Council,16/03/2017,205296,SINV00104039,5,16.8,Bist,CR422733,Imd Shared Service,Other I T Hardware,203
http://statistics.data.gov.uk/id/local-authority/12UE,Huntingdonshire District Council,16/03/2017,205293,SINV00104084,5,869.04,Bist,CR422733,Imd Shared Service,Other I T Hardware,203
http://statistics.data.gov.uk/id/local-authority/12UE,Huntingdonshire District Council,16/03/2017,206223,WN70308202,5,"4,500.00",Capita Resourcing Ltd,CR030165,Imd Shared Service,Hired Staff,100
http://statistics.data.gov.uk/id/local-authority/12UE,Huntingdonshire District Council,16/03/2017,206224,WN70308203,5,"4,500.00",Capita Resourcing Ltd,CR030165,Imd Shared Service,Hired Staff,100
http://statistics.data.gov.uk/id/local-authority/12UE,Huntingdonshire District Council,16/03/2017,206221,WN70308204,5,"7,284.00",Capita Resourcing Ltd,CR030165,Imd Shared Service,Hired Staff,100
http://statistics.data.gov.uk/id/local-authority/12UE,Huntingdonshire District Council,16/03/2017,206222,WN70308205,5,"2,784.00",Capita Resourcing Ltd,CR030165,Imd Shared Service,Hired Staff,100
http://statistics.data.gov.uk/id/local-authority/12UE,Huntingdonshire District Council,16/03/2017,206218,WN70309090,5,"6,600.00",Capita Resourcing Ltd,CR030165,Imd Shared Service,Hired Staff,100
http://statistics.data.gov.uk/id/local-authority/12UE,Huntingdonshire District Council,16/03/2017,206219,WN70309091,5,"5,100.00",Capita Resourcing Ltd,CR030165,Imd Shared Service,Hired Staff,100
http://statistics.data.gov.uk/id/local-authority/12UE,Huntingdonshire District Council,16/03/2017,206220,WN70309092,5,"1,008.00",Capita Resourcing Ltd,CR030165,Imd Shared Service,Hired Staff,100
http://statistics.data.gov.uk/id/local-authority/12UE,Huntingdonshire District Council,23/03/2017,206603,WN70309093,5,"3,216.00",Capita Resourcing Ltd,CR030165,Imd Shared Service,Hired Staff,100
http://statistics.data.gov.uk/id/local-authority/12UE,Huntingdonshire District Council,30/03/2017,206602,WN70310462,5,"6,000.00",Capita Resourcing Ltd,CR030165,Imd Shared Service,Hired Staff,100
http://statistics.data.gov.uk/id/local-authority/12UE,Huntingdonshire District Council,30/03/2017,206599,WN70310463,5,"7,500.00",Capita Resourcing Ltd,CR030165,Imd Shared Service,Hired Staff,100
http://statistics.data.gov.uk/id/local-authority/12UE,Huntingdonshire District Council,30/03/2017,206597,WN70310464,5,"3,456.00",Capita Resourcing Ltd,CR030165,Imd Shared Service,Hired Staff,100
http://statistics.data.gov.uk/id/local-authority/12UE,Huntingdonshire District Council,16/03/2017,204480,378,7,"6,070.00",Wayne Bingham,CR405796,Improvement Grants,Mandatory Grants,801
http://statistics.data.gov.uk/id/local-authority/12UE,Huntingdonshire District Council,09/03/2017,205420,385,7,"2,505.00",Wayne Bingham,CR405796,Improvement Grants,Mandatory Grants,801
http://statistics.data.gov.uk/id/local-authority/12UE,Huntingdonshire District Council,30/03/2017,206872,389,7,"5,515.00",Wayne Bingham,CR405796,Improvement Grants,Mandatory Grants,801
http://statistics.data.gov.uk/id/local-authority/12UE,Huntingdonshire District Council,30/03/2017,206189,6940,5,"13,505.19",P.D. Kemp (Builder),CR422238,Improvement Grants,Mandatory Grants,801
http://statistics.data.gov.uk/id/local-authority/12UE,Huntingdonshire District Council,09/03/2017,205248,7037,5,"1,998.00",Lynch Healthcare Limited,CR423109,Improvement Grants,Mandatory Grants,801
http://statistics.data.gov.uk/id/local-authority/12UE,Huntingdonshire District Council,16/03/2017,205956,7050,5,"3,796.00",Lynch Healthcare Limited,CR423109,Improvement Grants,Mandatory Grants,801
http://statistics.data.gov.uk/id/local-authority/12UE,Huntingdonshire District Council,03/03/2017,204640,19644,5,896.25,M Watson Construction Ltd,CR480595,Improvement Grants,Mandatory Grants,801
http://statistics.data.gov.uk/id/local-authority/12UE,Huntingdonshire District Council,03/03/2017,204324,19646,5,"6,453.45",M Watson Construction Ltd,CR480595,Improvement Grants,Mandatory Grants,801
http://statistics.data.gov.uk/id/local-authority/12UE,Huntingdonshire District Council,03/03/2017,204415,19648,5,"1,214.33",M Watson Construction Ltd,CR480595,Improvement Grants,Mandatory Grants,801
http://statistics.data.gov.uk/id/local-authority/12UE,Huntingdonshire District Council,30/03/2017,206180,19809,5,598.33,M Watson Construction Ltd,CR480595,Improvement Grants,Mandatory Grants,801
http://statistics.data.gov.uk/id/local-authority/12UE,Huntingdonshire District Council,30/03/2017,206078,19810,5,"1,552.90",M Watson Construction Ltd,CR480595,Improvement Grants,Mandatory Grants,801
http://statistics.data.gov.uk/id/local-authority/12UE,Huntingdonshire District Council,30/03/2017,206080,19813,5,"1,682.32",M Watson Construction Ltd,CR480595,Improvement Grants,Mandatory Grants,801
http://statistics.data.gov.uk/id/local-authority/12UE,Huntingdonshire District Council,30/03/2017,206079,19814,5,"2,217.98",M Watson Construction Ltd,CR480595,Improvement Grants,Mandatory Grants,801
http://statistics.data.gov.uk/id/local-authority/12UE,Huntingdonshire District Council,30/03/2017,206188,19817,5,"2,961.77",M Watson Construction Ltd,CR480595,Improvement Grants,Mandatory Grants,801
http://statistics.data.gov.uk/id/local-authority/12UE,Huntingdonshire District Council,30/03/2017,205728,19819,5,"5,634.00",M Watson Construction Ltd,CR480595,Improvement Grants,Mandatory Grants,801
http://statistics.data.gov.uk/id/local-authority/12UE,Huntingdonshire District Council,16/03/2017,206182,23439,5,629.4,B. S. Graves Electrical Ltd,CR000363,Improvement Grants,Mandatory Grants,801
http://statistics.data.gov.uk/id/local-authority/12UE,Huntingdonshire District Council,03/03/2017,205383,23520,5,259.2,B. S. Graves Electrical Ltd,CR000363,Improvement Grants,Mandatory Grants,801
http://statistics.data.gov.uk/id/local-authority/12UE,Huntingdonshire District Council,23/03/2017,206583,62802,5,"3,981.00",Gaswise,CR423458,Improvement Grants,Mandatory Grants,801
http://statistics.data.gov.uk/id/local-authority/12UE,Huntingdonshire District Council,23/03/2017,205149,89939,5,"2,074.00",Ems Lifts Ltd,CR479724,Improvement Grants,Mandatory Grants,801
http://statistics.data.gov.uk/id/local-authority/12UE,Huntingdonshire District Council,23/03/2017,206190,528857,5,"5,635.60",Bsg Property Services Ltd,CR089905,Improvement Grants,Mandatory Grants,801
http://statistics.data.gov.uk/id/local-authority/12UE,Huntingdonshire District Council,23/03/2017,206587,529700,5,"4,535.00",Bsg Property Services Ltd,CR089905,Improvement Grants,Mandatory Grants,801
http://statistics.data.gov.uk/id/local-authority/12UE,Huntingdonshire District Council,23/03/2017,205421,529701,5,384,Bsg Property Services Ltd,CR089905,Improvement Grants,Mandatory Grants,801
http://statistics.data.gov.uk/id/local-authority/12UE,Huntingdonshire District Council,23/03/2017,205419,529704,5,"6,178.80",Bsg Property Services Ltd,CR089905,Improvement Grants,Mandatory Grants,801
http://statistics.data.gov.uk/id/local-authority/12UE,Huntingdonshire District Council,30/03/2017,205729,194346 CHIA FEE,5,"45,000.00",Cambridge City Council,CR017896,Improvement Grants,Home Improvement Agency Fees,724
http://statistics.data.gov.uk/id/local-authority/12UE,Huntingdonshire District Council,09/03/2017,204190,AC0214155,5,"4,887.66",Ashco Building & Maintenance Services Ltd,CR422300,Improvement Grants,Mandatory Grants,801
http://statistics.data.gov.uk/id/local-authority/12UE,Huntingdonshire District Council,03/03/2017,204785,AC0214167,5,"4,164.20",Ashco Building & Maintenance Services Ltd,CR422300,Improvement Grants,Mandatory Grants,801
http://statistics.data.gov.uk/id/local-authority/12UE,Huntingdonshire District Council,23/03/2017,206076,AC0214188,5,"5,763.60",Ashco Building & Maintenance Services Ltd,CR422300,Improvement Grants,Mandatory Grants,801
http://statistics.data.gov.uk/id/local-authority/12UE,Huntingdonshire District Council,16/03/2017,205150,INV000093,5,"9,211.20",Squires & Son Ltd,CR478185,Improvement Grants,Mandatory Grants,801
http://statistics.data.gov.uk/id/local-authority/12UE,Huntingdonshire District Council,23/03/2017,206580,INV00088,5,"1,960.00",Squires & Son Ltd,CR478185,Improvement Grants,Mandatory Grants,801
http://statistics.data.gov.uk/id/local-authority/12UE,Huntingdonshire District Council,03/03/2017,205380,OP/I119937,5,445,Total Hygiene Ltd,CR083280,Improvement Grants,Mandatory Grants,801
http://statistics.data.gov.uk/id/local-authority/12UE,Huntingdonshire District Council,03/03/2017,204449,S085057006,5,"2,752.00",Stannah Ltd Ref(20hu025),CR000759,Improvement Grants,Mandatory Grants,801
http://statistics.data.gov.uk/id/local-authority/12UE,Huntingdonshire District Council,23/03/2017,206461,S28856,5,"16,017.00",Bsg Property Services Ltd,CR089905,Improvement Grants,Discretionary Property Charges,803
http://statistics.data.gov.uk/id/local-authority/12UE,Huntingdonshire District Council,09/03/2017,205619,S29787,5,600,Bsg Property Services Ltd,CR089905,Improvement Grants,Shared Service Savings,798
http://statistics.data.gov.uk/id/local-authority/12UE,Huntingdonshire District Council,30/03/2017,205424,SI5930,4,"5,065.73",Foster Property Maintenance Ltd,CR412056,Improvement Grants,Mandatory Grants,801
http://statistics.data.gov.uk/id/local-authority/12UE,Huntingdonshire District Council,03/03/2017,204639,SIN1701AT053449,5,"7,354.86",Hugh Steeper Ltd,CR407049,Improvement Grants,Mandatory Grants,801
http://statistics.data.gov.uk/id/local-authority/12UE,Huntingdonshire District Council,23/03/2017,205423,SIN1702AT062363,5,"6,979.37",Hugh Steeper Ltd,CR407049,Improvement Grants,Mandatory Grants,801
http://statistics.data.gov.uk/id/local-authority/12UE,Huntingdonshire District Council,23/03/2017,609507,611116340,6,"2,040.00",Ramboll Environ Uk Limited,CR424665,Industrial Properties,Consultants,711
http://statistics.data.gov.uk/id/local-authority/12UE,Huntingdonshire District Council,03/03/2017,205334,REDACTED PERSONAL DATE,5,"48,532.00",Irwin Mitchell Llp,CR424645,Insurance Premium Holding,Insurance Employers,162
http://statistics.data.gov.uk/id/local-authority/12UE,Huntingdonshire District Council,03/03/2017,204335,15220,5,351.54,Jade Security Services Ltd,CR422256,Interest Received,Cash Collection,702
http://statistics.data.gov.uk/id/local-authority/12UE,Huntingdonshire District Council,30/03/2017,205923,15329,5,334.8,Jade Security Services Ltd,CR422256,Interest Received,Cash Collection,702
http://statistics.data.gov.uk/id/local-authority/12UE,Huntingdonshire District Council,30/03/2017,206863,14,5,"1,680.00",Richard Sistrom Painting & Decorating,CR422887,Leisure Centres Capital,Building Mtce,303
http://statistics.data.gov.uk/id/local-authority/12UE,Huntingdonshire District Council,30/03/2017,206862,15,5,844,Richard Sistrom Painting & Decorating,CR422887,Leisure Centres Capital,Building Mtce,303
http://statistics.data.gov.uk/id/local-authority/12UE,Huntingdonshire District Council,30/03/2017,206864,16,5,524,Richard Sistrom Painting & Decorating,CR422887,Leisure Centres Capital,Building Mtce,303
http://statistics.data.gov.uk/id/local-authority/12UE,Huntingdonshire District Council,09/03/2017,204452,1025,5,900,Waterland Associates Ltd,CR424004,Leisure Centres Capital,Building Mtce,303
http://statistics.data.gov.uk/id/local-authority/12UE,Huntingdonshire District Council,09/03/2017,205618,2240,5,"1,680.00",Flexerefrigeration Ltd,CR422336,Leisure Centres Capital,Equipment,500
http://statistics.data.gov.uk/id/local-authority/12UE,Huntingdonshire District Council,23/03/2017,206032,2769,5,540,Poly Advisory Services Ltd,CR40179,Leisure Centres Capital,Building Mtce,303
http://statistics.data.gov.uk/id/local-authority/12UE,Huntingdonshire District Council,30/03/2017,206871,6778,5,458.4,The Pool & Spa Specialists Ltd,CR424623,Leisure Centres Capital,Building Mtce,303
http://statistics.data.gov.uk/id/local-authority/12UE,Huntingdonshire District Council,30/03/2017,206869,6785,5,"2,102.21",The Pool & Spa Specialists Ltd,CR424623,Leisure Centres Capital,Building Mtce,303
http://statistics.data.gov.uk/id/local-authority/12UE,Huntingdonshire District Council,30/03/2017,207036,7269,5,570,Hazell Flooring Ltd,CR424680,Leisure Centres Capital,Building Mtce,303
http://statistics.data.gov.uk/id/local-authority/12UE,Huntingdonshire District Council,30/03/2017,206566,8974,5,"5,116.80",Forge Leisure Ltd,CR413317,Leisure Centres Capital,Equipment,500
http://statistics.data.gov.uk/id/local-authority/12UE,Huntingdonshire District Council,09/03/2017,204660,9738,5,"1,958.64",Roger Wilson Electronics,CR028041,Leisure Centres Capital,Building Mtce,303
http://statistics.data.gov.uk/id/local-authority/12UE,Huntingdonshire District Council,23/03/2017,204904,427577,5,734.21,Heasell Electromechanical Services Ltd,CR422407,Leisure Centres Capital,Building Mtce,303
http://statistics.data.gov.uk/id/local-authority/12UE,Huntingdonshire District Council,30/03/2017,206777,INV000066,5,432,Leisure Provisions,CR455154,Leisure Centres Capital,Equipment,500
http://statistics.data.gov.uk/id/local-authority/12UE,Huntingdonshire District Council,09/03/2017,204504,OLRA0002,5,281.49,Njl Property Solutions,CR423380,Leisure Centres Capital,Building Mtce,303
http://statistics.data.gov.uk/id/local-authority/12UE,Huntingdonshire District Council,09/03/2017,204456,S3087473,5,"2,392.80",First In Service Ltd,CR422285,Leisure Centres Capital,Building Mtce,303
http://statistics.data.gov.uk/id/local-authority/12UE,Huntingdonshire District Council,03/03/2017,204788,92305920,5,"39,564.00",Vollmer Uk Ltd,CR424044,Leisure Services Capital,Building Mtce,303
http://statistics.data.gov.uk/id/local-authority/12UE,Huntingdonshire District Council,23/03/2017,206408,BOA27B/2017,5,"5,652.00",Vollmer Uk Ltd,CR424044,Leisure Services Capital,Building Mtce,303
http://statistics.data.gov.uk/id/local-authority/12UE,Huntingdonshire District Council,03/03/2017,204118,4655,5,"2,550.00",Adams Autos,CR422066,Licences,Vehicle Inspection,618
http://statistics.data.gov.uk/id/local-authority/12UE,Huntingdonshire District Council,30/03/2017,205389,S2017/8,5,792,James Button & Co,CR405456,Licences,Corporate Subscriptions,754
http://statistics.data.gov.uk/id/local-authority/12UE,Huntingdonshire District Council,03/03/2017,204656,T26929,5,"1,228.80",Mogo Uk,CR410378,Licences,Licence Plates,564
http://statistics.data.gov.uk/id/local-authority/12UE,Huntingdonshire District Council,03/03/2017,204656,T26929,5,23.88,Mogo Uk,CR410378,Licences,Postage,231
http://statistics.data.gov.uk/id/local-authority/12UE,Huntingdonshire District Council,23/03/2017,206607,425247,5,"49,173.60",Ove Arup & Partners International,CR423984,Local Development Framework,Consultants,711
http://statistics.data.gov.uk/id/local-authority/12UE,Huntingdonshire District Council,03/03/2017,204096,2017/0404,5,"3,855.86",Jba Consulting,CR423103,Local Development Framework,Consultants,711
http://statistics.data.gov.uk/id/local-authority/12UE,Huntingdonshire District Council,30/03/2017,206142,1154405,5,540,A T Graphics Limited,CR424664,Markets,Advertising/Promoting Services,255
http://statistics.data.gov.uk/id/local-authority/12UE,Huntingdonshire District Council,03/03/2017,203858,420044556,5,807.04,Portakabin Ltd,CR478566,Miscellaneous Grants,Grants (Paid Out),800
http://statistics.data.gov.uk/id/local-authority/12UE,Huntingdonshire District Council,30/03/2017,205388,900771397,5,807.04,Portakabin Ltd,CR478566,Miscellaneous Grants,Grants (Paid Out),800
http://statistics.data.gov.uk/id/local-authority/12UE,Huntingdonshire District Council,23/03/2017,205587,4259,5,622.41,Newlyn Plc,CR409114,N N D R Administration,Bailiffs,703
http://statistics.data.gov.uk/id/local-authority/12UE,Huntingdonshire District Council,03/03/2017,204107,BN300117,5,769.44,Jacobs,CR422350,N N D R Administration,Bailiffs,703
http://statistics.data.gov.uk/id/local-authority/12UE,Huntingdonshire District Council,03/03/2017,204433,18477,5,"1,730.40",Campbell Associates,CR407137,Nuisances,Equipment Maintenance,511
http://statistics.data.gov.uk/id/local-authority/12UE,Huntingdonshire District Council,03/03/2017,204434,18478,5,356.4,Campbell Associates,CR407137,Nuisances,Equipment Maintenance,511
http://statistics.data.gov.uk/id/local-authority/12UE,Huntingdonshire District Council,23/03/2017,205671,6621,5,312,D & H Sign & Display Services,CR030353,Off Street Parking,Vehicle Parts & Fittings,625
http://statistics.data.gov.uk/id/local-authority/12UE,Huntingdonshire District Council,03/03/2017,204330,15219,5,"4,876.92",Jade Security Services Ltd,CR422256,Off Street Parking,Cash Collection,702
http://statistics.data.gov.uk/id/local-authority/12UE,Huntingdonshire District Council,30/03/2017,205403,15328,5,"4,309.20",Jade Security Services Ltd,CR422256,Off Street Parking,Cash Collection,702
http://statistics.data.gov.uk/id/local-authority/12UE,Huntingdonshire District Council,09/03/2017,205145,43430,5,"59,504.05",Cbre Richard Ellis Ltd,CR487227,Off Street Parking,Car Park Machines,522
http://statistics.data.gov.uk/id/local-authority/12UE,Huntingdonshire District Council,16/03/2017,206054,121222,5,"3,610.33",Cale Briparc Ltd,CR401137,Off Street Parking,Car Park Machines,522
http://statistics.data.gov.uk/id/local-authority/12UE,Huntingdonshire District Council,23/03/2017,206055,121272,5,"7,293.12",Cale Briparc Ltd,CR401137,Off Street Parking,Car Park Machines,522
http://statistics.data.gov.uk/id/local-authority/12UE,Huntingdonshire District Council,30/03/2017,206833,558169,5,412.24,Ecocleen Services Limited,CR406985,Off Street Parking,Building Cleaning,440
http://statistics.data.gov.uk/id/local-authority/12UE,Huntingdonshire District Council,23/03/2017,205161,1094135,5,"1,117.20",Dts Solutions (Uk) Ltd,CR001981,Off Street Parking,Vehicle Parts & Fittings,625
http://statistics.data.gov.uk/id/local-authority/12UE,Huntingdonshire District Council,30/03/2017,206093,11442468,5,174,Murketts Of Cambridge Ltd,CR145919,Off Street Parking,Vehicle Parts & Fittings,625
http://statistics.data.gov.uk/id/local-authority/12UE,Huntingdonshire District Council,03/03/2017,204891,171254309,5,266.92,Swalec,CR407130,Off Street Parking,Electricity,420
http://statistics.data.gov.uk/id/local-authority/12UE,Huntingdonshire District Council,03/03/2017,205387,321225941,5,299.49,Swalec,CR407130,Off Street Parking,Electricity,420
http://statistics.data.gov.uk/id/local-authority/12UE,Huntingdonshire District Council,03/03/2017,205258,371226896,5,757.77,Swalec,CR407130,Off Street Parking,Electricity,420
http://statistics.data.gov.uk/id/local-authority/12UE,Huntingdonshire District Council,30/03/2017,206124,INV-1332,5,"5,024.40",Rta Associates Ltd,CR478531,Off Street Parking,Consultants,711
http://statistics.data.gov.uk/id/local-authority/12UE,Huntingdonshire District Council,23/03/2017,206059,1104,5,476.4,Waterland Associates Ltd,CR424004,Ol Hdon Changing Facilities,Building Mtce,303
http://statistics.data.gov.uk/id/local-authority/12UE,Huntingdonshire District Council,09/03/2017,205414,280829,5,548.58,Prp Consulting,CR424006,Ol Hdon Changing Facilities,Building Mtce,303
http://statistics.data.gov.uk/id/local-authority/12UE,Huntingdonshire District Council,03/03/2017,205303,JL17/02/179,5,"2,397.60",J And L Sales Limited,CR423146,Ol Hdon Changing Facilities,Building Mtce,303
http://statistics.data.gov.uk/id/local-authority/12UE,Huntingdonshire District Council,09/03/2017,204674,10717672,5,"84,203.00",Cambridgeshire County Council,CR006678,On Street Parking,Sitework,359
http://statistics.data.gov.uk/id/local-authority/12UE,Huntingdonshire District Council,16/03/2017,206023,0023/2017,5,264,Get Inspired Golf Ltd,CR412288,One Leisure Active Lifestyles,Instructors/Tutors,720
http://statistics.data.gov.uk/id/local-authority/12UE,Huntingdonshire District Council,23/03/2017,206558,HDC003,5,"14,971.01",Aseptika Ltd,CR424671,One Leisure Active Lifestyles,Equipment,500
http://statistics.data.gov.uk/id/local-authority/12UE,Huntingdonshire District Council,30/03/2017,205668,IN16PS17001150,5,68.47,Whistl Uk Ltd,CR424061,One Leisure Active Lifestyles,Postage,231
http://statistics.data.gov.uk/id/local-authority/12UE,Huntingdonshire District Council,30/03/2017,206581,8245,5,"2,842.80",Fitness Warehouse Ltd,CR422295,One Leisure Corporate Mgt,Equipment,500
http://statistics.data.gov.uk/id/local-authority/12UE,Huntingdonshire District Council,30/03/2017,205281,30170,5,570,Bridge Fibre Limited,CR424041,One Leisure Corporate Mgt,Building Mtce,303
http://statistics.data.gov.uk/id/local-authority/12UE,Huntingdonshire District Council,03/03/2017,204616,40495,5,614,Clanpress King'S Lynn Ltd,CR413516,One Leisure Corporate Mgt,Printing (Internal),S04
http://statistics.data.gov.uk/id/local-authority/12UE,Huntingdonshire District Council,23/03/2017,205269,59037,5,"2,391.60",The Leisure Media Company Ltd,CR004418,One Leisure Corporate Mgt,Recruitment Costs,120
http://statistics.data.gov.uk/id/local-authority/12UE,Huntingdonshire District Council,03/03/2017,205151,234695,5,251.64,Qualsafe,CR479985,One Leisure Corporate Mgt,Materials,550
http://statistics.data.gov.uk/id/local-authority/12UE,Huntingdonshire District Council,03/03/2017,204335,15220,5,267.84,Jade Security Services Ltd,CR422256,One Leisure Huntingdon,Cash Collection,702
http://statistics.data.gov.uk/id/local-authority/12UE,Huntingdonshire District Council,30/03/2017,205923,15329,5,267.84,Jade Security Services Ltd,CR422256,One Leisure Huntingdon,Cash Collection,702
http://statistics.data.gov.uk/id/local-authority/12UE,Huntingdonshire District Council,23/03/2017,206365,17145,5,446.86,Bigprinting,CR416383,One Leisure Huntingdon,Advertising/Promoting Services,255
http://statistics.data.gov.uk/id/local-authority/12UE,Huntingdonshire District Council,23/03/2017,206368,17240,5,465.6,Bigprinting,CR416383,One Leisure Huntingdon,Advertising/Promoting Services,255
http://statistics.data.gov.uk/id/local-authority/12UE,Huntingdonshire District Council,30/03/2017,205253,27127,5,957.6,Sterling Hydrotech Ltd,CR422914,One Leisure Huntingdon,Building Mtce,303
http://statistics.data.gov.uk/id/local-authority/12UE,Huntingdonshire District Council,16/03/2017,206148,31662,5,755.65,Hi-Spec Facilities Services Plc,CR423413,One Leisure Huntingdon,Building Cleaning,440
http://statistics.data.gov.uk/id/local-authority/12UE,Huntingdonshire District Council,30/03/2017,206146,31876,5,755.65,Hi-Spec Facilities Services Plc,CR423413,One Leisure Huntingdon,Building Cleaning,440
http://statistics.data.gov.uk/id/local-authority/12UE,Huntingdonshire District Council,16/03/2017,204848,40728,5,324,Hytrac Lifts Ltd,CR030618,One Leisure Huntingdon,Equipment Maintenance,511
http://statistics.data.gov.uk/id/local-authority/12UE,Huntingdonshire District Council,03/03/2017,204283,45932,5,582,Coffee Solutions,CR480375,One Leisure Huntingdon,Equipment Hire,507
http://statistics.data.gov.uk/id/local-authority/12UE,Huntingdonshire District Council,23/03/2017,205946,65916,5,"5,270.19",Haven Power Ltd,CR455940,One Leisure Huntingdon,Electricity,420
http://statistics.data.gov.uk/id/local-authority/12UE,Huntingdonshire District Council,23/03/2017,205948,65916,5,"4,788.93",Haven Power Ltd,CR455940,One Leisure Huntingdon,Electricity,420
http://statistics.data.gov.uk/id/local-authority/12UE,Huntingdonshire District Council,03/03/2017,205285,65916,5,"4,594.88",Haven Power Ltd,CR455940,One Leisure Huntingdon,Electricity,420
http://statistics.data.gov.uk/id/local-authority/12UE,Huntingdonshire District Council,03/03/2017,204172,77094,5,180.96,Snackline Direct Ltd,CR478090,One Leisure Huntingdon,Bar Provisions,558
http://statistics.data.gov.uk/id/local-authority/12UE,Huntingdonshire District Council,03/03/2017,204172,77094,5,91.13,Snackline Direct Ltd,CR478090,One Leisure Huntingdon,Confectionery,572
http://statistics.data.gov.uk/id/local-authority/12UE,Huntingdonshire District Council,23/03/2017,205623,77784,5,136.57,Snackline Direct Ltd,CR478090,One Leisure Huntingdon,Bar Provisions,558
http://statistics.data.gov.uk/id/local-authority/12UE,Huntingdonshire District Council,23/03/2017,205623,77784,5,114.04,Snackline Direct Ltd,CR478090,One Leisure Huntingdon,Confectionery,572
http://statistics.data.gov.uk/id/local-authority/12UE,Huntingdonshire District Council,23/03/2017,205200,427591,5,312,Heasell Electromechanical Services Ltd,CR422407,One Leisure Huntingdon,Building Mtce,303
http://statistics.data.gov.uk/id/local-authority/12UE,Huntingdonshire District Council,23/03/2017,206233,647756,5,278.24,Lacons,CR422174,One Leisure Huntingdon,Bar Provisions,558
http://statistics.data.gov.uk/id/local-authority/12UE,Huntingdonshire District Council,03/03/2017,204612,4001935,5,646.5,Gladstone Mrm,CR405717,One Leisure Huntingdon,Software,206
http://statistics.data.gov.uk/id/local-authority/12UE,Huntingdonshire District Council,03/03/2017,204610,4001942,5,599.86,Gladstone Mrm,CR405717,One Leisure Huntingdon,Software,206
http://statistics.data.gov.uk/id/local-authority/12UE,Huntingdonshire District Council,09/03/2017,204578,10378639,5,296.03,Lucozade Ribena Suntory Ltd,CR422660,One Leisure Huntingdon,Vending Materials,560
http://statistics.data.gov.uk/id/local-authority/12UE,Huntingdonshire District Council,30/03/2017,205663,10394698,5,256.75,Lucozade Ribena Suntory Ltd,CR422660,One Leisure Huntingdon,Vending Materials,560
http://statistics.data.gov.uk/id/local-authority/12UE,Huntingdonshire District Council,03/03/2017,204167,82669871,5,152.93,Archant Herts & Cambs,CR415764,One Leisure Huntingdon,Advertising/Promoting Services,255
http://statistics.data.gov.uk/id/local-authority/12UE,Huntingdonshire District Council,09/03/2017,204453,82672525,5,205.42,Archant Community Media Ltd,CR452143,One Leisure Huntingdon,Advertising/Promoting Services,255
http://statistics.data.gov.uk/id/local-authority/12UE,Huntingdonshire District Council,09/03/2017,204823,82672525,5,205.43,Archant Herts & Cambs,CR415764,One Leisure Huntingdon,Advertising/Promoting Services,255
http://statistics.data.gov.uk/id/local-authority/12UE,Huntingdonshire District Council,30/03/2017,205643,82683084,5,244.2,Archant Community Media Ltd,CR452143,One Leisure Huntingdon,Advertising/Promoting Services,255
http://statistics.data.gov.uk/id/local-authority/12UE,Huntingdonshire District Council,23/03/2017,205992,481677109,5,"2,431.56",Swalec,CR407130,One Leisure Huntingdon,Electricity,420
http://statistics.data.gov.uk/id/local-authority/12UE,Huntingdonshire District Council,23/03/2017,206344,12489088110,5,"2,361.84",E-On Energy,CR416430,One Leisure Huntingdon,Gas,421
http://statistics.data.gov.uk/id/local-authority/12UE,Huntingdonshire District Council,23/03/2017,206347,12489088970,5,782.02,E-On Energy,CR416430,One Leisure Huntingdon,Gas,421
http://statistics.data.gov.uk/id/local-authority/12UE,Huntingdonshire District Council,30/03/2017,205991,38SI 3843072,5,441.19,Brenntag Uk Ltd,CR015017,One Leisure Huntingdon,Chemicals,551
http://statistics.data.gov.uk/id/local-authority/12UE,Huntingdonshire District Council,30/03/2017,206559,845/ONE,5,86.4,Term Times,CR423394,One Leisure Huntingdon,Advertising/Promoting Services,255
http://statistics.data.gov.uk/id/local-authority/12UE,Huntingdonshire District Council,30/03/2017,206576,GD577,5,300,Greenday Energy Ltd,CR422398,One Leisure Huntingdon,Gas,421
http://statistics.data.gov.uk/id/local-authority/12UE,Huntingdonshire District Council,23/03/2017,205206,INV-0054,5,125,Wamo Sports Ltd,CR423559,One Leisure Huntingdon,Licences,730
http://statistics.data.gov.uk/id/local-authority/12UE,Huntingdonshire District Council,03/03/2017,204589,INV-5569,5,527.66,Cfb Limited,CR480886,One Leisure Huntingdon,Advertising/Promoting Services,255
http://statistics.data.gov.uk/id/local-authority/12UE,Huntingdonshire District Council,16/03/2017,206017,9751,5,299.5,Roger Wilson Electronics,CR028041,One Leisure Ramsey,Building Mtce,303
http://statistics.data.gov.uk/id/local-authority/12UE,Huntingdonshire District Council,16/03/2017,206017,9751,5,106.8,Roger Wilson Electronics,CR028041,One Leisure Ramsey,Equipment,500
http://statistics.data.gov.uk/id/local-authority/12UE,Huntingdonshire District Council,03/03/2017,204335,15220,5,66.96,Jade Security Services Ltd,CR422256,One Leisure Ramsey,Cash Collection,702
http://statistics.data.gov.uk/id/local-authority/12UE,Huntingdonshire District Council,30/03/2017,205923,15329,5,66.96,Jade Security Services Ltd,CR422256,One Leisure Ramsey,Cash Collection,702
http://statistics.data.gov.uk/id/local-authority/12UE,Huntingdonshire District Council,23/03/2017,206365,17145,5,223.41,Bigprinting,CR416383,One Leisure Ramsey,Advertising/Promoting Services,255
http://statistics.data.gov.uk/id/local-authority/12UE,Huntingdonshire District Council,23/03/2017,206368,17240,5,232.8,Bigprinting,CR416383,One Leisure Ramsey,Advertising/Promoting Services,255
http://statistics.data.gov.uk/id/local-authority/12UE,Huntingdonshire District Council,23/03/2017,205233,27126,5,957.6,Sterling Hydrotech Ltd,CR422914,One Leisure Ramsey,Building Mtce,303
http://statistics.data.gov.uk/id/local-authority/12UE,Huntingdonshire District Council,16/03/2017,206148,31662,5,593.74,Hi-Spec Facilities Services Plc,CR423413,One Leisure Ramsey,Building Cleaning,440
http://statistics.data.gov.uk/id/local-authority/12UE,Huntingdonshire District Council,30/03/2017,206146,31876,5,593.74,Hi-Spec Facilities Services Plc,CR423413,One Leisure Ramsey,Building Cleaning,440
http://statistics.data.gov.uk/id/local-authority/12UE,Huntingdonshire District Council,03/03/2017,205151,234695,5,48.24,Qualsafe,CR479985,One Leisure Ramsey,Materials,550
http://statistics.data.gov.uk/id/local-authority/12UE,Huntingdonshire District Council,03/03/2017,204612,4001935,5,323.24,Gladstone Mrm,CR405717,One Leisure Ramsey,Software,206
http://statistics.data.gov.uk/id/local-authority/12UE,Huntingdonshire District Council,03/03/2017,204610,4001942,5,299.91,Gladstone Mrm,CR405717,One Leisure Ramsey,Software,206
http://statistics.data.gov.uk/id/local-authority/12UE,Huntingdonshire District Council,23/03/2017,204970,10387458,5,415.43,Lucozade Ribena Suntory Ltd,CR422660,One Leisure Ramsey,Vending Materials,560
http://statistics.data.gov.uk/id/local-authority/12UE,Huntingdonshire District Council,03/03/2017,204167,82669871,5,76.45,Archant Herts & Cambs,CR415764,One Leisure Ramsey,Advertising/Promoting Services,255
http://statistics.data.gov.uk/id/local-authority/12UE,Huntingdonshire District Council,09/03/2017,204453,82672525,5,102.72,Archant Community Media Ltd,CR452143,One Leisure Ramsey,Advertising/Promoting Services,255
http://statistics.data.gov.uk/id/local-authority/12UE,Huntingdonshire District Council,09/03/2017,204823,82672525,5,102.7,Archant Herts & Cambs,CR415764,One Leisure Ramsey,Advertising/Promoting Services,255
http://statistics.data.gov.uk/id/local-authority/12UE,Huntingdonshire District Council,30/03/2017,205643,82683084,5,122.1,Archant Community Media Ltd,CR452143,One Leisure Ramsey,Advertising/Promoting Services,255
http://statistics.data.gov.uk/id/local-authority/12UE,Huntingdonshire District Council,23/03/2017,206350,12489090790,5,"1,573.08",E-On Energy,CR416430,One Leisure Ramsey,Gas,421
http://statistics.data.gov.uk/id/local-authority/12UE,Huntingdonshire District Council,30/03/2017,206559,845/ONE,5,86.4,Term Times,CR423394,One Leisure Ramsey,Advertising/Promoting Services,255
http://statistics.data.gov.uk/id/local-authority/12UE,Huntingdonshire District Council,23/03/2017,205206,INV-0054,5,62.5,Wamo Sports Ltd,CR423559,One Leisure Ramsey,Licences,730
http://statistics.data.gov.uk/id/local-authority/12UE,Huntingdonshire District Council,03/03/2017,204589,INV-5569,5,263.83,Cfb Limited,CR480886,One Leisure Ramsey,Advertising/Promoting Services,255
http://statistics.data.gov.uk/id/local-authority/12UE,Huntingdonshire District Council,03/03/2017,204335,15220,5,66.96,Jade Security Services Ltd,CR422256,One Leisure Sawtry,Cash Collection,702
http://statistics.data.gov.uk/id/local-authority/12UE,Huntingdonshire District Council,30/03/2017,205923,15329,5,66.96,Jade Security Services Ltd,CR422256,One Leisure Sawtry,Cash Collection,702
http://statistics.data.gov.uk/id/local-authority/12UE,Huntingdonshire District Council,23/03/2017,206365,17145,5,223.41,Bigprinting,CR416383,One Leisure Sawtry,Advertising/Promoting Services,255
http://statistics.data.gov.uk/id/local-authority/12UE,Huntingdonshire District Council,23/03/2017,206368,17240,5,232.8,Bigprinting,CR416383,One Leisure Sawtry,Advertising/Promoting Services,255
http://statistics.data.gov.uk/id/local-authority/12UE,Huntingdonshire District Council,16/03/2017,206148,31662,5,620.72,Hi-Spec Facilities Services Plc,CR423413,One Leisure Sawtry,Building Cleaning,440
http://statistics.data.gov.uk/id/local-authority/12UE,Huntingdonshire District Council,30/03/2017,206146,31876,5,620.72,Hi-Spec Facilities Services Plc,CR423413,One Leisure Sawtry,Building Cleaning,440
http://statistics.data.gov.uk/id/local-authority/12UE,Huntingdonshire District Council,03/03/2017,204612,4001935,5,323.26,Gladstone Mrm,CR405717,One Leisure Sawtry,Software,206
http://statistics.data.gov.uk/id/local-authority/12UE,Huntingdonshire District Council,03/03/2017,204610,4001942,5,299.91,Gladstone Mrm,CR405717,One Leisure Sawtry,Software,206
http://statistics.data.gov.uk/id/local-authority/12UE,Huntingdonshire District Council,03/03/2017,204167,82669871,5,76.46,Archant Herts & Cambs,CR415764,One Leisure Sawtry,Advertising/Promoting Services,255
http://statistics.data.gov.uk/id/local-authority/12UE,Huntingdonshire District Council,09/03/2017,204453,82672525,5,102.72,Archant Community Media Ltd,CR452143,One Leisure Sawtry,Advertising/Promoting Services,255
http://statistics.data.gov.uk/id/local-authority/12UE,Huntingdonshire District Council,09/03/2017,204823,82672525,5,102.71,Archant Herts & Cambs,CR415764,One Leisure Sawtry,Advertising/Promoting Services,255
http://statistics.data.gov.uk/id/local-authority/12UE,Huntingdonshire District Council,09/03/2017,204822,82672525,5,957.6,Sterling Hydrotech Ltd,CR422914,One Leisure Sawtry,Building Mtce,303
http://statistics.data.gov.uk/id/local-authority/12UE,Huntingdonshire District Council,30/03/2017,205643,82683084,5,122.1,Archant Community Media Ltd,CR452143,One Leisure Sawtry,Advertising/Promoting Services,255
http://statistics.data.gov.uk/id/local-authority/12UE,Huntingdonshire District Council,03/03/2017,205276,211657030,5,"4,067.37",Swalec,CR407130,One Leisure Sawtry,Electricity,420
http://statistics.data.gov.uk/id/local-authority/12UE,Huntingdonshire District Council,23/03/2017,205988,211687030,5,"3,488.50",Swalec,CR407130,One Leisure Sawtry,Electricity,420
http://statistics.data.gov.uk/id/local-authority/12UE,Huntingdonshire District Council,23/03/2017,206346,12489088700,5,"1,408.24",E-On Energy,CR416430,One Leisure Sawtry,Gas,421
http://statistics.data.gov.uk/id/local-authority/12UE,Huntingdonshire District Council,23/03/2017,205422,38SI 3842373,5,522.03,Brenntag Uk Ltd,CR015017,One Leisure Sawtry,Chemicals,551
http://statistics.data.gov.uk/id/local-authority/12UE,Huntingdonshire District Council,30/03/2017,206559,845/ONE,5,86.4,Term Times,CR423394,One Leisure Sawtry,Advertising/Promoting Services,255
http://statistics.data.gov.uk/id/local-authority/12UE,Huntingdonshire District Council,23/03/2017,205206,INV-0054,5,62.5,Wamo Sports Ltd,CR423559,One Leisure Sawtry,Licences,730
http://statistics.data.gov.uk/id/local-authority/12UE,Huntingdonshire District Council,03/03/2017,204589,INV-5569,5,263.83,Cfb Limited,CR480886,One Leisure Sawtry,Advertising/Promoting Services,255
http://statistics.data.gov.uk/id/local-authority/12UE,Huntingdonshire District Council,16/03/2017,204794,217,,706.2,Inspired Spa Solutions,CR487218,One Leisure St Ives,Chemicals,551
http://statistics.data.gov.uk/id/local-authority/12UE,Huntingdonshire District Council,03/03/2017,205323,300,5,760.97,2 Ton Productions,CR410213,One Leisure St Ives,Entertainments Inc Cable Tv,744
http://statistics.data.gov.uk/id/local-authority/12UE,Huntingdonshire District Council,30/03/2017,205585,2184,5,330,The Wedding Planner,CR482566,One Leisure St Ives,Advertising/Promoting Services,255
http://statistics.data.gov.uk/id/local-authority/12UE,Huntingdonshire District Council,03/03/2017,204584,2917,5,432,Huntingdon Live Magazine,CR478621,One Leisure St Ives,Advertising/Promoting Services,255
http://statistics.data.gov.uk/id/local-authority/12UE,Huntingdonshire District Council,09/03/2017,205631,5434,5,"2,400.00",Templar Entertainment Agency,CR424651,One Leisure St Ives,Entertainments Inc Cable Tv,744
http://statistics.data.gov.uk/id/local-authority/12UE,Huntingdonshire District Council,09/03/2017,205632,6012,5,824.4,Steamworks Ltd T/A Anapos,CR423966,One Leisure St Ives,Building Mtce,303
http://statistics.data.gov.uk/id/local-authority/12UE,Huntingdonshire District Council,16/03/2017,205711,8332,5,750,Starlite Roadshow,CR024127,One Leisure St Ives,Entertainments Inc Cable Tv,744
http://statistics.data.gov.uk/id/local-authority/12UE,Huntingdonshire District Council,30/03/2017,207025,8336,5,"1,025.00",Starlite Roadshow,CR024127,One Leisure St Ives,Entertainments Inc Cable Tv,744
http://statistics.data.gov.uk/id/local-authority/12UE,Huntingdonshire District Council,09/03/2017,204549,9735,5,480,Roger Wilson Electronics,CR028041,One Leisure St Ives,Building Mtce,303
http://statistics.data.gov.uk/id/local-authority/12UE,Huntingdonshire District Council,09/03/2017,204661,9739,5,"1,431.70",Roger Wilson Electronics,CR028041,One Leisure St Ives,Building Mtce,303
http://statistics.data.gov.uk/id/local-authority/12UE,Huntingdonshire District Council,16/03/2017,206014,9748,5,822,Roger Wilson Electronics,CR028041,One Leisure St Ives,Building Mtce,303
http://statistics.data.gov.uk/id/local-authority/12UE,Huntingdonshire District Council,16/03/2017,206200,13404,5,493.44,Playfords Ltd,CR479055,One Leisure St Ives,Building Mtce,303
http://statistics.data.gov.uk/id/local-authority/12UE,Huntingdonshire District Council,03/03/2017,204335,15220,5,200.88,Jade Security Services Ltd,CR422256,One Leisure St Ives,Cash Collection,702
http://statistics.data.gov.uk/id/local-authority/12UE,Huntingdonshire District Council,30/03/2017,205923,15329,5,200.88,Jade Security Services Ltd,CR422256,One Leisure St Ives,Cash Collection,702
http://statistics.data.gov.uk/id/local-authority/12UE,Huntingdonshire District Council,23/03/2017,206365,17145,5,446.86,Bigprinting,CR416383,One Leisure St Ives,Advertising/Promoting Services,255
http://statistics.data.gov.uk/id/local-authority/12UE,Huntingdonshire District Council,23/03/2017,206368,17240,5,465.6,Bigprinting,CR416383,One Leisure St Ives,Advertising/Promoting Services,255
http://statistics.data.gov.uk/id/local-authority/12UE,Huntingdonshire District Council,30/03/2017,205590,17275,5,"1,360.80",Bigprinting,CR416383,One Leisure St Ives,Advertising/Promoting Services,255
http://statistics.data.gov.uk/id/local-authority/12UE,Huntingdonshire District Council,30/03/2017,205591,17315,5,252,Bigprinting,CR416383,One Leisure St Ives,Advertising/Promoting Services,255
http://statistics.data.gov.uk/id/local-authority/12UE,Huntingdonshire District Council,03/03/2017,204582,21402,5,383.28,Bh Doors & Engineering Ltd,CR455707,One Leisure St Ives,Building Mtce,303
http://statistics.data.gov.uk/id/local-authority/12UE,Huntingdonshire District Council,23/03/2017,205186,21496,5,455.95,Bh Doors & Engineering Ltd,CR455707,One Leisure St Ives,Building Mtce,303
http://statistics.data.gov.uk/id/local-authority/12UE,Huntingdonshire District Council,16/03/2017,206159,22101,,666.6,Show & Event Security,CR422363,One Leisure St Ives,Hired Staff,100
http://statistics.data.gov.uk/id/local-authority/12UE,Huntingdonshire District Council,23/03/2017,206459,22145,,382.5,Show & Event Security,CR422363,One Leisure St Ives,Hired Staff,100
http://statistics.data.gov.uk/id/local-authority/12UE,Huntingdonshire District Council,30/03/2017,205253,27127,5,"1,521.60",Sterling Hydrotech Ltd,CR422914,One Leisure St Ives,Building Mtce,303
http://statistics.data.gov.uk/id/local-authority/12UE,Huntingdonshire District Council,16/03/2017,206148,31662,5,"4,560.91",Hi-Spec Facilities Services Plc,CR423413,One Leisure St Ives,Building Cleaning,440
http://statistics.data.gov.uk/id/local-authority/12UE,Huntingdonshire District Council,30/03/2017,206146,31876,5,"4,560.91",Hi-Spec Facilities Services Plc,CR423413,One Leisure St Ives,Building Cleaning,440
http://statistics.data.gov.uk/id/local-authority/12UE,Huntingdonshire District Council,16/03/2017,206158,43007,5,300,Laytondings Entertainment Ltd,CR412228,One Leisure St Ives,Entertainments Inc Cable Tv,744
http://statistics.data.gov.uk/id/local-authority/12UE,Huntingdonshire District Council,09/03/2017,205616,54261,5,"6,087.72",Off The Kerb Productions,CR423529,One Leisure St Ives,Entertainments Inc Cable Tv,744
http://statistics.data.gov.uk/id/local-authority/12UE,Huntingdonshire District Council,23/03/2017,205230,61369,5,344.77,Maskearaid Ltd,CR033423,One Leisure St Ives,Cleaning Materials,443
http://statistics.data.gov.uk/id/local-authority/12UE,Huntingdonshire District Council,23/03/2017,205942,65919,5,"7,642.58",Haven Power Ltd,CR455940,One Leisure St Ives,Electricity,420
http://statistics.data.gov.uk/id/local-authority/12UE,Huntingdonshire District Council,23/03/2017,205941,65922,5,"4,506.50",Haven Power Ltd,CR455940,One Leisure St Ives,Electricity,420
http://statistics.data.gov.uk/id/local-authority/12UE,Huntingdonshire District Council,23/03/2017,205931,65922,5,"4,169.55",Haven Power Ltd,CR455940,One Leisure St Ives,Electricity,420
http://statistics.data.gov.uk/id/local-authority/12UE,Huntingdonshire District Council,09/03/2017,204839,77345,5,171.47,Snackline Direct Ltd,CR478090,One Leisure St Ives,Bar Provisions,558
http://statistics.data.gov.uk/id/local-authority/12UE,Huntingdonshire District Council,09/03/2017,204839,77345,5,54.44,Snackline Direct Ltd,CR478090,One Leisure St Ives,Catering Materials,559
http://statistics.data.gov.uk/id/local-authority/12UE,Huntingdonshire District Council,09/03/2017,204839,77345,5,149.43,Snackline Direct Ltd,CR478090,One Leisure St Ives,Confectionery,572
http://statistics.data.gov.uk/id/local-authority/12UE,Huntingdonshire District Council,16/03/2017,205326,77561,5,109.12,Snackline Direct Ltd,CR478090,One Leisure St Ives,Bar Provisions,558
http://statistics.data.gov.uk/id/local-authority/12UE,Huntingdonshire District Council,16/03/2017,205326,77561,5,58.63,Snackline Direct Ltd,CR478090,One Leisure St Ives,Catering Materials,559
http://statistics.data.gov.uk/id/local-authority/12UE,Huntingdonshire District Council,16/03/2017,205326,77561,5,187.34,Snackline Direct Ltd,CR478090,One Leisure St Ives,Confectionery,572
http://statistics.data.gov.uk/id/local-authority/12UE,Huntingdonshire District Council,09/03/2017,205584,80075,5,498.74,Jsa Leisure Ltd,CR40187,One Leisure St Ives,Building Mtce,303
http://statistics.data.gov.uk/id/local-authority/12UE,Huntingdonshire District Council,30/03/2017,206567,80120,5,502.2,Jsa Leisure Ltd,CR40187,One Leisure St Ives,Building Mtce,303
http://statistics.data.gov.uk/id/local-authority/12UE,Huntingdonshire District Council,03/03/2017,204910,159218,5,530.09,Oakham Ales,CR422253,One Leisure St Ives,Bar Provisions,558
http://statistics.data.gov.uk/id/local-authority/12UE,Huntingdonshire District Council,16/03/2017,204765,246691,5,73.74,Ken Booth & Co,CR000305,One Leisure St Ives,Cleaning Materials,443
http://statistics.data.gov.uk/id/local-authority/12UE,Huntingdonshire District Council,16/03/2017,204765,246691,5,"2,398.80",Ken Booth & Co,CR000305,One Leisure St Ives,Equipment,500
http://statistics.data.gov.uk/id/local-authority/12UE,Huntingdonshire District Council,03/03/2017,204234,282637,5,246.24,South Lincs Food Service,CR033415,One Leisure St Ives,Catering Materials,559
http://statistics.data.gov.uk/id/local-authority/12UE,Huntingdonshire District Council,03/03/2017,204234,282637,5,35.32,South Lincs Food Service,CR033415,One Leisure St Ives,Confectionery,572
http://statistics.data.gov.uk/id/local-authority/12UE,Huntingdonshire District Council,09/03/2017,204525,283212,5,208.5,South Lincs Food Service,CR033415,One Leisure St Ives,Catering Materials,559
http://statistics.data.gov.uk/id/local-authority/12UE,Huntingdonshire District Council,09/03/2017,204525,283212,5,48.06,South Lincs Food Service,CR033415,One Leisure St Ives,Confectionery,572
http://statistics.data.gov.uk/id/local-authority/12UE,Huntingdonshire District Council,09/03/2017,204836,287768,5,357.87,South Lincs Food Service,CR033415,One Leisure St Ives,Catering Materials,559
http://statistics.data.gov.uk/id/local-authority/12UE,Huntingdonshire District Council,09/03/2017,204836,287768,5,22.5,South Lincs Food Service,CR033415,One Leisure St Ives,Confectionery,572
http://statistics.data.gov.uk/id/local-authority/12UE,Huntingdonshire District Council,09/03/2017,204528,289969,5,157.1,Westminster Foodservice,CR455156,One Leisure St Ives,Bar Provisions,558
http://statistics.data.gov.uk/id/local-authority/12UE,Huntingdonshire District Council,09/03/2017,204528,289969,5,178.86,Westminster Foodservice,CR455156,One Leisure St Ives,Catering Materials,559
http://statistics.data.gov.uk/id/local-authority/12UE,Huntingdonshire District Council,09/03/2017,204528,289969,5,35.86,Westminster Foodservice,CR455156,One Leisure St Ives,Confectionery,572
http://statistics.data.gov.uk/id/local-authority/12UE,Huntingdonshire District Council,16/03/2017,205339,290358,5,110.34,Westminster Foodservice,CR455156,One Leisure St Ives,Bar Provisions,558
http://statistics.data.gov.uk/id/local-authority/12UE,Huntingdonshire District Council,16/03/2017,205339,290358,5,199.6,Westminster Foodservice,CR455156,One Leisure St Ives,Catering Materials,559
http://statistics.data.gov.uk/id/local-authority/12UE,Huntingdonshire District Council,30/03/2017,205986,291221,5,159.25,Westminster Foodservice,CR455156,One Leisure St Ives,Bar Provisions,558
http://statistics.data.gov.uk/id/local-authority/12UE,Huntingdonshire District Council,30/03/2017,205986,291221,5,155.81,Westminster Foodservice,CR455156,One Leisure St Ives,Catering Materials,559
http://statistics.data.gov.uk/id/local-authority/12UE,Huntingdonshire District Council,23/03/2017,205290,450013,,928.14,Storm Technologies,CR480909,One Leisure St Ives,Other I T Hardware,203
http://statistics.data.gov.uk/id/local-authority/12UE,Huntingdonshire District Council,03/03/2017,204164,647967,5,665.99,Lacons,CR422174,One Leisure St Ives,Bar Provisions,558
http://statistics.data.gov.uk/id/local-authority/12UE,Huntingdonshire District Council,03/03/2017,204164,647967,5,18.81,Lacons,CR422174,One Leisure St Ives,Gas Cylinders (Incl. Bars),567
http://statistics.data.gov.uk/id/local-authority/12UE,Huntingdonshire District Council,09/03/2017,204506,648857,5,604.32,Lacons,CR422174,One Leisure St Ives,Bar Provisions,558
http://statistics.data.gov.uk/id/local-authority/12UE,Huntingdonshire District Council,09/03/2017,204505,649132,5,428.1,Lacons,CR422174,One Leisure St Ives,Bar Provisions,558
http://statistics.data.gov.uk/id/local-authority/12UE,Huntingdonshire District Council,16/03/2017,204803,649722,5,339.04,Lacons,CR422174,One Leisure St Ives,Bar Provisions,558
http://statistics.data.gov.uk/id/local-authority/12UE,Huntingdonshire District Council,16/03/2017,205656,649991,5,791.34,Lacons,CR422174,One Leisure St Ives,Bar Provisions,558
http://statistics.data.gov.uk/id/local-authority/12UE,Huntingdonshire District Council,09/03/2017,205153,650759,5,502.32,Lacons,CR422174,One Leisure St Ives,Bar Provisions,558
http://statistics.data.gov.uk/id/local-authority/12UE,Huntingdonshire District Council,09/03/2017,205153,650759,5,55.86,Lacons,CR422174,One Leisure St Ives,Gas Cylinders (Incl. Bars),567
http://statistics.data.gov.uk/id/local-authority/12UE,Huntingdonshire District Council,30/03/2017,205655,651494,5,"1,326.28",Lacons,CR422174,One Leisure St Ives,Bar Provisions,558
http://statistics.data.gov.uk/id/local-authority/12UE,Huntingdonshire District Council,30/03/2017,205657,651709,5,360.88,Lacons,CR422174,One Leisure St Ives,Bar Provisions,558
http://statistics.data.gov.uk/id/local-authority/12UE,Huntingdonshire District Council,30/03/2017,205657,651709,5,37.04,Lacons,CR422174,One Leisure St Ives,Gas Cylinders (Incl. Bars),567
http://statistics.data.gov.uk/id/local-authority/12UE,Huntingdonshire District Council,16/03/2017,206152,673369,5,351,Metro Rod Ltd,CR479927,One Leisure St Ives,Building Mtce,303
http://statistics.data.gov.uk/id/local-authority/12UE,Huntingdonshire District Council,03/03/2017,204612,4001935,5,646.5,Gladstone Mrm,CR405717,One Leisure St Ives,Software,206
http://statistics.data.gov.uk/id/local-authority/12UE,Huntingdonshire District Council,03/03/2017,204610,4001942,5,599.86,Gladstone Mrm,CR405717,One Leisure St Ives,Software,206
http://statistics.data.gov.uk/id/local-authority/12UE,Huntingdonshire District Council,03/03/2017,204170,4334558,1,229.28,Espo,CR006566,One Leisure St Ives,Cleaning Materials,443
http://statistics.data.gov.uk/id/local-authority/12UE,Huntingdonshire District Council,03/03/2017,204170,4334558,1,27.55,Espo,CR006566,One Leisure St Ives,Materials,550
http://statistics.data.gov.uk/id/local-authority/12UE,Huntingdonshire District Council,03/03/2017,204170,4334558,1,19.29,Espo,CR006566,One Leisure St Ives,Stationery,225
http://statistics.data.gov.uk/id/local-authority/12UE,Huntingdonshire District Council,16/03/2017,204820,4349745,1,202.32,Espo,CR006566,One Leisure St Ives,Cleaning Materials,443
http://statistics.data.gov.uk/id/local-authority/12UE,Huntingdonshire District Council,16/03/2017,204820,4349745,1,123.23,Espo,CR006566,One Leisure St Ives,Equipment,500
http://statistics.data.gov.uk/id/local-authority/12UE,Huntingdonshire District Council,16/03/2017,204820,4349745,1,27.3,Espo,CR006566,One Leisure St Ives,Materials,550
http://statistics.data.gov.uk/id/local-authority/12UE,Huntingdonshire District Council,09/03/2017,205189,7612069,5,"1,144.68",Certas Energy T/A Pace Fuelcare,CR455975,One Leisure St Ives,Diesel,615
http://statistics.data.gov.uk/id/local-authority/12UE,Huntingdonshire District Council,23/03/2017,205218,10390478,5,409.58,Lucozade Ribena Suntory Ltd,CR422660,One Leisure St Ives,Vending Materials,560
http://statistics.data.gov.uk/id/local-authority/12UE,Huntingdonshire District Council,09/03/2017,205266,17002315,5,610.01,Technogym Uk Ltd,CR033037,One Leisure St Ives,Equipment Maintenance,511
http://statistics.data.gov.uk/id/local-authority/12UE,Huntingdonshire District Council,03/03/2017,204167,82669871,5,460.53,Archant Herts & Cambs,CR415764,One Leisure St Ives,Advertising/Promoting Services,255
http://statistics.data.gov.uk/id/local-authority/12UE,Huntingdonshire District Council,09/03/2017,204453,82672525,5,529.66,Archant Community Media Ltd,CR452143,One Leisure St Ives,Advertising/Promoting Services,255
http://statistics.data.gov.uk/id/local-authority/12UE,Huntingdonshire District Council,09/03/2017,204823,82672525,5,529.67,Archant Herts & Cambs,CR415764,One Leisure St Ives,Advertising/Promoting Services,255
http://statistics.data.gov.uk/id/local-authority/12UE,Huntingdonshire District Council,30/03/2017,205643,82683084,5,646.3,Archant Community Media Ltd,CR452143,One Leisure St Ives,Advertising/Promoting Services,255
http://statistics.data.gov.uk/id/local-authority/12UE,Huntingdonshire District Council,03/03/2017,204162,92626205,5,402.41,Speedo International Limited,CR41427,One Leisure St Ives,Materials For Resale,570
http://statistics.data.gov.uk/id/local-authority/12UE,Huntingdonshire District Council,09/03/2017,204556,92637294,5,270.48,Speedo International Limited,CR41427,One Leisure St Ives,Materials For Resale,570
http://statistics.data.gov.uk/id/local-authority/12UE,Huntingdonshire District Council,30/03/2017,206911,2102137416,5,908.97,Booker Cash And Carry,CR027611,One Leisure St Ives,Bar Provisions,558
http://statistics.data.gov.uk/id/local-authority/12UE,Huntingdonshire District Council,30/03/2017,206911,2102137416,5,204.55,Booker Cash And Carry,CR027611,One Leisure St Ives,Catering Materials,559
http://statistics.data.gov.uk/id/local-authority/12UE,Huntingdonshire District Council,30/03/2017,206911,2102137416,5,10.19,Booker Cash And Carry,CR027611,One Leisure St Ives,Cleaning Materials,443
http://statistics.data.gov.uk/id/local-authority/12UE,Huntingdonshire District Council,09/03/2017,205193,2103042279,5,14.28,Booker Cash And Carry,CR027611,One Leisure St Ives,Bar Provisions,558
http://statistics.data.gov.uk/id/local-authority/12UE,Huntingdonshire District Council,09/03/2017,205193,2103042279,5,191.39,Booker Cash And Carry,CR027611,One Leisure St Ives,Catering Materials,559
http://statistics.data.gov.uk/id/local-authority/12UE,Huntingdonshire District Council,09/03/2017,205193,2103042279,5,60.58,Booker Cash And Carry,CR027611,One Leisure St Ives,Materials,550
http://statistics.data.gov.uk/id/local-authority/12UE,Huntingdonshire District Council,09/03/2017,205195,2103071535,5,420.14,Booker Cash And Carry,CR027611,One Leisure St Ives,Bar Provisions,558
http://statistics.data.gov.uk/id/local-authority/12UE,Huntingdonshire District Council,09/03/2017,205195,2103071535,5,356.35,Booker Cash And Carry,CR027611,One Leisure St Ives,Catering Materials,559
http://statistics.data.gov.uk/id/local-authority/12UE,Huntingdonshire District Council,09/03/2017,205195,2103071535,5,35.87,Booker Cash And Carry,CR027611,One Leisure St Ives,Confectionery,572
http://statistics.data.gov.uk/id/local-authority/12UE,Huntingdonshire District Council,09/03/2017,205195,2103071535,5,54.96,Booker Cash And Carry,CR027611,One Leisure St Ives,Materials,550
http://statistics.data.gov.uk/id/local-authority/12UE,Huntingdonshire District Council,23/03/2017,205915,2103107736,5,"1,187.28",Booker Cash And Carry,CR027611,One Leisure St Ives,Bar Provisions,558
http://statistics.data.gov.uk/id/local-authority/12UE,Huntingdonshire District Council,23/03/2017,205915,2103107736,5,165.5,Booker Cash And Carry,CR027611,One Leisure St Ives,Catering Materials,559
http://statistics.data.gov.uk/id/local-authority/12UE,Huntingdonshire District Council,23/03/2017,205915,2103107736,5,77.93,Booker Cash And Carry,CR027611,One Leisure St Ives,Materials,550
http://statistics.data.gov.uk/id/local-authority/12UE,Huntingdonshire District Council,23/03/2017,206348,12489089510,5,676.57,E-On Energy,CR416430,One Leisure St Ives,Gas,421
http://statistics.data.gov.uk/id/local-authority/12UE,Huntingdonshire District Council,23/03/2017,206351,12489090950,5,"4,850.02",E-On Energy,CR416430,One Leisure St Ives,Gas,421
http://statistics.data.gov.uk/id/local-authority/12UE,Huntingdonshire District Council,09/03/2017,204459,38SI 3841440,5,555.57,Brenntag Uk Ltd,CR015017,One Leisure St Ives,Chemicals,551
http://statistics.data.gov.uk/id/local-authority/12UE,Huntingdonshire District Council,30/03/2017,206559,845/ONE,5,86.4,Term Times,CR423394,One Leisure St Ives,Advertising/Promoting Services,255
http://statistics.data.gov.uk/id/local-authority/12UE,Huntingdonshire District Council,23/03/2017,206469,BOOGIE 18/3/17,5,"1,441.37",Starlite Roadshow,CR024127,One Leisure St Ives,Entertainments Inc Cable Tv,744
http://statistics.data.gov.uk/id/local-authority/12UE,Huntingdonshire District Council,30/03/2017,206576,GD577,5,300,Greenday Energy Ltd,CR422398,One Leisure St Ives,Gas,421
http://statistics.data.gov.uk/id/local-authority/12UE,Huntingdonshire District Council,16/03/2017,205794,I157532,5,357.44,Oakham Ales,CR422253,One Leisure St Ives,Bar Provisions,558
http://statistics.data.gov.uk/id/local-authority/12UE,Huntingdonshire District Council,09/03/2017,204571,I158338,5,530.5,Oakham Ales,CR422253,One Leisure St Ives,Bar Provisions,558
http://statistics.data.gov.uk/id/local-authority/12UE,Huntingdonshire District Council,09/03/2017,205354,INV001602,5,450,Lynx Bowling Services,CR455532,One Leisure St Ives,Equipment Maintenance,511
http://statistics.data.gov.uk/id/local-authority/12UE,Huntingdonshire District Council,23/03/2017,205206,INV-0054,5,125,Wamo Sports Ltd,CR423559,One Leisure St Ives,Licences,730
http://statistics.data.gov.uk/id/local-authority/12UE,Huntingdonshire District Council,23/03/2017,205220,INV073291,5,409.86,Slush Puppie Ltd,CR455958,One Leisure St Ives,Catering Materials,559
http://statistics.data.gov.uk/id/local-authority/12UE,Huntingdonshire District Council,23/03/2017,205220,INV073291,5,9.26,Slush Puppie Ltd,CR455958,One Leisure St Ives,Materials,550
http://statistics.data.gov.uk/id/local-authority/12UE,Huntingdonshire District Council,03/03/2017,204589,INV-5569,5,527.66,Cfb Limited,CR480886,One Leisure St Ives,Advertising/Promoting Services,255
http://statistics.data.gov.uk/id/local-authority/12UE,Huntingdonshire District Council,30/03/2017,206574,MAR17/1543,5,450,The Cambridge Venue Company Ltd,CR455361,One Leisure St Ives,Advertising/Promoting Services,255
http://statistics.data.gov.uk/id/local-authority/12UE,Huntingdonshire District Council,30/03/2017,206744,MC,5,"3,577.40",Chimes International Entertainments Ltd,CR424673,One Leisure St Ives,Entertainments Inc Cable Tv,744
http://statistics.data.gov.uk/id/local-authority/12UE,Huntingdonshire District Council,30/03/2017,206848,MC15365879/01,5,"2,653.65",Cambridge Water Plc,CR000172,One Leisure St Ives,Water & Sewerage,432
http://statistics.data.gov.uk/id/local-authority/12UE,Huntingdonshire District Council,03/03/2017,204054,SIV164080,5,306.46,Les Mills Uk,CR025826,One Leisure St Ives,Licences,730
http://statistics.data.gov.uk/id/local-authority/12UE,Huntingdonshire District Council,30/03/2017,207035,STI000497,5,"1,350.57",St Ivo School,CR408986,One Leisure St Ives,Water & Sewerage,432
http://statistics.data.gov.uk/id/local-authority/12UE,Huntingdonshire District Council,30/03/2017,206575,V2270,5,699.6,Impie Ltd,CR480569,One Leisure St Ives,Advertising/Promoting Services,255
http://statistics.data.gov.uk/id/local-authority/12UE,Huntingdonshire District Council,23/03/2017,205208,218,,360.09,Inspired Spa Solutions,CR487218,One Leisure St Neots,Chemicals,551
http://statistics.data.gov.uk/id/local-authority/12UE,Huntingdonshire District Council,30/03/2017,205634,760,5,426.6,Pool Maintenance Ltd,CR422505,One Leisure St Neots,Building Mtce,303
http://statistics.data.gov.uk/id/local-authority/12UE,Huntingdonshire District Council,03/03/2017,204583,6703,5,355.2,The Pool & Spa Specialists Ltd,CR424623,One Leisure St Neots,Building Mtce,303
http://statistics.data.gov.uk/id/local-authority/12UE,Huntingdonshire District Council,23/03/2017,205212,9743,5,936,Roger Wilson Electronics,CR028041,One Leisure St Neots,Building Mtce,303
http://statistics.data.gov.uk/id/local-authority/12UE,Huntingdonshire District Council,23/03/2017,205212,9743,5,117.6,Roger Wilson Electronics,CR028041,One Leisure St Neots,Equipment,500
http://statistics.data.gov.uk/id/local-authority/12UE,Huntingdonshire District Council,16/03/2017,206016,9749,5,"1,847.45",Roger Wilson Electronics,CR028041,One Leisure St Neots,Building Mtce,303
http://statistics.data.gov.uk/id/local-authority/12UE,Huntingdonshire District Council,03/03/2017,204335,15220,5,401.76,Jade Security Services Ltd,CR422256,One Leisure St Neots,Cash Collection,702
http://statistics.data.gov.uk/id/local-authority/12UE,Huntingdonshire District Council,30/03/2017,205923,15329,5,401.76,Jade Security Services Ltd,CR422256,One Leisure St Neots,Cash Collection,702
http://statistics.data.gov.uk/id/local-authority/12UE,Huntingdonshire District Council,23/03/2017,206365,17145,5,446.86,Bigprinting,CR416383,One Leisure St Neots,Advertising/Promoting Services,255
http://statistics.data.gov.uk/id/local-authority/12UE,Huntingdonshire District Council,23/03/2017,206368,17240,5,465.6,Bigprinting,CR416383,One Leisure St Neots,Advertising/Promoting Services,255
http://statistics.data.gov.uk/id/local-authority/12UE,Huntingdonshire District Council,16/03/2017,206148,31662,5,"2,051.06",Hi-Spec Facilities Services Plc,CR423413,One Leisure St Neots,Building Cleaning,440
http://statistics.data.gov.uk/id/local-authority/12UE,Huntingdonshire District Council,30/03/2017,206146,31876,5,"2,051.06",Hi-Spec Facilities Services Plc,CR423413,One Leisure St Neots,Building Cleaning,440
http://statistics.data.gov.uk/id/local-authority/12UE,Huntingdonshire District Council,16/03/2017,204906,61314,5,372.09,Maskearaid Ltd,CR033423,One Leisure St Neots,Cleaning Materials,443
http://statistics.data.gov.uk/id/local-authority/12UE,Huntingdonshire District Council,23/03/2017,205944,65914,5,"9,911.33",Haven Power Ltd,CR455940,One Leisure St Neots,Electricity,420
http://statistics.data.gov.uk/id/local-authority/12UE,Huntingdonshire District Council,23/03/2017,205947,65914,5,"9,005.68",Haven Power Ltd,CR455940,One Leisure St Neots,Electricity,420
http://statistics.data.gov.uk/id/local-authority/12UE,Huntingdonshire District Council,03/03/2017,205284,65914,5,"8,603.81",Haven Power Ltd,CR455940,One Leisure St Neots,Electricity,420
http://statistics.data.gov.uk/id/local-authority/12UE,Huntingdonshire District Council,30/03/2017,206774,77731,5,734.09,Snackline Direct Ltd,CR478090,One Leisure St Neots,Vending Materials,560
http://statistics.data.gov.uk/id/local-authority/12UE,Huntingdonshire District Council,03/03/2017,205151,234695,5,48.24,Qualsafe,CR479985,One Leisure St Neots,Materials,550
http://statistics.data.gov.uk/id/local-authority/12UE,Huntingdonshire District Council,30/03/2017,205588,839421,5,223.26,J P Lennard Ltd,CR028595,One Leisure St Neots,Equipment,500
http://statistics.data.gov.uk/id/local-authority/12UE,Huntingdonshire District Council,30/03/2017,205588,839421,5,71.5,J P Lennard Ltd,CR028595,One Leisure St Neots,Materials For Resale,570
http://statistics.data.gov.uk/id/local-authority/12UE,Huntingdonshire District Council,03/03/2017,204612,4001935,5,646.5,Gladstone Mrm,CR405717,One Leisure St Neots,Software,206
http://statistics.data.gov.uk/id/local-authority/12UE,Huntingdonshire District Council,03/03/2017,204610,4001942,5,599.86,Gladstone Mrm,CR405717,One Leisure St Neots,Software,206
http://statistics.data.gov.uk/id/local-authority/12UE,Huntingdonshire District Council,30/03/2017,205664,10394697,5,270.6,Lucozade Ribena Suntory Ltd,CR422660,One Leisure St Neots,Vending Materials,560
http://statistics.data.gov.uk/id/local-authority/12UE,Huntingdonshire District Council,03/03/2017,204167,82669871,5,152.93,Archant Herts & Cambs,CR415764,One Leisure St Neots,Advertising/Promoting Services,255
http://statistics.data.gov.uk/id/local-authority/12UE,Huntingdonshire District Council,09/03/2017,204453,82672525,5,205.42,Archant Community Media Ltd,CR452143,One Leisure St Neots,Advertising/Promoting Services,255
http://statistics.data.gov.uk/id/local-authority/12UE,Huntingdonshire District Council,09/03/2017,204823,82672525,5,205.43,Archant Herts & Cambs,CR415764,One Leisure St Neots,Advertising/Promoting Services,255
http://statistics.data.gov.uk/id/local-authority/12UE,Huntingdonshire District Council,30/03/2017,205643,82683084,5,244.2,Archant Community Media Ltd,CR452143,One Leisure St Neots,Advertising/Promoting Services,255
http://statistics.data.gov.uk/id/local-authority/12UE,Huntingdonshire District Council,16/03/2017,204777,92642883,5,"1,158.87",Speedo International Limited,CR41427,One Leisure St Neots,Materials For Resale,570
http://statistics.data.gov.uk/id/local-authority/12UE,Huntingdonshire District Council,16/03/2017,204552,1129360260,5,420.79,Konica Minolta,CR478866,One Leisure St Neots,Equipment,500
http://statistics.data.gov.uk/id/local-authority/12UE,Huntingdonshire District Council,23/03/2017,206343,12489088380,5,"3,208.91",E-On Energy,CR416430,One Leisure St Neots,Gas,421
http://statistics.data.gov.uk/id/local-authority/12UE,Huntingdonshire District Council,23/03/2017,206345,12489088540,5,385.09,E-On Energy,CR416430,One Leisure St Neots,Gas,421
http://statistics.data.gov.uk/id/local-authority/12UE,Huntingdonshire District Council,30/03/2017,207117,31226B,5,"2,051.06",Hi-Spec Facilities Services Plc,CR423413,One Leisure St Neots,Building Cleaning,440
http://statistics.data.gov.uk/id/local-authority/12UE,Huntingdonshire District Council,03/03/2017,204461,38SI 3841285,5,906.73,Brenntag Uk Ltd,CR015017,One Leisure St Neots,Chemicals,551
http://statistics.data.gov.uk/id/local-authority/12UE,Huntingdonshire District Council,30/03/2017,206559,845/ONE,5,86.4,Term Times,CR423394,One Leisure St Neots,Advertising/Promoting Services,255
http://statistics.data.gov.uk/id/local-authority/12UE,Huntingdonshire District Council,30/03/2017,206856,GM14628,5,303.6,Garner Medical Ltd,CR003972,One Leisure St Neots,Equipment Maintenance,511
http://statistics.data.gov.uk/id/local-authority/12UE,Huntingdonshire District Council,23/03/2017,205206,INV-0054,5,125,Wamo Sports Ltd,CR423559,One Leisure St Neots,Licences,730
http://statistics.data.gov.uk/id/local-authority/12UE,Huntingdonshire District Council,03/03/2017,204589,INV-5569,5,527.66,Cfb Limited,CR480886,One Leisure St Neots,Advertising/Promoting Services,255
http://statistics.data.gov.uk/id/local-authority/12UE,Huntingdonshire District Council,09/03/2017,205793,SAC014440,5,"1,349.11",Aitchison Rafferty,CR422382,One Leisure St Neots,Consultants,711
http://statistics.data.gov.uk/id/local-authority/12UE,Huntingdonshire District Council,09/03/2017,205638,23541,5,530.78,B. S. Graves Electrical Ltd,CR000363,Parks & Open Spaces,Building Mtce,303
http://statistics.data.gov.uk/id/local-authority/12UE,Huntingdonshire District Council,30/03/2017,207004,51536,5,667.1,Plot It,CR455069,Parks & Open Spaces,Equipment,500
http://statistics.data.gov.uk/id/local-authority/12UE,Huntingdonshire District Council,23/03/2017,205282,392882,5,11.74,Smi Group,CR423139,Parks & Open Spaces,Protective Clothing & Uniforms,163
http://statistics.data.gov.uk/id/local-authority/12UE,Huntingdonshire District Council,03/03/2017,205138,17-177-MR,5,541.97,Gb Sport & Leisure Uk Ltd,CR482429,Parks & Open Spaces,Playground Equipment,360
http://statistics.data.gov.uk/id/local-authority/12UE,Huntingdonshire District Council,03/03/2017,204865,JC/5106/28822,5,"1,137.12",J Breheny Civil Engineering Ltd,CR000314,Parks & Open Spaces,Playground Equipment,360
http://statistics.data.gov.uk/id/local-authority/12UE,Huntingdonshire District Council,30/03/2017,206949,DU835938,5,"7,495.32",Wicksteed Leisure Ltd,CR028997,Parks Equipment Capital,Playground Equipment,360
http://statistics.data.gov.uk/id/local-authority/12UE,Huntingdonshire District Council,30/03/2017,206946,DU835939,5,"6,752.40",Wicksteed Leisure Ltd,CR028997,Parks Equipment Capital,Playground Equipment,360
http://statistics.data.gov.uk/id/local-authority/12UE,Huntingdonshire District Council,30/03/2017,206948,DU835940,5,"4,674.30",Wicksteed Leisure Ltd,CR028997,Parks Equipment Capital,Playground Equipment,360
http://statistics.data.gov.uk/id/local-authority/12UE,Huntingdonshire District Council,30/03/2017,206847,JC/106/2880,5,"4,783.99",J Breheny Civil Engineering Ltd,CR000314,Parks Equipment Capital,Playground Equipment,360
http://statistics.data.gov.uk/id/local-authority/12UE,Huntingdonshire District Council,09/03/2017,205398,234,5,100,Dms Home Improvements & Electrical,CR479202,Pathfinder House Site,Building Mtce,303
http://statistics.data.gov.uk/id/local-authority/12UE,Huntingdonshire District Council,16/03/2017,206148,31662,5,"3,778.27",Hi-Spec Facilities Services Plc,CR423413,Pathfinder House Site,Building Cleaning,440
http://statistics.data.gov.uk/id/local-authority/12UE,Huntingdonshire District Council,30/03/2017,206146,31876,5,"3,778.27",Hi-Spec Facilities Services Plc,CR423413,Pathfinder House Site,Building Cleaning,440
http://statistics.data.gov.uk/id/local-authority/12UE,Huntingdonshire District Council,30/03/2017,206145,31935,5,680.4,Hi-Spec Facilities Services Plc,CR423413,Pathfinder House Site,Building Cleaning,440
http://statistics.data.gov.uk/id/local-authority/12UE,Huntingdonshire District Council,09/03/2017,205680,43195,5,652.8,Dal-Rod Uk Ltd,CR002782,Pathfinder House Site,Building Mtce,303
http://statistics.data.gov.uk/id/local-authority/12UE,Huntingdonshire District Council,09/03/2017,205679,43242,5,342,Dal-Rod Uk Ltd,CR002782,Pathfinder House Site,Building Mtce,303
http://statistics.data.gov.uk/id/local-authority/12UE,Huntingdonshire District Council,16/03/2017,205401,61309,5,"1,014.24",Maskearaid Ltd,CR033423,Pathfinder House Site,Cleaning Materials,443
http://statistics.data.gov.uk/id/local-authority/12UE,Huntingdonshire District Council,23/03/2017,205945,65912,5,"11,119.98",Haven Power Ltd,CR455940,Pathfinder House Site,Electricity,420
http://statistics.data.gov.uk/id/local-authority/12UE,Huntingdonshire District Council,23/03/2017,205949,65912,5,"9,931.67",Haven Power Ltd,CR455940,Pathfinder House Site,Electricity,420
http://statistics.data.gov.uk/id/local-authority/12UE,Huntingdonshire District Council,16/03/2017,204896,131273,5,540,Newgate (Newark) Limited,CR480024,Pathfinder House Site,Plant & Equipment Maintenance,380
http://statistics.data.gov.uk/id/local-authority/12UE,Huntingdonshire District Council,30/03/2017,206058,218553,5,38.16,Digital Id Limited,CR453985,Pathfinder House Site,Equipment,500
http://statistics.data.gov.uk/id/local-authority/12UE,Huntingdonshire District Council,30/03/2017,206058,218553,5,95.9,Digital Id Limited,CR453985,Pathfinder House Site,Equipment,500
http://statistics.data.gov.uk/id/local-authority/12UE,Huntingdonshire District Council,30/03/2017,206058,218553,5,134.16,Digital Id Limited,CR453985,Pathfinder House Site,Equipment,500
http://statistics.data.gov.uk/id/local-authority/12UE,Huntingdonshire District Council,30/03/2017,206058,218553,5,47.76,Digital Id Limited,CR453985,Pathfinder House Site,Equipment,500
http://statistics.data.gov.uk/id/local-authority/12UE,Huntingdonshire District Council,30/03/2017,206058,218553,5,91.18,Digital Id Limited,CR453985,Pathfinder House Site,Materials,550
http://statistics.data.gov.uk/id/local-authority/12UE,Huntingdonshire District Council,30/03/2017,206058,218553,5,10.74,Digital Id Limited,CR453985,Pathfinder House Site,Postage,231
http://statistics.data.gov.uk/id/local-authority/12UE,Huntingdonshire District Council,23/03/2017,206352,13313569100,5,"1,767.22",E-On Energy,CR416430,Pathfinder House Site,Gas,421
http://statistics.data.gov.uk/id/local-authority/12UE,Huntingdonshire District Council,03/03/2017,204417,10716761,5,"764,802.65",Cambridgeshire County Council,CR017440,Planning Capital,Contribution (Paid Out),810
http://statistics.data.gov.uk/id/local-authority/12UE,Huntingdonshire District Council,30/03/2017,207072,115822,5,714,Leaf Coppin Publishing Ltd,CR424679,Planning M U'S,Corporate Subscriptions,754
http://statistics.data.gov.uk/id/local-authority/12UE,Huntingdonshire District Council,09/03/2017,204429,50087117,5,"1,548.00",Haymarket Business Publications Ltd,CR417029,Planning M U'S,Corporate Subscriptions,754
http://statistics.data.gov.uk/id/local-authority/12UE,Huntingdonshire District Council,16/03/2017,205300,OP/I793112,5,556.14,Phoenix Software Ltd,CR031918,Planning M U'S,Software,206
http://statistics.data.gov.uk/id/local-authority/12UE,Huntingdonshire District Council,16/03/2017,205598,9197631,6,"9,306.00",East Of England Lga,CR422620,Printing External Work,Consultants,711
http://statistics.data.gov.uk/id/local-authority/12UE,Huntingdonshire District Council,23/03/2017,205933,10721899,5,"7,800.00",Cambridgeshire County Council,CR006678,Project Contributions,Contribution (Paid Out),810
http://statistics.data.gov.uk/id/local-authority/12UE,Huntingdonshire District Council,03/03/2017,205316,1111429011,5,"15,018.00",Deloitte Llp,CR400573,Project Contributions,Subcontractors,777
http://statistics.data.gov.uk/id/local-authority/12UE,Huntingdonshire District Council,16/03/2017,205943,1111438571,5,"6,354.48",Deloitte Llp,CR400573,Project Contributions,Subcontractors,777
http://statistics.data.gov.uk/id/local-authority/12UE,Huntingdonshire District Council,03/03/2017,205287,2.50001E+13,5,"6,557.82",Dvs,CR422786,Project Contributions,Subcontractors,777
http://statistics.data.gov.uk/id/local-authority/12UE,Huntingdonshire District Council,16/03/2017,205288,2.50001E+13,5,"6,000.00",Dvs,CR422786,Project Contributions,Subcontractors,777
http://statistics.data.gov.uk/id/local-authority/12UE,Huntingdonshire District Council,23/03/2017,205737,27155,5,"1,860.00",Hcb Park Woodfine Llp,CR424136,Property Development And Mgt,Legal Fees,729
http://statistics.data.gov.uk/id/local-authority/12UE,Huntingdonshire District Council,23/03/2017,205737,27155,5,40,Hcb Park Woodfine Llp,CR424136,Property Development And Mgt,Legal Fees,729
http://statistics.data.gov.uk/id/local-authority/12UE,Huntingdonshire District Council,03/03/2017,204061,1001274,5,960,Rapleys Llp,CR424611,Property Development And Mgt,Consultants,711
http://statistics.data.gov.uk/id/local-authority/12UE,Huntingdonshire District Council,09/03/2017,204537,100727749,5,"2,070.00",Hays,CR423917,Property Development And Mgt,Hired Staff,100
http://statistics.data.gov.uk/id/local-authority/12UE,Huntingdonshire District Council,09/03/2017,204894,1007195880,5,"1,464.00",Hays,CR423917,Property Development And Mgt,Hired Staff,100
http://statistics.data.gov.uk/id/local-authority/12UE,Huntingdonshire District Council,23/03/2017,206552,1007237397,5,"2,070.00",Hays,CR423917,Property Development And Mgt,Hired Staff,100
http://statistics.data.gov.uk/id/local-authority/12UE,Huntingdonshire District Council,23/03/2017,206553,1007237696,5,"1,830.00",Hays,CR423917,Property Development And Mgt,Hired Staff,100
http://statistics.data.gov.uk/id/local-authority/12UE,Huntingdonshire District Council,03/03/2017,204193,1007257190,5,"2,070.00",Hays,CR423917,Property Development And Mgt,Hired Staff,100
http://statistics.data.gov.uk/id/local-authority/12UE,Huntingdonshire District Council,03/03/2017,204194,1007257855,5,"1,830.00",Hays,CR423917,Property Development And Mgt,Hired Staff,100
http://statistics.data.gov.uk/id/local-authority/12UE,Huntingdonshire District Council,09/03/2017,204538,1007278568,5,"1,830.00",Hays,CR423917,Property Development And Mgt,Hired Staff,100
http://statistics.data.gov.uk/id/local-authority/12UE,Huntingdonshire District Council,16/03/2017,204646,1007296635,5,"2,070.00",Hays,CR423917,Property Development And Mgt,Hired Staff,100
http://statistics.data.gov.uk/id/local-authority/12UE,Huntingdonshire District Council,16/03/2017,204647,1007299957,5,"1,830.00",Hays,CR423917,Property Development And Mgt,Hired Staff,100
http://statistics.data.gov.uk/id/local-authority/12UE,Huntingdonshire District Council,16/03/2017,205236,1007315895,5,"1,830.00",Hays,CR423917,Property Development And Mgt,Hired Staff,100
http://statistics.data.gov.uk/id/local-authority/12UE,Huntingdonshire District Council,16/03/2017,205235,1007316588,5,"1,656.00",Hays,CR423917,Property Development And Mgt,Hired Staff,100
http://statistics.data.gov.uk/id/local-authority/12UE,Huntingdonshire District Council,30/03/2017,206557,1007339109,5,"2,070.00",Hays,CR423917,Property Development And Mgt,Hired Staff,100
http://statistics.data.gov.uk/id/local-authority/12UE,Huntingdonshire District Council,03/03/2017,204562,HDC057,5,"1,440.00",Cfl Estate Services,CR455208,Property Development And Mgt,Hired Staff,100
http://statistics.data.gov.uk/id/local-authority/12UE,Huntingdonshire District Council,03/03/2017,204563,HDC058,5,"1,164.00",Cfl Estate Services,CR455208,Property Development And Mgt,Hired Staff,100
http://statistics.data.gov.uk/id/local-authority/12UE,Huntingdonshire District Council,30/03/2017,205738,HDC059,5,"1,140.00",Cfl Estate Services,CR455208,Property Development And Mgt,Hired Staff,100
http://statistics.data.gov.uk/id/local-authority/12UE,Huntingdonshire District Council,30/03/2017,205739,HDC060,5,"1,278.00",Cfl Estate Services,CR455208,Property Development And Mgt,Hired Staff,100
http://statistics.data.gov.uk/id/local-authority/12UE,Huntingdonshire District Council,09/03/2017,205642,43235,5,354,Dal-Rod (Camridgeshire),CR413675,Public Conveniences,Building Mtce,303
http://statistics.data.gov.uk/id/local-authority/12UE,Huntingdonshire District Council,03/03/2017,204890,541125403,5,310.12,Swalec,CR407130,Public Conveniences,Electricity,420
http://statistics.data.gov.uk/id/local-authority/12UE,Huntingdonshire District Council,16/03/2017,205122,6618,5,40.32,D & H Sign & Display Services,CR030353,Recycling,Vehicle Parts & Fittings,625
http://statistics.data.gov.uk/id/local-authority/12UE,Huntingdonshire District Council,03/03/2017,205341,98646,5,251.69,Bandvulc Truck Tyres,CR406810,Recycling,Tyres,630
http://statistics.data.gov.uk/id/local-authority/12UE,Huntingdonshire District Council,03/03/2017,204469,108191,5,252,Barton Petroleum,CR409205,Recycling,Vehicle Oil & Lubricants,626
http://statistics.data.gov.uk/id/local-authority/12UE,Huntingdonshire District Council,16/03/2017,205261,145024,5,348,Silver Shield Windscreens,CR024745,Recycling,Vehicle Parts & Fittings,625
http://statistics.data.gov.uk/id/local-authority/12UE,Huntingdonshire District Council,16/03/2017,205262,146289,5,348,Silver Shield Windscreens,CR024745,Recycling,Vehicle Parts & Fittings,625
http://statistics.data.gov.uk/id/local-authority/12UE,Huntingdonshire District Council,23/03/2017,205162,1094136,5,256.32,Dts Solutions (Uk) Ltd,CR001981,Recycling,Vehicle Parts & Fittings,625
http://statistics.data.gov.uk/id/local-authority/12UE,Huntingdonshire District Council,03/03/2017,204496,96337601,5,471.28,Terberg Matec Uk Ltd,CR402183,Recycling,Vehicle Parts & Fittings,625
http://statistics.data.gov.uk/id/local-authority/12UE,Huntingdonshire District Council,30/03/2017,205720,96338580,5,371.71,Terberg Matec Uk Ltd,CR402183,Recycling,Vehicle Parts & Fittings,625
http://statistics.data.gov.uk/id/local-authority/12UE,Huntingdonshire District Council,03/03/2017,204207,271812I,5,297.31,A C Commercials,CR000141,Recycling,Vehicle Parts & Fittings,625
http://statistics.data.gov.uk/id/local-authority/12UE,Huntingdonshire District Council,16/03/2017,205126,272069I,5,169.94,A C Commercials,CR000141,Recycling,Vehicle Parts & Fittings,625
http://statistics.data.gov.uk/id/local-authority/12UE,Huntingdonshire District Council,30/03/2017,206841,ASI28512,5,"18,008.40",Ameycespa (East) Ltd,CR127636,Recycling,Recycling Collections,747
http://statistics.data.gov.uk/id/local-authority/12UE,Huntingdonshire District Council,30/03/2017,206842,ASI32272,5,"21,880.24",Ameycespa (East) Ltd,CR127636,Recycling,Recycling Collections,747
http://statistics.data.gov.uk/id/local-authority/12UE,Huntingdonshire District Council,30/03/2017,206844,ASI32374,5,"29,131.14",Ameycespa (East) Ltd,CR127636,Recycling,Recycling Collections,747
http://statistics.data.gov.uk/id/local-authority/12UE,Huntingdonshire District Council,09/03/2017,205120,DE11017314,5,"2,907.77",Dennis Eagle Ltd,CR000200,Recycling,Vehicle Parts & Fittings,625
http://statistics.data.gov.uk/id/local-authority/12UE,Huntingdonshire District Council,03/03/2017,204513,IN0576714,5,"1,690.33",Staffline Group,CR416827,Recycling,Hired Staff,100
http://statistics.data.gov.uk/id/local-authority/12UE,Huntingdonshire District Council,03/03/2017,204885,IN0578183,5,"2,843.83",Staffline Group,CR416827,Recycling,Hired Staff,100
http://statistics.data.gov.uk/id/local-authority/12UE,Huntingdonshire District Council,16/03/2017,205270,IN0579947,5,"2,580.58",Staffline Group,CR416827,Recycling,Hired Staff,100
http://statistics.data.gov.uk/id/local-authority/12UE,Huntingdonshire District Council,16/03/2017,205271,IN0581627,5,"3,674.75",Staffline Group,CR416827,Recycling,Hired Staff,100
http://statistics.data.gov.uk/id/local-authority/12UE,Huntingdonshire District Council,23/03/2017,206130,IN0583224,5,"3,378.55",Staffline Group,CR416827,Recycling,Hired Staff,100
http://statistics.data.gov.uk/id/local-authority/12UE,Huntingdonshire District Council,30/03/2017,206131,IN0584345,5,"1,233.48",Staffline Group,CR416827,Recycling,Hired Staff,100
http://statistics.data.gov.uk/id/local-authority/12UE,Huntingdonshire District Council,09/03/2017,204588,SINV105247,5,"4,567.68",Gelpack Excelsior Limited,CR002966,Recycling,Refuse Sacks,552
http://statistics.data.gov.uk/id/local-authority/12UE,Huntingdonshire District Council,03/03/2017,204587,SINV-105275,5,761.28,Gelpack Excelsior Limited,CR002966,Recycling,Refuse Sacks,552
http://statistics.data.gov.uk/id/local-authority/12UE,Huntingdonshire District Council,09/03/2017,205140,SINV-105306,5,"2,283.84",Gelpack Excelsior Limited,CR002966,Recycling,Refuse Sacks,552
http://statistics.data.gov.uk/id/local-authority/12UE,Huntingdonshire District Council,09/03/2017,205141,SINV-105366,5,"2,283.84",Gelpack Excelsior Limited,CR002966,Recycling,Refuse Sacks,552
http://statistics.data.gov.uk/id/local-authority/12UE,Huntingdonshire District Council,16/03/2017,206144,4810,5,"16,043.40",Egbert H Taylor And Co Ltd,CR004818,Recycling Equipment Capital,Recycling Bins,525
http://statistics.data.gov.uk/id/local-authority/12UE,Huntingdonshire District Council,23/03/2017,206423,SI31899,5,"16,689.60",Ssi Schaefer Ltd,CR407190,Recycling Equipment Capital,Recycling Bins,525
http://statistics.data.gov.uk/id/local-authority/12UE,Huntingdonshire District Council,30/03/2017,206961,6625,,450,Safespaces Cornholme Ltd,CR424047,Renovation/Improvement Grants,Grants (Paid Out),800
http://statistics.data.gov.uk/id/local-authority/12UE,Huntingdonshire District Council,03/03/2017,204116,692666,5,271.2,Callcredit Ltd,CR455548,Revenue Services Mus,Enquiries,723
http://statistics.data.gov.uk/id/local-authority/12UE,Huntingdonshire District Council,30/03/2017,205613,696794,5,157.2,Callcredit Ltd,CR455548,Revenue Services Mus,Enquiries,723
http://statistics.data.gov.uk/id/local-authority/12UE,Huntingdonshire District Council,16/03/2017,608486,10717808,5,"1,624.08",Cambridgeshire County Council,CR006678,Revenue Services Mus,Legal Fees,729
http://statistics.data.gov.uk/id/local-authority/12UE,Huntingdonshire District Council,30/03/2017,206765,13/10725,5,490,Acas (Training),CR453990,Revenue Services Mus,Training,130
http://statistics.data.gov.uk/id/local-authority/12UE,Huntingdonshire District Council,09/03/2017,608837,106 FUNDS,1,"59,256.96",St Neots Town Council,CR002483,S106 Agreements,Contribution (Paid Out),810
http://statistics.data.gov.uk/id/local-authority/12UE,Huntingdonshire District Council,09/03/2017,205734,GRANT,5,"4,790.50",Nene Valley Railway Ltd,CR424125,S106 Agreements,Contribution (Paid Out),810
http://statistics.data.gov.uk/id/local-authority/12UE,Huntingdonshire District Council,03/03/2017,205121,6613,5,456,D & H Sign & Display Services,CR030353,Street Cleaning,Vehicle Parts & Fittings,625
http://statistics.data.gov.uk/id/local-authority/12UE,Huntingdonshire District Council,16/03/2017,205122,6618,5,559.2,D & H Sign & Display Services,CR030353,Street Cleaning,Vehicle Parts & Fittings,625
http://statistics.data.gov.uk/id/local-authority/12UE,Huntingdonshire District Council,03/03/2017,205341,98646,5,731.84,Bandvulc Truck Tyres,CR406810,Street Cleaning,Tyres,630
http://statistics.data.gov.uk/id/local-authority/12UE,Huntingdonshire District Council,03/03/2017,204288,176412,5,963,The Bell Brush Company,CR423411,Street Cleaning,Equipment,500
http://statistics.data.gov.uk/id/local-authority/12UE,Huntingdonshire District Council,03/03/2017,204492,389014,5,"1,637.88",Smi Group,CR423139,Street Cleaning,Protective Clothing & Uniforms,163
http://statistics.data.gov.uk/id/local-authority/12UE,Huntingdonshire District Council,30/03/2017,205700,394055,5,"1,184.04",Smi Group,CR423139,Street Cleaning,Protective Clothing & Uniforms,163
http://statistics.data.gov.uk/id/local-authority/12UE,Huntingdonshire District Council,30/03/2017,206816,628868,5,350.04,Howsafe Ltd,CR000409,Street Cleaning,Protective Clothing & Uniforms,163
http://statistics.data.gov.uk/id/local-authority/12UE,Huntingdonshire District Council,03/03/2017,205143,1093980,5,"1,807.20",Dts Solutions (Uk) Ltd,CR001981,Street Cleaning,Vehicle Parts & Fittings,625
http://statistics.data.gov.uk/id/local-authority/12UE,Huntingdonshire District Council,30/03/2017,206099,58396705,5,532.81,Marshall Motor Group Ltd,CR009641,Street Cleaning,Vehicle Parts & Fittings,625
http://statistics.data.gov.uk/id/local-authority/12UE,Huntingdonshire District Council,30/03/2017,206097,58396821,5,475.49,Marshall Motor Group Ltd,CR009641,Street Cleaning,Vehicle Parts & Fittings,625
http://statistics.data.gov.uk/id/local-authority/12UE,Huntingdonshire District Council,03/03/2017,204293,60225178,5,735.77,Aebi Schmidt,CR025706,Street Cleaning,Vehicle Parts & Fittings,625
http://statistics.data.gov.uk/id/local-authority/12UE,Huntingdonshire District Council,03/03/2017,203801,271705I,5,999.99,A C Commercials,CR000141,Street Cleaning,Vehicle Accident Damage,623
http://statistics.data.gov.uk/id/local-authority/12UE,Huntingdonshire District Council,03/03/2017,204887,IN0578186,5,732.07,Staffline Group,CR416827,Street Cleaning,Hired Staff,100
http://statistics.data.gov.uk/id/local-authority/12UE,Huntingdonshire District Council,16/03/2017,205274,IN0579950,5,832.68,Staffline Group,CR416827,Street Cleaning,Hired Staff,100
http://statistics.data.gov.uk/id/local-authority/12UE,Huntingdonshire District Council,16/03/2017,205275,IN0581630,5,738.18,Staffline Group,CR416827,Street Cleaning,Hired Staff,100
http://statistics.data.gov.uk/id/local-authority/12UE,Huntingdonshire District Council,23/03/2017,206135,IN0583227,5,734.95,Staffline Group,CR416827,Street Cleaning,Hired Staff,100
http://statistics.data.gov.uk/id/local-authority/12UE,Huntingdonshire District Council,30/03/2017,206136,IN0584348,5,918.19,Staffline Group,CR416827,Street Cleaning,Hired Staff,100
http://statistics.data.gov.uk/id/local-authority/12UE,Huntingdonshire District Council,03/03/2017,205299,102098/105782,5,"1,683.36",Galtec Solutions Ltd,CR423396,Telephone Upgrade,Other I T Hardware,203
http://statistics.data.gov.uk/id/local-authority/12UE,Huntingdonshire District Council,03/03/2017,205299,102098/105782,5,900,Galtec Solutions Ltd,CR423396,Telephone Upgrade,Other I T Hardware,203
http://statistics.data.gov.uk/id/local-authority/12UE,Huntingdonshire District Council,03/03/2017,205299,102098/105782,5,253.44,Galtec Solutions Ltd,CR423396,Telephone Upgrade,Other I T Hardware,203
http://statistics.data.gov.uk/id/local-authority/12UE,Huntingdonshire District Council,23/03/2017,205671,6621,5,312,D & H Sign & Display Services,CR030353,Trade Refuse,Vehicle Parts & Fittings,625
http://statistics.data.gov.uk/id/local-authority/12UE,Huntingdonshire District Council,23/03/2017,205161,1094135,5,"1,117.20",Dts Solutions (Uk) Ltd,CR001981,Trade Refuse,Vehicle Parts & Fittings,625
http://statistics.data.gov.uk/id/local-authority/12UE,Huntingdonshire District Council,16/03/2017,205165,10718505,5,"4,009.98",Cambridgeshire County Council,CR006678,Trade Refuse,Waste Disposal,763
http://statistics.data.gov.uk/id/local-authority/12UE,Huntingdonshire District Council,30/03/2017,206093,11442468,5,106.8,Murketts Of Cambridge Ltd,CR145919,Trade Refuse,Vehicle Parts & Fittings,625
http://statistics.data.gov.uk/id/local-authority/12UE,Huntingdonshire District Council,23/03/2017,205222,IN16PS17001028,5,226.75,Whistl Uk Ltd,CR424061,Trade Refuse,Postage,231
http://statistics.data.gov.uk/id/local-authority/12UE,Huntingdonshire District Council,30/03/2017,207070,917,5,"1,500.00",Hact,CR455657,Transportation Mgt,Contribution (Paid Out),810
http://statistics.data.gov.uk/id/local-authority/12UE,Huntingdonshire District Council,16/03/2017,205957,188489,5,"25,484.00",Aprite Gb T/A West Way Birmingham,CR424045,Vehicles & Plant Capital,Vehicles Purchased,600
http://statistics.data.gov.uk/id/local-authority/12UE,Huntingdonshire District Council,16/03/2017,205958,188490,5,"25,716.89",Aprite Gb T/A West Way Birmingham,CR424045,Vehicles & Plant Capital,Vehicles Purchased,600
http://statistics.data.gov.uk/id/local-authority/12UE,Huntingdonshire District Council,09/03/2017,204902,337133,5,"14,817.79",Marshall Of Knebworth,CR424060,Vehicles & Plant Capital,Vehicles Purchased,600
http://statistics.data.gov.uk/id/local-authority/12UE,Huntingdonshire District Council,09/03/2017,204899,337134,5,"12,935.96",Marshall Of Knebworth,CR424060,Vehicles & Plant Capital,Vehicles Purchased,600
http://statistics.data.gov.uk/id/local-authority/12UE,Huntingdonshire District Council,09/03/2017,204900,337139,5,"12,935.96",Marshall Of Knebworth,CR424060,Vehicles & Plant Capital,Vehicles Purchased,600
http://statistics.data.gov.uk/id/local-authority/12UE,Huntingdonshire District Council,23/03/2017,206037,1094140,5,"1,360.80",Dts Solutions (Uk) Ltd,CR001981,Vehicles & Plant Capital,Vehicles Purchased,600
http://statistics.data.gov.uk/id/local-authority/12UE,Huntingdonshire District Council,23/03/2017,205308,I094134,5,"6,882.00",Dts Solutions (Uk) Ltd,CR001981,Vehicles & Plant Capital,Vehicles Purchased,600
http://statistics.data.gov.uk/id/local-authority/12UE,Huntingdonshire District Council,23/03/2017,205307,I094137,5,"2,868.00",Dts Solutions (Uk) Ltd,CR001981,Vehicles & Plant Capital,Vehicles Purchased,600
http://statistics.data.gov.uk/id/local-authority/12UE,Huntingdonshire District Council,23/03/2017,205306,I094138,5,"2,500.80",Dts Solutions (Uk) Ltd,CR001981,Vehicles & Plant Capital,Vehicles Purchased,600
http://statistics.data.gov.uk/id/local-authority/12UE,Huntingdonshire District Council,23/03/2017,205305,I094139,5,600,Dts Solutions (Uk) Ltd,CR001981,Vehicles & Plant Capital,Vehicles Purchased,600
http://statistics.data.gov.uk/id/local-authority/12UE,Huntingdonshire District Council,09/03/2017,205402,18551,5,828,Sps Pumps & Engineering Ltd,CR401392,Watercourses,Plant & Equipment Maintenance,380
